{"text_format":"1","workbook":"xlsx","n_sheets":9,"sheets":["1. Начальные данные","2. Пров.суммы","3. Объяснительная","4. ФК-1","5. Объекты КМ","6. Реал.полном.","6. Оценка кач-ва","Показатели качества","Контроль"],"not_rendered":{"charts":0,"images":0,"macros":1,"external_links":0,"defined_names":9,"comments":6,"pivot_tables":0},"unopened":[],"bounds":{"document_bytes":16777216,"sheet_cells":100000,"rows_first":2000,"rows_last":500,"rows_between":2000,"halvings":0,"cell_chars":16384,"cell_head_chars":4096},"cells_cut":0,"cells_raw":0,"read":"whole","date_system":"1900"}

{"sheet":"1. Начальные данные","index":0,"n_rows":30,"n_cols":22,"rows_kept":30,"cut":false,"hidden":false,"merged":[[25,3,34,8],[21,0,21,2],[21,3,21,8],[20,0,20,2],[20,3,20,8],[11,0,11,8],[15,0,15,2],[15,3,15,8],[17,3,17,4],[19,0,19,2],[19,3,19,8],[16,0,16,2],[17,0,17,2],[17,5,17,6],[16,3,16,7]]}
[null,null,null,null,null,null,null,null,null,null,null,null,null,null,null,null,null,null,null,null,"Версия:","3.0м"]
[]
[]
[]
[]
[]
[]
[]
[]
[]
[]
["Отчет по внутреннему финансовому контролю"]
[]
[]
[]
[]
["Наименование МО:",null,null,"МР Нуримановский район РБ"]
["По состоянию на:",null,null,"31 декабря",null,"2017 года"]
[]
["Исполнитель:",null,null,"Гайнетдинова Олеся Николаевна"]
["Рабочий телефон:",null,null,"8-34776-2-21-02"]
["Мобильный телефон:",null,null,"8-961-370-72-72"]
[]
[]
[]
[null,null,{"$f":"IF(N30=0,\"\",\"Ошибки:\")","v":""},{"$f":"O26","v":""},null,null,null,null,null,null,null,null,null,null,{"$f":"CONCATENATE(M27,M28,M29)","v":""}]
[null,null,null,null,null,null,null,null,null,null,null,null,{"$f":"IF(OR(D17=0, D17=\"[выберите учреждение]\"), \"Не выбрано наименование учреждения! \"&CHAR(10),\"\")","v":""},{"$f":"IF(OR(D17=0, D17=\"[выберите учреждение]\"), 1,\"\")","v":""}]
[null,null,null,null,null,null,null,null,null,null,null,null,{"$f":"IF(OR(D18=0, D18=\"[выберите дату]\",F18=0, F18=\"[выберите год]\"), \"Не выбрана дата! \"&CHAR(10),\"\")","v":""},{"$f":"IF(OR(D18=0, D18=\"[выберите дату]\",F18=0, F18=\"[выберите год]\"), 1,\"\")","v":""}]
[null,null,null,null,null,null,null,null,null,null,null,null,{"$f":"IF(OR(LEN(D22)<9,D22=\"[наберите на клавиатуре]\"),\"\"&CHAR(10),\"\")","v":""},{"$f":"IF(OR(LEN(D22)<9,D22=\"[наберите на клавиатуре]\"),1,\"\")","v":""}]
[null,null,null,null,null,null,null,null,null,null,null,null,null,{"$f":"SUM(N26:N29)","v":0}]

{"sheet":"2. Пров.суммы","index":1,"n_rows":10,"n_cols":5,"rows_kept":10,"cut":false,"hidden":false,"merged":[[9,7,9,10],[9,11,9,14],[9,15,9,18],[0,0,0,4],[1,0,1,4],[2,0,2,4],[4,1,4,4],[4,0,5,0]]}
["Сведения о проверенных средствах"]
[{"$f":"CONCATENATE('1. Начальные данные'!D18,\" \",'1. Начальные данные'!F18)","v":"31 декабря 2017 года"}]
[{"$f":"'1. Начальные данные'!D17","v":"МР Нуримановский район РБ"}]
[null,null,null,null,"в тыс.рублей"]
["Наименование бюджета","Проверено в 2017 году по средствам"]
[null,"2014 года","2015 года","2016 года","2017 года"]
["Средства бюджета Республики Башкортостан",2241,10710.9,8992.2999999999993,2050.6999999999998]
["Средства бюджета муниципального образования",6033.7,6116.9,7183.6,5923.2]
["Прочие средства и средства, полученные от оказания платных услуг и осуществления иной приносящей доход деятельности",null,14606,13752,15181]
["Проверено всего",{"$f":"SUM(B7:B9)","v":8274.7000000000007},{"$f":"SUM(C7:C9)","v":31433.8},29927.9,23154.9]

{"sheet":"3. Объяснительная","index":2,"n_rows":344,"n_cols":27,"rows_kept":344,"cut":false,"hidden":false,"merged":[[39,20,39,24],[39,25,39,29],[191,5,191,9],[191,10,191,14],[191,15,191,19],[191,20,191,24],[191,25,191,29],[190,5,190,9],[190,10,190,14],[190,15,190,19],[190,20,190,24],[190,25,190,29],[35,1,35,4],[35,5,35,9],[35,10,35,14],[35,15,35,19],[35,20,35,24],[35,25,35,29],[36,1,36,4],[36,5,36,9],[36,10,36,14],[36,15,36,19],[36,20,36,24],[36,25,36,29],[187,15,187,19],[187,20,187,24],[187,25,187,29],[186,5,186,9],[186,10,186,14],[186,15,186,19],[186,20,186,24],[186,25,186,29],[192,5,192,9],[193,5,193,9],[192,10,192,14],[192,15,192,19],[192,20,192,24],[192,25,192,29],[193,10,193,14],[193,15,193,19],[193,20,193,24],[193,25,193,29],[37,1,37,4],[37,5,37,9],[37,10,37,14],[37,15,37,19],[37,20,37,24],[37,25,37,29],[39,1,39,4],[39,5,39,9],[39,10,39,14],[39,15,39,19],[189,5,189,9],[189,10,189,14],[189,15,189,19],[189,20,189,24],[189,25,189,29],[188,5,188,9],[188,10,188,14],[188,15,188,19],[188,20,188,24],[188,25,188,29],[187,5,187,9],[187,10,187,14],[32,1,32,4],[32,5,32,9],[32,10,32,14],[32,15,32,19],[32,20,32,24],[32,25,32,29],[33,1,33,4],[33,5,33,9],[33,10,33,14],[33,15,33,19],[33,20,33,24],[33,25,33,29],[34,1,34,4],[34,5,34,9],[34,10,34,14],[34,15,34,19],[34,20,34,24],[34,25,34,29],[29,1,29,4],[29,5,29,9],[29,10,29,14],[29,15,29,19],[29,20,29,24],[29,25,29,29],[30,1,30,4],[30,5,30,9],[30,10,30,14],[30,15,30,19],[30,20,30,24],[30,25,30,29],[31,1,31,4],[31,5,31,9],[31,10,31,14],[31,15,31,19],[31,20,31,24],[31,25,31,29],[26,1,26,4],[26,5,26,9],[26,10,26,14],[26,15,26,19],[26,20,26,24],[26,25,26,29],[27,1,27,4],[27,5,27,9],[27,10,27,14],[27,15,27,19],[27,20,27,24],[27,25,27,29],[28,1,28,4],[28,5,28,9],[28,10,28,14],[28,15,28,19],[28,20,28,24],[28,25,28,29],[22,1,22,4],[22,5,22,9],[22,10,22,14],[22,15,22,19],[22,20,22,24],[22,25,22,29],[23,1,23,4],[23,5,23,9],[23,10,23,14],[23,15,23,19],[23,20,23,24],[23,25,23,29],[25,1,25,4],[25,5,25,9],[25,10,25,14],[25,15,25,19],[25,20,25,24],[25,25,25,29],[24,1,24,4],[24,5,24,9],[24,10,24,14],[24,15,24,19],[24,20,24,24],[24,25,24,29],[19,1,19,4],[19,5,19,9],[19,10,19,14],[19,15,19,19],[19,20,19,24],[19,25,19,29],[20,1,20,4],[20,5,20,9],[20,10,20,14],[20,15,20,19],[20,20,20,24],[20,25,20,29],[21,1,21,4],[21,5,21,9],[21,10,21,14],[21,15,21,19],[21,20,21,24],[21,25,21,29],[16,1,16,4],[16,5,16,9],[16,10,16,14],[16,15,16,19],[16,20,16,24],[16,25,16,29],[17,1,17,4],[17,5,17,9],[17,10,17,14],[17,15,17,19],[17,20,17,24],[17,25,17,29],[18,1,18,4],[18,5,18,9],[18,10,18,14],[18,15,18,19],[18,20,18,24],[18,25,18,29],[338,5,338,9],[338,10,338,14],[338,15,338,19],[338,20,338,24],[338,25,338,29],[337,5,337,9],[339,5,339,9],[339,10,339,14],[339,15,339,19],[339,20,339,24],[339,25,339,29],[343,5,343,9],[343,10,343,14],[343,15,343,19],[343,20,343,24],[343,25,343,29],[342,5,342,9],[342,10,342,14],[342,15,342,19],[342,20,342,24],[342,25,342,29],[341,5,341,9],[341,10,341,14],[341,15,341,19],[341,20,341,24],[341,25,341,29],[340,5,340,9],[340,10,340,14],[340,15,340,19],[340,20,340,24],[340,25,340,29],[337,10,337,14],[337,15,337,19],[337,20,337,24],[337,25,337,29],[336,5,336,9],[336,10,336,14],[336,15,336,19],[336,20,336,24],[336,25,336,29],[335,5,335,9],[335,10,335,14],[335,15,335,19],[335,20,335,24],[335,25,335,29],[334,5,334,9],[334,10,334,14],[334,15,334,19],[334,20,334,24],[334,25,334,29],[333,5,333,9],[333,10,333,14],[333,15,333,19],[333,20,333,24],[333,25,333,29],[332,5,332,9],[332,10,332,14],[332,15,332,19],[332,20,332,24],[332,25,332,29],[331,5,331,9],[331,10,331,14],[331,15,331,19],[331,20,331,24],[331,25,331,29],[330,5,330,9],[330,10,330,14],[330,15,330,19],[330,20,330,24],[330,25,330,29],[329,5,329,9],[329,10,329,14],[329,15,329,19],[329,20,329,24],[329,25,329,29],[328,5,328,9],[328,10,328,14],[328,15,328,19],[328,20,328,24],[328,25,328,29],[327,5,327,9],[327,10,327,14],[327,15,327,19],[327,20,327,24],[327,25,327,29],[326,5,326,9],[326,10,326,14],[326,15,326,19],[326,20,326,24],[326,25,326,29],[325,5,325,9],[325,10,325,14],[325,15,325,19],[325,20,325,24],[325,25,325,29],[324,5,324,9],[324,10,324,14],[324,15,324,19],[324,20,324,24],[324,25,324,29],[323,5,323,9],[323,10,323,14],[323,15,323,19],[323,20,323,24],[323,25,323,29],[322,5,322,9],[322,10,322,14],[322,15,322,19],[322,20,322,24],[322,25,322,29],[321,5,321,9],[321,10,321,14],[321,15,321,19],[321,20,321,24],[321,25,321,29],[320,5,320,9],[320,10,320,14],[320,15,320,19],[320,20,320,24],[320,25,320,29],[319,5,319,9],[319,10,319,14],[319,15,319,19],[319,20,319,24],[319,25,319,29],[318,5,318,9],[318,10,318,14],[318,15,318,19],[318,20,318,24],[318,25,318,29],[317,5,317,9],[317,10,317,14],[317,15,317,19],[317,20,317,24],[317,25,317,29],[316,5,316,9],[316,10,316,14],[316,15,316,19],[316,20,316,24],[316,25,316,29],[315,5,315,9],[315,10,315,14],[315,15,315,19],[315,20,315,24],[315,25,315,29],[314,5,314,9],[314,10,314,14],[314,15,314,19],[314,20,314,24],[314,25,314,29],[313,5,313,9],[313,10,313,14],[313,15,313,19],[313,20,313,24],[313,25,313,29],[312,5,312,9],[312,10,312,14],[312,15,312,19],[312,20,312,24],[312,25,312,29],[311,5,311,9],[311,10,311,14],[311,15,311,19],[311,20,311,24],[311,25,311,29],[310,5,310,9],[310,10,310,14],[310,15,310,19],[310,20,310,24],[310,25,310,29],[309,5,309,9],[309,10,309,14],[309,15,309,19],[309,20,309,24],[309,25,309,29],[308,5,308,9],[308,10,308,14],[308,15,308,19],[308,20,308,24],[308,25,308,29],[307,5,307,9],[307,10,307,14],[307,15,307,19],[307,20,307,24],[307,25,307,29],[306,5,306,9],[306,10,306,14],[306,15,306,19],[306,20,306,24],[306,25,306,29],[305,5,305,9],[305,10,305,14],[305,15,305,19],[305,20,305,24],[305,25,305,29],[304,5,304,9],[304,10,304,14],[304,15,304,19],[304,20,304,24],[304,25,304,29],[303,5,303,9],[303,10,303,14],[303,15,303,19],[303,20,303,24],[303,25,303,29],[302,5,302,9],[302,10,302,14],[302,15,302,19],[302,20,302,24],[302,25,302,29],[301,5,301,9],[301,10,301,14],[301,15,301,19],[301,20,301,24],[301,25,301,29],[300,5,300,9],[300,10,300,14],[300,15,300,19],[300,20,300,24],[300,25,300,29],[299,5,299,9],[299,10,299,14],[299,15,299,19],[299,20,299,24],[299,25,299,29],[298,5,298,9],[298,10,298,14],[298,15,298,19],[298,20,298,24],[298,25,298,29],[297,5,297,9],[297,10,297,14],[297,15,297,19],[297,20,297,24],[297,25,297,29],[296,5,296,9],[296,10,296,14],[296,15,296,19],[296,20,296,24],[296,25,296,29],[295,5,295,9],[295,10,295,14],[295,15,295,19],[295,20,295,24],[295,25,295,29],[294,5,294,9],[294,10,294,14],[294,15,294,19],[294,20,294,24],[294,25,294,29],[293,5,293,9],[293,10,293,14],[293,15,293,19],[293,20,293,24],[293,25,293,29],[292,5,292,9],[292,10,292,14],[292,15,292,19],[292,20,292,24],[292,25,292,29],[291,5,291,9],[291,10,291,14],[291,15,291,19],[291,20,291,24],[291,25,291,29],[290,5,290,9],[290,10,290,14],[290,15,290,19],[290,20,290,24],[290,25,290,29],[289,5,289,9],[289,10,289,14],[289,15,289,19],[289,20,289,24],[289,25,289,29],[288,5,288,9],[288,10,288,14],[288,15,288,19],[288,20,288,24],[288,25,288,29],[287,5,287,9],[287,10,287,14],[287,15,287,19],[287,20,287,24],[287,25,287,29],[286,5,286,9],[286,10,286,14],[286,15,286,19],[286,20,286,24],[286,25,286,29],[285,5,285,9],[285,10,285,14],[285,15,285,19],[285,20,285,24],[285,25,285,29],[284,5,284,9],[284,10,284,14],[284,15,284,19],[284,20,284,24],[284,25,284,29],[283,5,283,9],[283,10,283,14],[283,15,283,19],[283,20,283,24],[283,25,283,29],[282,5,282,9],[282,10,282,14],[282,15,282,19],[282,20,282,24],[282,25,282,29],[281,5,281,9],[281,10,281,14],[281,15,281,19],[281,20,281,24],[281,25,281,29],[280,5,280,9],[280,10,280,14],[280,15,280,19],[280,20,280,24],[280,25,280,29],[279,5,279,9],[279,10,279,14],[279,15,279,19],[279,20,279,24],[279,25,279,29],[278,5,278,9],[278,10,278,14],[278,15,278,19],[278,20,278,24],[278,25,278,29],[277,5,277,9],[277,10,277,14],[277,15,277,19],[277,20,277,24],[277,25,277,29],[276,5,276,9],[276,10,276,14],[276,15,276,19],[276,20,276,24],[276,25,276,29],[275,5,275,9],[275,10,275,14],[275,15,275,19],[275,20,275,24],[275,25,275,29],[274,5,274,9],[274,10,274,14],[274,15,274,19],[274,20,274,24],[274,25,274,29],[273,5,273,9],[273,10,273,14],[273,15,273,19],[273,20,273,24],[273,25,273,29],[272,5,272,9],[272,10,272,14],[272,15,272,19],[272,20,272,24],[272,25,272,29],[271,5,271,9],[271,10,271,14],[271,15,271,19],[271,20,271,24],[271,25,271,29],[270,5,270,9],[270,10,270,14],[270,15,270,19],[270,20,270,24],[270,25,270,29],[269,5,269,9],[269,10,269,14],[269,15,269,19],[269,20,269,24],[269,25,269,29],[268,5,268,9],[268,10,268,14],[268,15,268,19],[268,20,268,24],[268,25,268,29],[267,5,267,9],[267,10,267,14],[267,15,267,19],[267,20,267,24],[267,25,267,29],[266,5,266,9],[266,10,266,14],[266,15,266,19],[266,20,266,24],[266,25,266,29],[265,5,265,9],[265,10,265,14],[265,15,265,19],[265,20,265,24],[265,25,265,29],[264,5,264,9],[264,10,264,14],[264,15,264,19],[264,20,264,24],[264,25,264,29],[263,5,263,9],[263,10,263,14],[263,15,263,19],[263,20,263,24],[263,25,263,29],[262,5,262,9],[262,10,262,14],[262,15,262,19],[262,20,262,24],[262,25,262,29],[261,5,261,9],[261,10,261,14],[261,15,261,19],[261,20,261,24],[261,25,261,29],[260,5,260,9],[260,10,260,14],[260,15,260,19],[260,20,260,24],[260,25,260,29],[259,5,259,9],[259,10,259,14],[259,15,259,19],[259,20,259,24],[259,25,259,29],[258,5,258,9],[258,10,258,14],[258,15,258,19],[258,20,258,24],[258,25,258,29],[257,5,257,9],[257,10,257,14],[257,15,257,19],[257,20,257,24],[257,25,257,29],[256,5,256,9],[256,10,256,14],[256,15,256,19],[256,20,256,24],[256,25,256,29],[255,5,255,9],[255,10,255,14],[255,15,255,19],[255,20,255,24],[255,25,255,29],[254,5,254,9],[254,10,254,14],[254,15,254,19],[254,20,254,24],[254,25,254,29],[253,5,253,9],[253,10,253,14],[253,15,253,19],[253,20,253,24],[253,25,253,29],[252,5,252,9],[252,10,252,14],[252,15,252,19],[252,20,252,24],[252,25,252,29],[251,5,251,9],[251,10,251,14],[251,15,251,19],[251,20,251,24],[251,25,251,29],[250,5,250,9],[250,10,250,14],[250,15,250,19],[250,20,250,24],[250,25,250,29],[249,5,249,9],[249,10,249,14],[249,15,249,19],[249,20,249,24],[249,25,249,29],[248,5,248,9],[248,10,248,14],[248,15,248,19],[248,20,248,24],[248,25,248,29],[247,5,247,9],[247,10,247,14],[247,15,247,19],[247,20,247,24],[247,25,247,29],[246,5,246,9],[246,10,246,14],[246,15,246,19],[246,20,246,24],[246,25,246,29],[245,5,245,9],[245,10,245,14],[245,15,245,19],[245,20,245,24],[245,25,245,29],[244,5,244,9],[244,10,244,14],[244,15,244,19],[244,20,244,24],[244,25,244,29],[243,5,243,9],[243,10,243,14],[243,15,243,19],[243,20,243,24],[243,25,243,29],[242,5,242,9],[242,10,242,14],[242,15,242,19],[242,20,242,24],[242,25,242,29],[241,5,241,9],[241,10,241,14],[241,15,241,19],[241,20,241,24],[241,25,241,29],[240,5,240,9],[240,10,240,14],[240,15,240,19],[240,20,240,24],[240,25,240,29],[239,5,239,9],[239,10,239,14],[239,15,239,19],[239,20,239,24],[239,25,239,29],[238,5,238,9],[238,10,238,14],[238,15,238,19],[238,20,238,24],[238,25,238,29],[237,5,237,9],[237,10,237,14],[237,15,237,19],[237,20,237,24],[237,25,237,29],[236,5,236,9],[236,10,236,14],[236,15,236,19],[236,20,236,24],[236,25,236,29],[235,5,235,9],[235,10,235,14],[235,15,235,19],[235,20,235,24],[235,25,235,29],[234,5,234,9],[234,10,234,14],[234,15,234,19],[234,20,234,24],[234,25,234,29],[233,5,233,9],[233,10,233,14],[233,15,233,19],[233,20,233,24],[233,25,233,29],[232,5,232,9],[232,10,232,14],[232,15,232,19],[232,20,232,24],[232,25,232,29],[231,5,231,9],[231,10,231,14],[231,15,231,19],[231,20,231,24],[231,25,231,29],[230,5,230,9],[230,10,230,14],[230,15,230,19],[230,20,230,24],[230,25,230,29],[229,5,229,9],[229,10,229,14],[229,15,229,19],[229,20,229,24],[229,25,229,29],[228,5,228,9],[228,10,228,14],[228,15,228,19],[228,20,228,24],[228,25,228,29],[227,5,227,9],[227,10,227,14],[227,15,227,19],[227,20,227,24],[227,25,227,29],[226,5,226,9],[226,10,226,14],[226,15,226,19],[226,20,226,24],[226,25,226,29],[225,5,225,9],[225,10,225,14],[225,15,225,19],[225,20,225,24],[225,25,225,29],[224,5,224,9],[224,10,224,14],[224,15,224,19],[224,20,224,24],[224,25,224,29],[223,5,223,9],[223,10,223,14],[223,15,223,19],[223,20,223,24],[223,25,223,29],[222,5,222,9],[222,10,222,14],[222,15,222,19],[222,20,222,24],[222,25,222,29],[221,5,221,9],[221,10,221,14],[221,15,221,19],[221,20,221,24],[221,25,221,29],[220,5,220,9],[220,10,220,14],[220,15,220,19],[220,20,220,24],[220,25,220,29],[219,5,219,9],[219,10,219,14],[219,15,219,19],[219,20,219,24],[219,25,219,29],[218,5,218,9],[218,10,218,14],[218,15,218,19],[218,20,218,24],[218,25,218,29],[217,5,217,9],[217,10,217,14],[217,15,217,19],[217,20,217,24],[217,25,217,29],[216,5,216,9],[216,10,216,14],[216,15,216,19],[216,20,216,24],[216,25,216,29],[215,5,215,9],[215,10,215,14],[215,15,215,19],[215,20,215,24],[215,25,215,29],[214,5,214,9],[214,10,214,14],[214,15,214,19],[214,20,214,24],[214,25,214,29],[213,5,213,9],[213,10,213,14],[213,15,213,19],[213,20,213,24],[213,25,213,29],[212,5,212,9],[212,10,212,14],[212,15,212,19],[212,20,212,24],[212,25,212,29],[211,5,211,9],[211,10,211,14],[211,15,211,19],[211,20,211,24],[211,25,211,29],[210,5,210,9],[210,10,210,14],[210,15,210,19],[210,20,210,24],[210,25,210,29],[209,5,209,9],[209,10,209,14],[209,15,209,19],[209,20,209,24],[209,25,209,29],[208,5,208,9],[208,10,208,14],[208,15,208,19],[208,20,208,24],[208,25,208,29],[207,5,207,9],[207,10,207,14],[207,15,207,19],[207,20,207,24],[207,25,207,29],[206,5,206,9],[206,10,206,14],[206,15,206,19],[206,20,206,24],[206,25,206,29],[205,5,205,9],[205,10,205,14],[205,15,205,19],[205,20,205,24],[205,25,205,29],[204,5,204,9],[204,10,204,14],[204,15,204,19],[204,20,204,24],[204,25,204,29],[203,5,203,9],[203,10,203,14],[203,15,203,19],[203,20,203,24],[203,25,203,29],[202,5,202,9],[202,10,202,14],[202,15,202,19],[202,20,202,24],[202,25,202,29],[201,5,201,9],[201,10,201,14],[201,15,201,19],[201,20,201,24],[201,25,201,29],[200,5,200,9],[200,10,200,14],[200,15,200,19],[200,20,200,24],[200,25,200,29],[199,5,199,9],[199,10,199,14],[199,15,199,19],[199,20,199,24],[199,25,199,29],[198,5,198,9],[198,10,198,14],[198,15,198,19],[198,20,198,24],[198,25,198,29],[197,5,197,9],[197,10,197,14],[197,15,197,19],[197,20,197,24],[197,25,197,29],[196,5,196,9],[196,10,196,14],[196,15,196,19],[196,20,196,24],[196,25,196,29],[195,5,195,9],[195,10,195,14],[195,15,195,19],[195,20,195,24],[195,25,195,29],[194,5,194,9],[194,10,194,14],[194,15,194,19],[194,20,194,24],[194,25,194,29],[185,5,185,9],[185,10,185,14],[185,15,185,19],[185,20,185,24],[185,25,185,29],[184,5,184,9],[184,10,184,14],[184,15,184,19],[184,20,184,24],[184,25,184,29],[183,5,183,9],[183,10,183,14],[183,15,183,19],[183,20,183,24],[183,25,183,29],[182,5,182,9],[182,10,182,14],[182,15,182,19],[182,20,182,24],[182,25,182,29],[181,5,181,9],[181,10,181,14],[181,15,181,19],[181,20,181,24],[181,25,181,29],[180,5,180,9],[180,10,180,14],[180,15,180,19],[180,20,180,24],[180,25,180,29],[179,5,179,9],[179,10,179,14],[179,15,179,19],[179,20,179,24],[179,25,179,29],[178,5,178,9],[178,10,178,14],[178,15,178,19],[178,20,178,24],[178,25,178,29],[177,5,177,9],[177,10,177,14],[177,15,177,19],[177,20,177,24],[177,25,177,29],[176,5,176,9],[176,10,176,14],[176,15,176,19],[176,20,176,24],[176,25,176,29],[175,5,175,9],[175,10,175,14],[175,15,175,19],[175,20,175,24],[175,25,175,29],[174,5,174,9],[174,10,174,14],[174,15,174,19],[174,20,174,24],[174,25,174,29],[173,5,173,9],[173,10,173,14],[173,15,173,19],[173,20,173,24],[173,25,173,29],[172,5,172,9],[172,10,172,14],[172,15,172,19],[172,20,172,24],[172,25,172,29],[171,5,171,9],[171,10,171,14]],"merged_total":2040,"flags":["merged_cut"]}
["Объяснительная (свод) к сведениям о результатах проведенных контрольных мероприятий"]
[{"$f":"CONCATENATE('1. Начальные данные'!D18,\" \",'1. Начальные данные'!F18)","v":"31 декабря 2017 года"}]
[{"$f":"'1. Начальные данные'!D17","v":"МР Нуримановский район РБ"}]
[null,null,null,null,null,null,null,null,null,null,null,null,null,null,null,null,null,null,null,null,null,null,null,null,null,null,"в тыс.руб."]
["Наименование","Номер",null,null,null,"Итого",null,null,null,null,"В использовании средств"]
[null,null,null,null,null,null,null,null,null,null,"бюджета РБ",null,null,null,null,"бюджета МО",null,null,null,null,"полученных от предпр-ой и иной приносящей доход деятельности",null,null,null,null,"прочих"]
[1,"2",null,null,null,3,null,null,null,null,4,null,null,null,null,5,null,null,null,null,6,null,null,null,null,7]
["СУММА ФИНАНСОВЫХ НАРУШЕНИЙ",16,null,null,null,{"$f":"F9+F41+F124+F126+F130+F172+F175+F266","v":3313.2999999999997},null,null,null,null,{"$f":"K9+K41+K124+K126+K130+K172+K175+K266","v":0},null,null,null,null,{"$f":"P9+P41+P124+P126+P130+P172+P175+P266","v":3313.2999999999997},null,null,null,null,{"$f":"U9+U41+U124+U126+U130+U172+U175+U266","v":0},null,null,null,null,{"$f":"Z9+Z41+Z124+Z126+Z130+Z172+Z175+Z266","v":0}]
["Нецелевое использование средств","17",null,null,null,{"$f":"SUM(F10:J40)","v":27},null,null,null,null,{"$f":"SUM(K10:O40)","v":0},null,null,null,null,{"$f":"SUM(P10:T40)","v":27},null,null,null,null,{"$f":"SUM(U10:Y40)","v":0},null,null,null,null,{"$f":"SUM(Z10:AD40)","v":0}]
["Использование бюджетных кредитов не по назначению","17.1.2.19.",null,null,null,{"$f":"SUM(K10:AD10)","v":0}]
["Не соблюдение условий возмездности и возвратности при предоставлении бюджетных кредитов","17.1.2.20.",null,null,null,0]
["Выделение и направление средств бюджетной системы организациям, учредительными документами которых не предусмотрено осуществление соответствующей деятельности. ","17.1.2.34.",null,null,null,0]
["Распределение главными распорядителями (распорядителями) бюджетных ассигнований и лимитов бюджетных обязательств распорядителям и получателям бюджетных средств, не включенным в реестр расходных обязательств.","17.1.2.35.",null,null,null,0]
["Финансирование объектов и строек, не включенных в Перечень строек и объектов для государственных (муниципальных) нужд; капитальных вложений, не предусмотренных проектно-сметной документацией или при отсутствии утвержденной проектно-сметной документации на соответствующие объекты.","17.1.2.6.",null,null,null,0]
["Использование бюджетных средств на оплату расходов на строительство объектов и строек, не включенных в титульные списки, по которым финансирование в установленном порядке не предусмотрено.","17.1.2.7.",null,null,null,0]
["Направление средств целевых бюджетных фондов  в нарушение порядка, установленного соответствующими нормативно-правовыми актами.","17.1.2.8.",null,null,null,{"$f":"SUM(K16:AD16)","v":0}]
["Использование бюджетных средств (принятие и исполнение денежных обязательств) на оплату расходов, подлежащих исполнению за счет средств других бюджетов бюджетной системы РФ.","17.2.1.1.",null,null,null,0]
["Использование бюджетных средств на оплату расходов на строительство объектов и строек, не включенных в титульные списки, по которым финансирование в установленном порядке не предусмотрено.","17.2.1.10.",null,null,null,0]
["Использование средств, выделенных на проведение текущего и (или) капитального ремонта в качестве оплаты работ по реконструкции, новому строительству и наоборот.","17.2.1.11.",null,null,null,0]
["Использование остатка бюджетных средств на конец года на покрытие расходов следующего года (включая остаток в кассе и в подотчете сотрудников) в нарушение нормативно-правовых актов и (или) условий государственных контрактов (договоров).","17.2.1.12.",null,null,null,0]
["Восстановление за счет бюджетных средств  расходов, произведенных ранее за счет иных источников.","17.2.1.13.",null,null,null,0]
["Несанкционированное перераспределение бюджетных средств, выделенных по одному разделу / подразделу классификации расходов бюджета на оплату расходов, относимых по другому разделу / подразделу. ","17.2.1.14.",null,null,null,0]
["Несанкционированное перераспределение бюджетных средств, выделенных по одной целевой статье классификации расходов бюджета на оплату расходов, относимых по другой статье (в том числе по средствам, полученным в кассу бюджетного учреждения). ","17.2.1.15.",null,null,null,0]
["Несанкционированное перераспределение бюджетных средств, выделенных по одному виду расходов классификации расходов бюджета на оплату расходов, относимых по другому виду расходов (в том числе по средствам, полученным в кассу бюджетного учреждения).","17.2.1.16.",null,null,null,0]
["Несанкционированное перераспределение средств, выделенных по одной статье расходов операций сектора государственного управления на оплату расходов, относимых по другой статье (в том числе по средствам, полученным в кассу бюджетного учреждения).","17.2.1.17.",null,null,null,{"$f":"SUM(K25:AD25)","v":0}]
["Направление и использование бюджетных средств по целевым программам при отсутствии необходимых оправдательных документов.","17.2.1.18.",null,null,null,0]
["Использование субвенций и субсидий в нарушение условий их предоставления.","17.2.1.19.",null,null,null,0]
["Использование бюджетных средств (принятие и исполнение денежных обязательств) на оплату расходов, которые должны осуществляться за счет доходов от предпринимательской и иной приносящей доход деятельности или иных источников. ","17.2.1.2.",null,null,null,27,null,null,null,null,null,null,null,null,null,27]
["Другие нарушения в части нецелевого использования бюджетных средств","17.2.1.20.",null,null,null,0]
["Использование бюджетных средств (принятие и исполнение денежных обязательств) на оплату пособий, компенсаций, субсидий и других денежных выплат лицам, не имеющим правовых оснований для их получения.","17.2.1.3.",null,null,null,0]
["Перечисление неиспользованных остатков бюджетных средств на счета других юридических лиц или на счет по учету средств, полученных от предпринимательской и иной приносящей доход деятельности.","17.2.1.4.",null,null,null,0]
["Использование бюджетных средств на оплату товаров, работ, услуг, не связанных с деятельностью получателя бюджетных средств, на оказание финансовой помощи коммерческим организациям или на их создание.","17.2.1.5.",null,null,null,0]
["Использование бюджетных средств на оплату расходов, не предусмотренных сметой доходов и расходов (бюджетной сметой с 01.01.2008 года), либо иным правовым основаниям их получения в финансовом году.","17.2.1.6.",null,null,null,0]
["Использование средств целевого бюджетного финансирования (в рамках реализации приоритетных национальных проектов, целевых программ и т.д.), бюджетных кредитов, бюджетных инвестиций не по назначению - на цели, не соответствующие условиям, определенным соответствующим нормативным актом.","17.2.1.7.",null,null,null,0]
["Использование бюджетных средств получателями на цели, не соответствующие условиям, определенным законодательством, регулирующим их деятельность.","17.2.1.8.",null,null,null,0]
["Использование бюджетных средств на оплату расходов на строительство объектов и строек, не предусмотренных проектно-сметной документацией или при отсутствии утвержденной проектно-сметной документации, экспертизы проекта.","17.2.1.9.",null,null,null,0]
["Нецелевое использование субсидии автономным  и бюджетным учреждением ","17.2.1.20.1.",null,null,null,0]
["Нецелевое использование субсидии автономным и бюджетным учреждением, предусмотренныена содержание имущества ","17..2.1.20.2.",null,null,null,0]
["Нецелевое использование субсидии. Нарушение по  условиям соглашений в части софинансирования  соответствующих обязательств за счет средств местного бюджета  (полученная субсидия, предусмотренная  по соглашению направлена на иные цели )","17..2.1.20.3",null,null,null,{"$f":"SUM(K39:AD39)","v":0}]
["Расходование средств, полученных от предпринимательской и иной приносящей доход деятельности, на цели, не предусмотренные сметой доходов и расходов (бюджетной сметой с 01.01.2008 года) бюджетного учреждения.","17.5.2.2.",null,null,null,0]
["Неэффективное использование материальных ресурсов и денежных средств","18",null,null,null,{"$f":"SUM(K41:AD41)","v":103},null,null,null,null,{"$f":"SUM(K42:O123)","v":0},null,null,null,null,{"$f":"SUM(P42:T123)","v":103},null,null,null,null,{"$f":"SUM(U42:Y123)","v":0},null,null,null,null,{"$f":"SUM(Z42:AD123)","v":0}]
["Неправомерное предоставление льгот, отсрочек, рассрочек по обязательным платежам в бюджет, налоговых кредитов и налоговых инвестиционных кредитов, а также отсутствие соответвующего контроля за выполнением условий, на которых были предоставлены льготы, отсрочки, рассрочки по платежам в бюджет, налоговые кредиты и налоговые инвестиционные кредиты.","18.1.1.1.",null,null,null,{"$f":"SUM(K42:AD42)","v":0}]
["Нарушение порядка распоряжения объектом нежилого фонда, находящимся в государственной собственности Республики Башкортостан или муниципальной собственности, и использования указанного объекта. Предоставление государственного (муниципального) имущества без согласия собственника в пользование, без получения доходов от его использования в соответствующий бюджет.","18.1.1.11.",null,null,null,{"$f":"SUM(K43:AD43)","v":0}]
["Неправомерное предоставление льгот, отсрочек, рассрочек по платежам за пользование государственным (муниципальным) имуществом.","18.1.1.13.",null,null,null,0]
["Неправомерное списание задолженности по налогам и другим обязательным платежам.","18.1.1.2.",null,null,null,0]
["Непринятие мер по взысканию недоимки по налогам, сборам и обязательным платежам в доход бюджета, в том числе отсутствие контроля за правильностью исчисления, полнотой и своевременностью уплаты, начисления и учета, взыскания и принятия решений о возврате (зачете) излишне уплаченных (взысканных) платежей, пеней и штрафов по ним. ","18.1.1.3.",null,null,null,0]
["Неперечисление (несвоевременное или неполное перечисление) в бюджет средств, полученных от распоряжения государственной (муниципальной) собственностью, использования государственной (муниципальной) собственности, предоставления государственных (муниципальных) услуг.","18.1.1.5.",null,null,null,0]
["Неправомерное использование доходов, полученных сверх утвержденных законом о бюджете.","18.1.2.10.",null,null,null,0]
["Неправомерное финансирование федеральных органов государственной власти и организаций за счет средств бюджетов субъектов РФ и (или) местных бюджетов (при отсутствии правовых оснований).","18.1.2.11.",null,null,null,0]
["Неправомерное финансирование расходных обязательств Республики Башкортостан за счет средств местных бюджетов (при отсутствии правовых оснований).","18.1.2.12.",null,null,null,0]
["Неправомерное финансирование местных органов власти и организаций за счет средств бюджета Республики Башкортостан (при отсутствии правовых оснований).","18.1.2.13.",null,null,null,0]
["Нарушение сроков подтверждения денежных обязательств, влекущее выплату пени, штрафов.","18.1.2.18.",null,null,null,0]
["Не соблюдение условий возмездности и возвратности при предоставлении бюджетных кредитов","18.1.2.20.",null,null,null,0]
["Предоставление бюджетных кредитов с нарушением  закона (решения) о бюджете.","18.1.2.22.",null,null,null,0]
["Неправомерное осуществление государственных (муниципальных) заимствований.","18.1.2.26.",null,null,null,0]
["Предоставление бюджетных инвестиций без оформления доли Республики Башкортостан (муниципального образования) в уставных (складочных) капиталах юридических лиц.","18.1.2.29.",null,null,null,0]
["Осуществление бюджетных инвестиций в объекты государственной и муниципальной собственности с нарушением установленного порядка.","18.1.2.30.",null,null,null,0]
["Нарушение порядка размещения бюджетных средств на банковских депозитах или передачи их в доверительное управление.Неэффективное размещение государственных средств в кредитных организациях.","18.1.2.33.",null,null,null,0]
["Другие нарушения, влекущие правонарушения в сфере исполнения бюджета по расходам.","18.1.2.36.",null,null,null,0]
["Финансирование расходов, не предусмотренных законом о бюджете и (или) бюджетной росписью.","18.1.2.5.",null,null,null,0]
["Финансирование расходов, не предусмотренных законом о бюджете и (или) бюджетной росписью.","18.1.2.5.",null,null,null,0]
["Направление средств резервных фондов на цели, отличные от их назначения (в нарушение порядка, установленного соответствующими нормативно-правовыми актами).","18.1.2.9.",null,null,null,0]
["Начисление выплат по заработной плате по вредности","18.2.2.3.",null,null,null,0]
["Закупки товаров, работ и услуг сверх установленных законодательством сумм без заключения государственных (муниципальных) контрактов (в т.ч. необоснованное дробление объемов работ, закупок при размещении заказов).","18.2.3.1.",null,null,null,0]
["Приобретение товарно-материальных ценностей, выполнение работ, оказание услуг по завышенным ценам в результате указания в конкурсной и иной документации завышенной начальной цены контракта по сравнению со средней рыночной ценой в регионе. ","18.2.3.10.",null,null,null,0]
["Иные нарушения при осуществлении государственных (муниципальных) закупок и исполнении государственных (муниципальных) контрактов, договоров. ","18.2.3.11.",null,null,null,43.3,null,null,null,null,null,null,null,null,null,43.3]
["Иные нарушения при осуществлении государственных (муниципальных) закупок и исполнении государственных (муниципальных) контрактов, договоров (приобретение жилых помещений для детей-сирот не соответствующих техническому заданию контракта). ","18.2.3.11.1.",null,null,null,0]
["Закупки, в которых выявлены нарушения при применении заказчиком мер ответственности и совершения иных действий в случае нарушения поставщиком (подрядчиком, исполнителем) условий контракта","18.2.3.11.2.",null,null,null,0]
["Закупки, в которых выявлено  несоответствие поставленного товара  выполненной работы (ее результата) или оказанной услуги условиям контракта","18.2.3.11.3.",null,null,null,0]
["Закупки, в которых выявлены нарушения в части своевременности, полноты и достоверности отражения в документах учета поставленного товара. Выполненной работы (ее результата) или оказанной услуги","18.2.3.11.4.",null,null,null,0]
["Закупки, в которых выявлено несоответствие использования поставленного товара, выполненной работы (ее результата) или оказанной услуги целям осуществления закупки","18.2.3.11.5.",null,null,null,0]
["Неправомерное получение кредита бюджетным учреждением","18.2.3.12.",null,null,null,0]
["Дебиторская задолженность по оплате товаров (работ, услуг) (в случаях, когда авансирование договором не предусмотрено, либо перечисление аванса произведено в размерах, превышающих размеры, установленные действующим законодательством).","18.2.3.13.",null,null,null,0]
["Дебиторская задолженность по оплате работ по  текущему и капитальному ремонту, реконструкции и строительству (в случаях, когда авансирование договором не предусмотрено, либо перечисление аванса произведено в размерах, превышающих размеры, установленные действующим законодательством).","18.2.3.14.",null,null,null,0]
["Несоблюдение нормативов финансовых затрат на оказание государственных или муниципальных услуг.","18.2.3.15.",null,null,null,0]
["Не соблюдение стандартов расходов на содержание органов государственной власти (местного самоуправления) (в т.ч. завышение норм занимаемых площадей).","18.2.3.16.",null,null,null,0]
["Расходование бюджетных средств с затратами сверх необходимого (возможного) на получение требуемого результата.","18.2.3.17.",null,null,null,0]
["Расходование бюджетных средств без достижения требуемого результата.","18.2.3.18.",null,null,null,33.1,null,null,null,null,null,null,null,null,null,33.1]
["Оплата работ, которые должны выполняться для бюджетных учреждений бесплатно.","18.2.3.19.",null,null,null,0]
["Осуществление государственных, муниципальных закупок, размещения заказа на поставки товаров, выполнение работ, оказание услуг для государственных и муниципальных нужд, без проведения процедур, предусмотренных законодательством.","18.2.3.2.",null,null,null,0]
["Отсутствие, несвоевременное принятие локальных правовых актов, определяющих порядок использования средств бюджетной системы.","18.2.3.20.",null,null,null,0]
["Неэффективное использование бюджетных средств вследствие приобретения или списания некачественной продукции или продукции с истекшим сроком хранения (использования).","18.2.3.21.",null,null,null,0]
["Неэффективное использование бюджетных средств вследствие реализации материальных ресурсов по заниженным ценам, либо по ценам приобретения без учета действующих на момент реализации рыночных цен.","18.2.3.22.",null,null,null,0]
["Неэффективное использование бюджетных средств вследствие необоснованного применения норм естественной убыли.","18.2.3.23.",null,null,null,0]
["Неэффективное использование бюджетных средств вследствие неоприходования стоимости материалов, полученных от разборки объектов основных средств.","18.2.3.24.",null,null,null,0]
["Неэффективное использование бюджетных средств в результате возмещения учреждением (организацией) материального ущерба и морального вреда, причиненного действиями работника.","18.2.3.25.",null,null,null,0]
["Неэффективное использование бюджетных средств вследствие приобретения неиспользуемого оборудования, либо ремонт такого оборудования и имущества.","18.2.3.26.",null,null,null,0]
["Неэффективное использование бюджетных средств вследствие недобора платы за проживание и коммунальные услуги с лиц, занимающих жилые помещения, состоящие на балансе учреждения.","18.2.3.27.",null,null,null,0]
["Неэффективное использование бюджетных средств вследствие образования дебиторской задолженности по заработной плате за уволенными работниками.","18.2.3.28.",null,null,null,{"$f":"SUM(K89:AD89)","v":0}]
["Образование кредиторской задолженности вследствие принятия организаций дополнительных обязательств в результате нарушения режима экономии средств.","18.2.3.29.",null,null,null,0]
["Не соблюдение требований законодательства о размещении заказов на поставки товаров, выполнение работ, оказание услуг для государственных и муниципальных нужд при осуществлении конкурсных, аукционных процедур и процедур запроса котировок.","18.2.3.3.",null,null,null,0]
["Неполное либо несвоевременное перечисление бюджетным учреждением платежей в бюджет и государственные внебюджетные фонды, повлекшее начисление финансовых санкций.","18.2.3.30.",null,null,null,0]
["Иные нарушения в части неэффективного использования бюджетных средств.","18.2.3.31.",null,null,null,8.6,null,null,null,null,null,null,null,null,null,8.6]
["Иные нарушения в части неэффективного использования бюджетных средств. Оплата транспортного налога за неэксплуатируемый транспорт.                                                                                                                        ","18.2.3.32.",null,null,null,5.6,null,null,null,null,null,null,null,null,null,5.6]
["Неэффективное использование субсидии автономными  и бюджетными учреждениями                                                            ","18.2.3.33.",null,null,null,0]
["Иные нарушения в части неэффективного использования бюджетных средств. Нарушения по энергосбережению и повышению энергетической ","18.2.3.34.",null,null,null,0]
["Иные нарушения в части неэффективного использования бюджетных средств. Погашение кредиторской задолженности, образованной в прошлом периоде при наличии ЛБО","18.2.3.35.",null,null,null,0]
["Другие неэффективные расходы. Неэффективные расходы средств, выделенных на реализацию адресной программы Республики Башкортостан на период 2011 - 2015 годов по замене и модернизации лифтов, отработавших нормативный срок службы.","18.18.2.3.36.",null,null,null,0]
["Другие неэффективные расходы. Неэффективные нарушения в использовании средств, выделенных на софинансирование расходов по модернизации систем наружного освещения населенных пунктов Республики Башкортостан на 2011–2015 годы.","18.18.2.3.37.",null,null,null,0]
["Другие неэффективные расходы. Неэффективные нарушения использовании средств, выделенных на реализацию республиканской адресной программы по проведению капитального ремонта многоквартирных домов","18.18.2.3.38.",null,null,null,0]
["Иные нарушения в части неэффективного использования бюджетных средств. Непринятие мер по обеспечению снижения количества потребляемых коммунальных услуг ","18.18.2.3.39.",null,null,null,0]
["Иные нарушения в части неэффективного использования бюджетных средств. В образовательных учреждениях при отсутствии лицензии на осуществление медицинской деятельности произведены расходы по выплате заработной плате медицинским сестрам  какие функция она выполняет, (введено в штат. Расписание должность медсестры, а должны по согл-ю с МО, МЗ РБ работать  медперсонал с больницы)","18.18.2.3.40.",null,null,null,0]
["Иные нарушения в части неэффективного использования  средств. (Хозяйствующий субъект) ","18.18.2.3.41.",null,null,null,0]
["Заключение государственных (муниципальных) контрактов с единственным поставщиком (в установленных случаях) без соблюдения установленных процедур и с нарушением закона.","18.2.3.4.",null,null,null,0]
["Неэффективное использование бюджетных средств вследствие нарушений в оформлении государственных (муниципальных) контрактов, договоров, актов выполненных работ, других документов.","18.2.3.5.",null,null,null,0]
["Неисполнение поставщиками (подрядчиками) условий государственных (муниципальных) контрактов, договоров по соблюдению договорных цен.","18.2.3.6.",null,null,null,0]
["Заключение государственных (муниципальных) контрактов без установления обязательных условий, несоответствия конкурсной документации.","18.2.3.7.",null,null,null,0]
["Неэффективное использование бюджетных средств вследствие неприменения штрафных санкций к поставщикам и подрядчикам, нарушившим обязательства по условиям государственного (муниципального) контракта, договора.","18.2.3.8.",null,null,null,0]
["Неэффективное использование бюджетных средств вследствие заключения сделок, признанных судом недействительными.","18.2.3.9.",null,null,null,0]
["Безвозмездная передача государственного (муниципального) имущества (собственности) при отсутствии достаточных на то оснований. Передача имущества другим юридическим и физическим лицам без разрешения собственника.","18.3.1.13.",null,null,null,0]
["Непередача, неполная, несвоевременная передача государственного (муниципального) имущества. Передача имущества без соответствующего документального оформления.","18.3.1.15.",null,null,null,0]
["Отсутствие контроля за использованием объектов государственной (муниципальной) собственности.","18.3.1.16.",null,null,null,0]
["Затраты государственного (муниципального) имущества сверх необходимого (возможного) на получение требуемого результата.","18.3.1.17.",null,null,null,0]
["Затраты государственного имущества без достижения требуемого результата.","18.3.1.18.",null,null,null,0]
["Неосвоение, неиспользование (неполное использование) имущества.  ","18.3.1.19.",null,null,null,12.4,null,null,null,null,null,null,null,null,null,12.4]
["Неэффективное управление объектами государственной и муниципальной собственности, убыточная, неприбыльная деятельность государственных и муниципальных унитарных предприятий, акционерных обществ и других организаций с участием государства; получение меньших, чем возможно, прибыли, дивидендов по акциям.","18.3.1.20.",null,null,null,0]
["Неэффективное использование бюджетных средств в результате ущерба, причиненного дорожно-транспортным происшествием, не возмещенного виновным лицом.","18.3.1.21.",null,null,null,0]
["Другие нарушения при распоряжении государственным (муниципальным) имуществом","18.3.1.22.",null,null,null,0]
["Неправомерное предоставление в пользование или залог объектов государственной (муниципальной) собственности","18.3.1.9.",null,null,null,0]
["Направление средств, полученных от предпринимательской и иной приносящей доход деятельности, на цели, не предусмотренные нормативными правовыми актами и разрешительными документами.","18.5.2.1.",null,null,null,0]
["Невыполнение договорных обязательств; непринятие мер по погашению кредиторской задолженности.","18.5.2.8.",null,null,null,0]
["Другие нарушения при осуществлении бюджетными учреждениями предпринимательской и иной приносящей доход деятельности.","18.5.2.9.",null,null,null,0]
["Нарушения при распоряжении имущества автономных и бюджетных  учреждений (особо ценного имущества,  движимого имущества и недвиженого имущества,  находящегося в собственности субъекта Российской Федерации, находящегося в муниципальной собственности)","18.3.1.23.",null,null,null,0]
["Недостача денежных средств","19",null,null,null,0,null,null,null,null,{"$f":"SUM(K125)","v":0},null,null,null,null,{"$f":"SUM(P125)","v":0},null,null,null,null,{"$f":"SUM(U125)","v":0},null,null,null,null,{"$f":"SUM(Z125)","v":0}]
["Недостача наличных денежных средств, бланков строгой отчетности в кассе организации. ","19.2.2.55.",null,null,null,0]
["Недостача материальных ресурсов","20",null,null,null,0,null,null,null,null,{"$f":"SUM(K127:O129)","v":0},null,null,null,null,{"$f":"SUM(P127:T129)","v":0},null,null,null,null,{"$f":"SUM(U127:Y129)","v":0},null,null,null,null,{"$f":"SUM(Z127:AD129)","v":0}]
["Недостача государственного (муниципального) имущества.","20.3.1.3.",null,null,null,0]
["Недостача товарно-материальных ценностей.","20.2.2.54.",null,null,null,0]
["Нарушение порядка приватизации государственного (муниципального) имущества","20.3.1.12.",null,null,null,0]
["Недопоступление платежей в бюджет","21",null,null,null,0,null,null,null,null,{"$f":"SUM(K131:O151)+K152+K155","v":0},null,null,null,null,{"$f":"SUM(P131:T151)+P152+P155","v":0},null,null,null,null,{"$f":"SUM(U131:Y151)+U152+U155","v":0},null,null,null,null,{"$f":"SUM(Z131:AD151)+Z152+Z155","v":0}]
["Непоступление либо недопоступление средств в бюджет от реализация государственной (муниципальной) собственности (в т.ч. реализация государственной (муниципальной) собственности по заниженной стоимости, снижение стоимости реализуемого имущества вследствие естественной убыли или его порчи).","21.1.1.10.",null,null,null,0]
["Нарушение порядка распоряжения объектом нежилого фонда, находящимся в государственной собственности Республики Башкортостан или муниципальной собственности, и использования указанного объекта. Предоставление государственного (муниципального) имущества без согласия собственника в пользование, без получения доходов от его использования в соответствующий бюджет.","21.1.1.11.",null,null,null,0]
["Непринятие мер по взысканию арендной платы за пользование государственным (муниципальным) имуществом. Занижение и недополучение размеров арендной платы за использование государственного (муниципального) имущества.","21.1.1.12.",null,null,null,0]
["Нарушение порядка зачисления средств в доход бюджета.","21.1.1.14.",null,null,null,0]
["Другие нарушения, влекущие недопоступление средств в доход бюджета. ","21.1.1.15.",null,null,null,0]
["Непринятие мер по взысканию недоимки по налогам, сборам и обязательным платежам в доход бюджета, в том числе отсутствие контроля за правильностью исчисления, полнотой и своевременностью уплаты, начисления и учета, взыскания и принятия решений о возврате (зачете) излишне уплаченных (взысканных) платежей, пеней и штрафов по ним. ","21.1.1.3.",null,null,null,0]
["Непринятие мер по своевременному и полному получению в бюджетную систему средств, предоставленных на возвратной основе, а также платы за пользование этими средствами (включая бюджетные кредиты).","21.1.1.4.",null,null,null,0]
["Неперечисление (несвоевременное или неполное перечисление) в бюджет средств, полученных от распоряжения государственной (муниципальной) собственностью, использования государственной (муниципальной) собственности, предоставления государственных (муниципальных) услуг.","21.1.1.5.",null,null,null,0]
["Неперечисление (несвоевременное или неполное перечисление) в доход бюджета взыскиваемых сумм принудительного изъятия (штрафов, конфискаций и др.), а также доходов, полученных в виде возмещения ущерба.","21.1.1.6.",null,null,null,0]
["Неперечисление (несвоевременное или неполное перечисление) в доход бюджета дебиторской задолженности прошлых лет, поступившей на счета получателей бюджетных средств в текущем году. ","21.1.1.7.",null,null,null,0]
["Неперечисление (несвоевременное или неполное перечисление) в бюджет установленной доли чистой прибыли государственными унитарными предприятиями (муниципальными унитарными предприятиями).","21.1.1.8.",null,null,null,0]
["Неперечисление (несвоевременное или неполное перечисление) в бюджет дивидендов по акциям (долям), принадлежащим Республике Башкортостан или муниципальному образованию (при наличии решения о выплате дивидендов).","21.1.1.9.",null,null,null,0]
["Не предъявления требований к возмещению сумм, уплаченных по муниципальной гарантии.","21.1.2.28.",null,null,null,0]
["Реализация государственной (муниципальной) собственности с получением меньших, чем было возможно, средств (в т.ч. реализация государственной собственности по заниженной стоимости, снижение стоимости реализуемого имущества вследствие естественной убыли или его порчи)","21.3.1.14.",null,null,null,0]
["Предоставление государственного (муниципального) имущества в аренду и субаренду без согласия собственника, без заключения договоров или без их регистрации в установленном порядке.","21.3.1.6.",null,null,null,0]
["Несоблюдение условий договора аренды, занижение размеров арендной платы за использование государственного и муниципального имущества, в том числе предоставление во временное пользование имущества излишней площади, чем предусмотрено договором; несоблюдение сроков оплаты по договорам. ","21.3.1.7.",null,null,null,0]
["Непринятие мер по взысканию арендной платы за пользование государственным (муниципальным) имуществом","21.3.1.8.",null,null,null,0]
["Неправомерное предоставление в пользование или залог объектов государственной (муниципальной) собственности","21.3.1.9.",null,null,null,0]
["Осуществление деятельности, не предусмотренной учредительными документами.","21.5.2.5.",null,null,null,0]
["Осуществление деятельности при отсутствии необходимых разрешений (лицензий, аттестации, аккредитации) или с их нарушением.","21.5.2.6.",null,null,null,0]
["Другие нарушения при осуществлении бюджетными учреждениями предпринимательской и иной приносящей доход деятельности.","21.5.2.9.",null,null,null,0]
["Налоговые платежи",22,null,null,null,0,null,null,null,null,{"$f":"SUM(K153:O154)","v":0},null,null,null,null,{"$f":"SUM(P153:T154)","v":0},null,null,null,null,{"$f":"SUM(U153:Y154)","v":0},null,null,null,null,{"$f":"SUM(Z153:AD154)","v":0}]
["Другие нарушения, влекущие недопоступление средств в доход бюджета","22.1.1.15.",null,null,null,{"$f":"SUM(K153:AD153)","v":0}]
["Предоставление государственного (муниципального) имущества в аренду и субаренду без согласия собственника, без заключения договоров или без их регистрации в установленном порядке.","22.3.1.6.",null,null,null,0]
["Неналоговые платежи",23,null,null,null,0,null,null,null,null,{"$f":"SUM(K156:O171)","v":0},null,null,null,null,{"$f":"SUM(P156:T171)","v":0},null,null,null,null,{"$f":"SUM(U156:Y171)","v":0},null,null,null,null,{"$f":"SUM(Z156:AD171)","v":0}]
["Непринятие мер по взысканию пени за несвоевременное перечисление в доход бюджета доли чистой прибыли муниципальных унитарных предприятий ","23.1.1.3.",null,null,null,0]
["Не погашены пени за несвовременную уплату процентов  по использованию бюджетных средств","23.1.1.4.",null,null,null,0]
["Неперечисление (несвоевременное или неполное перечисление) в бюджет средств, полученных от распоряжения государственной (муниципальной) собственностью, использования государственной (муниципальной) собственности, предоставления государственных (муниц","23.1.1.5.",null,null,null,0]
["Неперечисление (несвоевременное или неполное перечисление) в бюджет установленной доли чистой прибыли государственными унитарными предприятиями (муниципальными унитарными предприятиями)","23.1.1.8.",null,null,null,0]
["Непоступление либо недопоступление средств в бюджет от реализация государственной (муниципальной) собственности (в т.ч. реализация государственной (муниципальной) собственности по заниженной стоимости, снижение стоимости реализуемого имущества вследс","23.1.1.10.",null,null,null,0]
["Нарушение порядка распоряжения объектом нежилого фонда, находящимся в государственной собственности Республики Башкортостан или муниципальной собственности, и использования указанного объекта. Предоставление государственного (муниципального) имуществ","23.1.1.11.",null,null,null,0]
["Нарушение порядка приватизации государственного (муниципального) имущества","23.1.1.12.",null,null,null,0]
["Неправомерное предоставление льгот, отсрочек, рассрочек по платежам за пользование государственным (муниципальным) имуществом","23.1.1.13.",null,null,null,0]
["Средства, подлежащие перечислению в доход бюджета в виде  платы от найма жилых помещений не учитывались в доходах местного бюджета","23.1.1.14.",null,null,null,0]
["Невзысканны пени в бюджет по арендной плате за землю","23.1.1.15.",null,null,null,0]
["Предоставление государственного (муниципального) имущества в аренду и субаренду без согласия собственника, без заключения договоров или без их регистрации в установленном порядке.","23.3.1.6.",null,null,null,0]
["Несоблюдение условий договора аренды, занижение размеров арендной платы за использование государственного и муниципального имущества, в том числе предоставление во временное пользование имущества излишней площади, чем предусмотрено договором; несоблю","23.3.1.7.",null,null,null,0]
["Непринятие мер по взысканию арендной платы за пользование государственным (муниципальным) имуществом","23.3.1.8.",null,null,null,0]
["Неправомерное предоставление в пользование или залог объектов государственной (муниципальной) собственности","23.3.1.9.",null,null,null,0]
["Нарушение порядка приватизации государственного (муниципального) имущества","23.3.1.12.",null,null,null,0]
["Реализация государственной (муниципальной) собственности с получением меньших, чем было возможно, средств (в т.ч. реализация государственной собственности по заниженной стоимости, снижение стоимости реализуемого имущества вследствие естественной убыл","23.3.1.14.",null,null,null,0]
["Излишки материальных ценностей и денежных средств","24",null,null,null,3107.1,null,null,null,null,{"$f":"SUM(K173:O174)","v":0},null,null,null,null,{"$f":"SUM(P173:T174)","v":3107.1},null,null,null,null,{"$f":"SUM(U173:Y174)","v":0},null,null,null,null,{"$f":"SUM(Z173:AD174)","v":0}]
["Излишки товарно-материальных ценностей, денежных средств и бланков строгой отчетности.","24.2.2.56.",null,null,null,386.1,null,null,null,null,null,null,null,null,null,386.1]
["Наличие неучтенного, неоприходованного в установленном порядке государственного (муниципального) имущества.","24.3.1.4.",null,null,null,2721,null,null,null,null,null,null,null,null,null,2721]
["Неправомерное расходование денежных средств и материальных ресурсов","25",null,null,null,2.2000000000000002,null,null,null,null,{"$f":"SUM(K176:O265)","v":0},null,null,null,null,{"$f":"SUM(P176:T265)","v":2.2000000000000002},null,null,null,null,{"$f":"SUM(U176:Y265)","v":0},null,null,null,null,{"$f":"SUM(Z176:AD265)","v":0}]
["Излишнее списание продуктов питания вследствие неверного применения норм естественной убыли","25.2.2.16.",null,null,null,0]
["Излишнее либо неправомерное начисление отпускных (основные и дополнительные отпуска) и компенсации за неиспользованный отпуск, в том числе неправомерная выплата отпускных сотрудникам, отозванным из отпуска (начисление заработной платы и отпускных за один и тот же период), начисление отпускных в результате неверного расчета дней или неверного применения коэффициента с учетом начислений на выплаты по оплате труда.","25.2.2.6.",null,null,null,0.2,null,null,null,null,null,null,null,null,null,0.2]
["Неправомерное использование доходов, полученных сверх утвержденных законом о бюджете.","25.1.2.10.",null,null,null,0]
["Неправомерное финансирование федеральных органов государственной власти и организаций за счет средств бюджетов субъектов РФ и (или) местных бюджетов (при отсутствии правовых оснований).","25.1.2.11.",null,null,null,0]
["Неправомерное финансирование расходных обязательств Республики Башкортостан за счет средств местных бюджетов (при отсутствии правовых оснований).","25.1.2.12.",null,null,null,0]
["Неправомерное финансирование местных органов власти и организаций за счет средств бюджета Республики Башкортостан (при отсутствии правовых оснований).","25.1.2.13.",null,null,null,0]
["Предоставление бюджетных инвестиций без оформления доли Республики Башкортостан (муниципального образования) в уставных (складочных) капиталах юридических лиц.","25.1.2.29.",null,null,null,0]
["Предоставление субсидий юридическим лицам (за исключением субсидий государственным, муниципальным учреждениям), индивидуальным предпринимателям, физическим лицам - производителям товаров, работ, услуг и некоммерческим организациям  в нарушение порядка, установленного соответствующими нормативно-правовыми актами.","25.1.2.31.",null,null,null,0]
["Неправомерное финансирование расходов путем проведения зачета денежных средств.","25.1.2.32.",null,null,null,0]
["Нарушение порядка размещения бюджетных средств на банковских депозитах или передачи их в доверительное управление.Неэффективное размещение государственных средств в кредитных организациях.","25.1.2.33.",null,null,null,0]
["Выделение и направление средств бюджетной системы организациям, учредительными документами которых не предусмотрено осуществление соответствующей деятельности. ","25.1.2.34.",null,null,null,0]
["Другие нарушения, влекущие правонарушения в сфере исполнения бюджета по расходам.","25.1.2.36.",null,null,null,0]
["Выделение главными распорядителями, распорядителями бюджетных средств и направление бюджетным учреждениям средств бюджета Республики Башкортостан и муниципальных бюджетов в нарушение казначейской системы исполнения бюджета или на иные счета получателей бюджетных средств.","25.1.2.4.",null,null,null,0]
["Содержание за счет выделенных бюджетных средств сверхлимитной численности персонала с учетом начислений на выплаты по оплате труда.","25.2.2.1.",null,null,null,0]
["Завышение объемных показателей деятельности учреждения, приводящее к неправильному определению размера оплаты труда руководителей.  ","25.2.2.10.",null,null,null,0]
["Иные нарушения в части оплаты труда, пособий и единого социального налога ","25.2.2.11.",null,null,null,0]
["Обучение за счет выделенных бюджетных средств учащихся или студентов, численностью сверх или менее установленного лимита.","25.2.2.12.",null,null,null,0]
["Начисления и выплаты стипендий, компенсаций и др. учащимся, студентам (в том числе обучаемым на договорной основе с полным возмещением затрат), учащимся (студентам) - сиротам и оставшимся без попечения родителей с нарушением действующего законодательства.","25.2.2.13.",null,null,null,{"$f":"SUM(K193:AD193)","v":0}]
["Иные нарушения в части расчетов с учащимися и студентами.","25.2.2.14.",null,null,null,0]
["Излишнее списание продуктов питания вследствие применения завышенных (необоснованных) норм","25.2.2.15.",null,null,null,0]
["Излишнее списание продуктов питания вследствие завышения количества питающихся","25.2.2.17.",null,null,null,{"$f":"SUM(K196:AD196)","v":0}]
["Списание продуктов на питание сотрудников, сторонних лиц (при условии, если последними не произведена оплата  стоимости питания с последующим восстановление в соответствующий бюджет).","25.2.2.18.",null,null,null,0]
["Иные нарушения в части списания продуктов питания.","25.2.2.19.",null,null,null,0]
["Содержание за счет выделенных бюджетных средств должностей, не предусмотренных штатным расписанием или действующим законодательством с учетом начислений на выплаты по оплате труда.","25.2.2.2.",null,null,null,0]
["Расходы, связанные со служебной командировкой, произведенные с превышением норм и нормативов, установленных законодательством. ","25.2.2.20.",null,null,null,0]
["Расходы на оплату добровольного страхования по проездным билетам.","25.2.2.21.",null,null,null,0]
["Компенсация суточных по однодневным командировкам.","25.2.2.22.",null,null,null,0]
["Выдача подотчетных сумм лицам, не работающим в учреждении.","25.2.2.23.",null,null,null,0]
["Невостребование с работника бюджетного учреждения - подотчетного лица задолженности по бюджетным средствам,  выданным ему в подотчет.","25.2.2.24.",null,null,null,0]
["Иные нарушения в части списания подотчетных сумм.","25.2.2.25.",null,null,null,0]
["Содержание сверхлимитного количества автотранспорта.","25.2.2.26.",null,null,null,0]
["Списание бензина при эксплуатации автомобилей в выходные и праздничные дни при отсутствии приказа по учреждению (организации).","25.2.2.27.",null,null,null,2,null,null,null,null,null,null,null,null,null,2]
["Излишнее списание горюче-смазочных материалов вследствие применения завышенных (неправомерных) норм списания.","25.2.2.28.",null,null,null,0]
["Списание запасных частей и горюче-смазочных материалов на эксплуатацию автомобилей, не принадлежащих учреждению.","25.2.2.29.",null,null,null,0]
["Начисление выплат по заработной плате (окладов, надбавок, доплат, премий), не предусмотренных действующим законодательством, трудовыми договорами или соотвествующими распорядительными документами либо в размерах, превышающих размеры, установленные действующим законодательством (в том числе завышение окладов, ставок, разрядов по оплате труда), с учетом начислений на выплаты по оплате труда.","25.2.2.3.",null,null,null,0]
["Иные нарушения в части содержания автотранспорта.","25.2.2.30.",null,null,null,0]
["Оплата завышенных объемов строительно-монтажных работ, в том числе установленных контрольным обмером.","25.2.2.31.",null,null,null,0]
["Оплата невыполненных  объемов строительно-монтажных работ, в том числе установленных контрольным обмером.","25.2.2.31.1.",null,null,null,0]
["Необоснованное применение норм, расценок при определении сметной стоимости работ ( в т.ч. применение территориальных единичных расценок других регионов на территории Республики Башкортостан).","25.2.2.32.",null,null,null,0]
["Завышение лимитированных затрат, удорожающих коэффициентов при выполнении ремонтно-строительных работ.","25.2.2.33.",null,null,null,0]
["Использование средств на проведение текущего ремонта в качестве оплаты работ по капитальному ремонту и наоборот вследствие неверной классификации видов и состава работ.","25.2.2.34.",null,null,null,0]
["Неправильное определение стоимости работ, выполняемых организациями, работающими по упрощенной системе налогообложения.","25.2.2.35.",null,null,null,0]
["Необоснованное расходование средств на оплату дополнительных расходов строительных организаций, не подтвержденных документально или в нарушение законодательства. ","25.2.2.36.",null,null,null,0]
["Приобретение основных средств (в т.ч. оборудования, мебели), не предусмотренных проектно-сметной документацией, государственными контрактами, спецификациями и техническими условиями.","25.2.2.37.",null,null,null,{"$f":"SUM(K219:AD219)","v":0}]
["Иные нарушения при расходовании средств в результате завышения стоимости и объемов выполненных работ, повторного выполнения работ на тех же объектах. Не соблюдение периодичности проведения капитального ремонта.","25.2.2.38.",null,null,null,0]
["Оплата капитального ремонта арендованных помещений (в случае, если подобный ремонт не предусмотрен в договоре и его стоимость в последствии не восстановлена собственником).","25.2.2.39.",null,null,null,0]
["Начисление выплат по заработной плате без учета фактически отработанного времени (в том числе за неотработанные часы) и фактического исполнения работником должностных обязанностей с учетом начислений на выплаты по оплате труда.","25.2.2.4.",null,null,null,0]
["Оплата арендатором коммунальных и эксплуатационных услуг при отсутствии заключенных договоров аренды, либо договоров на компенсацию потребленных коммунальных услуг. ","25.2.2.40.",null,null,null,0]
["Использование бюджетных средств на оплату коммунальных услуг, оказанных сторонним потребителям, без соответствующего возмещения данных расходов.","25.2.2.41.",null,null,null,0]
["Оплата кредиторской задолженности, образованной вследствие не законного принятия организаций обязательств за счет бюджетных средств сверх доведенных лимитов.","25.2.2.42.",null,null,null,0]
["Незаконное предоставление ссуды физическим лицам","25.2.2.43.",null,null,null,0]
["Расходы, произведенные за счет бюджетных средств в результате завышения сметных назначений, в т.ч. доля оплаты труда работников административно-управленческого и вспомогательного персонала в фонде оплаты труда  учреждениям образования превысила 40% \n","25.2.2.44.",null,null,null,0]
["Просроченная дебиторская задолженность, образовавшаяся вследствие нарушения порядка оплаты, предусмотренного нормативно-правовыми актами и государственными (муниципальными) контрактами и договорами и (или) непринятие мер по ее взысканию.","25.2.2.45.",null,null,null,0]
["Образование необоснованной дебиторской задолженности по оплате товаров (работ, услуг) ","25.2.2.46.",null,null,null,0]
["Расходы бюджетных средств, не подтвержденные необходимыми оправдательными документами (включая списания сумм с подотчета).","25.2.2.47.",null,null,null,0]
["Расходы бюджетных средств, не подтвержденные необходимыми оправдательными документами (включая списания сумм с подотчета), (компенсация за школьную форму); выплаты денежной компенсации родителям учащихся, за приобретенную школьную форму, предоставления бесплатного питания учащимся из многодетных малоимущих семей без представления подтверждающих документов                      ","25.2.2.471.",null,null,null,0]
["Расходы бюджетных средств по документам, не подтвержденными встречными проверками (включая списания сумм с подотчета).","25.2.2.48.",null,null,null,0]
["Приобретение товарно-материальных ценностей, оказание услуг, выполнение работ по договорам по завышенным ценам.","25.2.2.49.",null,null,null,0]
["Излишняя (неправомерная) выплата заработной платы при внутреннем совмещении, а так же специалистам, работающим в учреждении по совместительству с учетом начислений на выплаты по оплате труда.","25.2.2.5.",null,null,null,0]
["Неправомерное изменение условий государственных (муниципальных) контрактов и не соблюдение договорных цен в порядке, установленным законодательством и контрактами.","25.2.2.50.",null,null,null,0]
["Использование бюджетных средств на оплату личных расходов работников учреждения.","25.2.2.51.",null,null,null,0]
["Неперечисление (несвоевременное или неполное перечисление) в доход бюджета дебиторской задолженности прошлых лет, поступившей на счета получателей бюджетных средств в текущем году","25.2.2.52.",null,null,null,0]
["Другие неправомерные нарушения. ","25.2.2.53.",null,null,null,0]
["Другие неправомерные нарушения, а именно переплата и недоплатат в части компенсационных выплат (за метод литературу, коммунальных услуг)","25.2.2.53.1.",null,null,null,0]
["Другие неправомерные нарушения при использовании субсидии, выделенных на содержание автономного и бюджетного учреждения ","25.2.2.53.2.",null,null,null,0]
["Другие неправомерные нарушения при использовании субсидии, выделенных на содержание автономного учреждения . Невыполнение государственных (муниципальных)  заданий","25.2.2.53.3.",null,null,null,0]
["Другие неправомерные нарушения при использовании субсидии, выделенных на содержание бюджетного учреждения . Невыполнение государственных (муниципальных)  заданий","25.2.2.53.4.",null,null,null,0]
["Другие неправомерные нарушения. Неправомерные расходы средств, выделенных на реализацию адресной программы Республики Башкортостан на период 2011 - 2015 годов по замене и модернизации лифтов, отработавших нормативный срок службы.","25.2.2.53.5.",null,null,null,0]
["Другие неправомерные нарушения.Нарушения в использвании средств, выделенных на софинансирование расходов по модернизации систем наружного освещения населенных пунктов Республики Башкортостан на 2011–2015 годы.","25.2.2.53.6.",null,null,null,0]
["Другие неправомерные нарушения. Нарушения в использовании средств, выделенныхна реализацию республиканской адресной программы по проведению капитального ремонта многоквартирных домов","25.2.2.53.7.",null,null,null,0]
["Нарушение по  условиям соглашений в части софинансирования  соответствующих обязательств за счет средств местного бюджета  (если предусмотрено по условиям соглашения, порядка, договор, НПА возврат при нарушении)","25.2.2.53.8.",null,null,null,0]
["Другие неправомерные нарушения. Не принятие мер по возврату бюджетныхх средств, выделенных на софинансирование расходов в МО и ГО","25.2.2.53.9.",null,null,null,0]
["Другие неправомерные нарушения. Не достигнуты показателии, целевые индикторы результативности предоставления субсидии","25.2.2.53.10.",null,null,null,0]
["Нарушения в расчетах по оплате труда по договорам гражданско-правового характера, в том числе по завышенным тарифам с учетом начислений на выплаты по оплате труда (за исключением отчислений в фонд социального страхования и страховых взносов от несчастных случаев).","25.2.2.7.",null,null,null,0]
["Необоснованное начисление единого социального налога и налога на доходы физических лиц и авансовое перечисление платежей в качестве оплаты единого социального налога и налога на доходы физических лиц за пределами финансового года.","25.2.2.8.",null,null,null,0]
["Излишнее либо неправомерное начисление пособий по временной нетрудоспособности (в том числе пособий по уходу за ребенком, по беременности и родам и пр.).","25.2.2.9.",null,null,null,0]
["Неправомерное списание государственного (муниципального) имущества.","25.3.1.1.",null,null,null,0]
["Сверхнормативные затраты при приобретении, получении и использовании государственного (муниципального) имущества.","25.3.1.10.",null,null,null,0]
["Безвозмездная передача государственного (муниципального) имущества (собственности) при отсутствии достаточных на то оснований. Передача имущества другим юридическим и физическим лицам без разрешения собственника.","25.3.1.13.",null,null,null,0]
["Безвозмездная передача государственного (муниципального) имущества (собственности) при отсутствии достаточных на то оснований. Передача имущества другим юридическим и физическим лицам без разрешения собственника. Неправомерная передача особо ценного  имущества автономными и бюджетными учреждениями","25.3.1.13.1.",null,null,null,0]
["Нарушение правил ответственного хранения государственных (муниципальных) материальных ценностей (ненадлежащее хранение) и их эксплуатации, непринятие мер по обеспечению сохранности государственной (муниципальной) собственности. ","25.3.1.2.",null,null,null,0]
["Другие нарушения при распоряжении государственным (муниципальным) имуществом","25.3.1.22.",null,null,null,0]
["Использование государственной (муниципальной) собственности не по ее назначению и не в соответствии с целями ее приобретения.","25.3.1.5.",null,null,null,0]
["Использование государственной (муниципальной) собственности не по ее назначению и не в соответствии с целями ее приобретения.","25.3.1.5.",null,null,null,0]
["Направление средств, полученных от предпринимательской и иной приносящей доход деятельности, на цели, не предусмотренные нормативными правовыми актами и разрешительными документами.","25.5.2.1.",null,null,null,0]
["Осуществление деятельности, не предусмотренной учредительными документами.","25.5.2.5.",null,null,null,0]
["Осуществление деятельности при отсутствии необходимых разрешений (лицензий, аттестации, аккредитации) или с их нарушением.","25.5.2.6.",null,null,null,0]
["Создание государственными (муниципальными) органами и функционирование фондов, резервов, не предусмотренных законодательством Российской Федерации.","25.5.2.7.",null,null,null,0]
["Другие нарушения при осуществлении бюджетными учреждениями предпринимательской и иной приносящей доход деятельности.","25.5.2.9.",null,null,null,0]
["Другие нарушения при распоряжении государственным (муниципальным) имуществом \n(не оприходованное  имущество, не запущено в эксплуатацию  и др. нарушения по имуществу, выявленных  в рамках проверки вопросов ч.8 ст. 99 Закона о контрактной системе)","25.3.1.22.1.",null,null,null,0]
["Другие финансовые нарушения","26",null,null,null,74,null,null,null,null,{"$f":"SUM(K267:O344)","v":0},null,null,null,null,{"$f":"SUM(P267:T344)","v":74},null,null,null,null,{"$f":"SUM(U267:Y344)","v":0},null,null,null,null,{"$f":"SUM(Z267:AD344)","v":0}]
["Нанесение ущерба юридическим и (или) физическим лицам при выполнении должностных обязанностей.","26.5.1.6.",null,null,null,0]
["Нарушение порядка зачисления средств в доход бюджета.","26.1.1.14.",null,null,null,0]
["Другие нарушения, влекущие недопоступление средств в доход бюджета. ","26.1.1.15.",null,null,null,0]
["Другие нарушения, влекущие недопоступление средств в доход бюджета. За несвоевременное перечисление в бюджет арендной платы за земельные участки  не начислялись штрафные санкции и не взыскивались пени.    ","26.1.1.16.",null,null,null,0]
["Другие нарушения, влекущие недопоступление средств в доход бюджета. За несвоевременное перечисление в бюджет арендной платы за имущество не начислялись штрафные санкции и не взыскивались пени.                                                          ","26.1.1.17.",null,null,null,0]
["Поступающие в виде от найма жилых помещений не учитывались в доходах местного бюджета ","26.1.1.18.",null,null,null,0]
["Несоответствие сводной бюджетной росписи закону (решению) о бюджете.","26.1.2.1.",null,null,null,0]
["Финансирование расходов сверх утвержденной сметой доходов и расходов (бюджетной сметой с 01.01.2008 года).","26.1.2.14.",null,null,null,0]
["Неправомерный отказ в подтверждении исполнения бюджетных обязательств, принятых получателями бюджетных средств.","26.1.2.15.",null,null,null,0]
["Подтверждение денежных обязательств, не подлежащих принятию. ","26.1.2.16.",null,null,null,0]
["Нарушение порядка санкционирования оплаты денежных обязательств получателей бюджетных средств","26.1.2.17.",null,null,null,0]
["Нарушение сроков подтверждения денежных обязательств, влекущее выплату пени, штрафов.","26.1.2.18.",null,null,null,0]
["Несоответствие уведомлений о бюджетных ассигнованиях, уведомлений о лимитах бюджетных обязательств утвержденным расходам и бюджетной росписи.","26.1.2.2.",null,null,null,0]
["Предоставление бюджетных кредитов при наличии просроченной задолженности по ранее предоставленным бюджетным средствам на возвратной основе.","26.1.2.21.",null,null,null,0]
["Предоставление бюджетных кредитов с нарушением  закона (решения) о бюджете.","26.1.2.22.",null,null,null,0]
["Предоставление бюджетных кредитов без надлежащего обеспечения обязательств.","26.1.2.23.",null,null,null,{"$f":"SUM(K282:AD282)","v":0}]
["Предоставление бюджетных кредитов без указания цели использования средств в договоре. ","26.1.2.24.",null,null,null,0]
["Предоставление бюджетных кредитов без проверки финансового состояния получателя.","26.1.2.25.",null,null,null,0]
["Неправомерное осуществление государственных (муниципальных) заимствований.","26.1.2.26.",null,null,null,0]
["Неправомерное предоставление государственных (муниципальных) гарантий (в т.ч. без проверки финансового состояния заемщика; с превышением установленного предельного объема; на цели, не соответствующие порядку направления гарантий).","26.1.2.27.",null,null,null,0]
["Неправомерное изменение объемов бюджетных ассигнований и лимитов бюджетных обязательств, предельных объемов финансирования (с 01.01.2008 года).","26.1.2.3.",null,null,null,0]
["Другие нарушения, влекущие правонарушения в сфере исполнения бюджета по расходам.","26.1.2.36.",null,null,null,0]
["Несоответствие проекта бюджета требованиям законодательства в части прогноза макроэкономических показателей.","26.1.3.1.",null,null,null,0]
["Неутверждение, несвоевременное утверждение сводных бюджетных росписей и росписей главных распорядителей бюджетных средств, смет доходов и расходов (бюджетных смет с 01.01.2008 года); несвоевременное доведение бюджетных ассигнований и лимитов бюджетных обязательств.","26.1.3.10.",null,null,null,0]
["Принятие нормативно-правовых актов, противоречащих Бюджетному кодексу РФ в части предоставления и расходования средств в бюджетной системе, несвоеременное принятие или отсутствие требуемых нормативных правовых актов.","26.1.3.11.",null,null,null,0]
["Другие нарушения при формировании бюджетов","26.1.3.12.",null,null,null,0]
["Несоответствие проекта бюджета принципам бюджетной системы Российской Федерации.","26.1.3.2.",null,null,null,0]
["Несоответствие доходной части проекта бюджета требованиям законодательства.","26.1.3.3.",null,null,null,0]
["Несоответствие расходной части проекта бюджета требованиям законодательства.","26.1.3.4.",null,null,null,0]
["Несоответствие проекта бюджета требованиям законодательства в части источников финансирования дефицита бюджета.","26.1.3.5.",null,null,null,0]
["Несоответствие проекта бюджета требованиям законодательства в части межбюджетных отношений.","26.1.3.6.",null,null,null,0]
["Необоснованное завышение (занижение) расходов или завышение (занижение) доходов в проекте бюджета.","26.1.3.7.",null,null,null,0]
["Нарушение установленного порядка подготовки и представления проекта бюджета и документов, необходимых для его составления и рассмотрения.","26.1.3.8.",null,null,null,0]
["Несоответствие документов, представляемых с проектом бюджета, требованиям законодательства","26.1.3.9.",null,null,null,0]
["Неправомерное отнесение к федеральной собственности имущества, которое должно находиться в собственности субъектов Российской Федерации или муниципальных образований.","26.3.1.11.",null,null,null,0]
["Нарушение порядка приватизации государственного (муниципального) имущества","26.3.1.12.",null,null,null,0]
["Отсутствие контроля за использованием объектов государственной (муниципальной) собственности.","26.3.1.16.",null,null,null,0]
["Нарушение правил ответственного хранения государственных (муниципальных) материальных ценностей (ненадлежащее хранение) и их эксплуатации, непринятие мер по обеспечению сохранности государственной (муниципальной) собственности. ","26.3.1.2.",null,null,null,0]
["Другие нарушения при распоряжении государственным (муниципальным) имуществом","26.3.1.22.",null,null,null,0]
["Нарушения порядка составления и представления отчетности об исполнении бюджета. ","26.4.1.1.",null,null,null,0]
["Нарушения единой системы учета и регистрациимуниципальных заимствований, а также порядка ведения муниципальной долговой книги Российской Федерации, субъекта Российской Федерации.","26.4.1.2.",null,null,null,0]
["Неверное отражение в смете бюджетного учреждения его доходов и расходов.","26.4.1.3.",null,null,null,0]
["Нарушения в ведении реестров государственных (муниципальных) контрактов, закупок.","26.4.1.4.",null,null,null,0]
["Нарушения бюджетного учета.","26.4.1.5.",null,null,null,74,null,null,null,null,null,null,null,null,null,74]
["Нарушение порядка рассмотрения, утверждения и публикации отчета об исполнении бюджета. ","26.4.1.6.",null,null,null,0]
["Нарушения в ведении реестров расходных обязательств","26.4.1.7.",null,null,null,0]
["Другие нарушения правил учета и отчетности. ","26.4.1.8.",null,null,null,0]
["Нарушения правил учета и отчетности, плана финансово-хозяйственной деятельности","26.4.1.9.",null,null,null,0]
["Нарушение сроков представления отчетности.","26.4.2.1.",null,null,null,0]
["Нарушение порядка оприходования, начисления амортизации основных средств и нематериальных активов. (в т.ч маккулатуры от списания библ фонда, списание мягкого инвентаря и неоприходование как ветошь)","26.4.2.10.",null,null,null,0]
["Нарушение порядка ведения раздельного бухгалтерского (бюджетного) учета по источникам образования средств.","26.4.2.11.",null,null,null,0]
["Другие нарушения бухгалтерского (бюджетного) учета и отчетности, правил работы с денежной наличностью","26.4.2.12.",null,null,null,0]
["Несоответствие данных бухгалтерского (бюджетного) учета первичным документам.","26.4.2.2.",null,null,null,0]
["Несоблюдение порядка работы с денежной наличностью, ведения кассовых операций.","26.4.2.3.",null,null,null,0]
["Нарушение порядка хранения документов.","26.4.2.4.",null,null,null,0]
["Отсутствие обязательных реквизитов документов и иные нарушения бухгалтерского (бюджетного) учета и отчетности.","26.4.2.5.",null,null,null,0]
["Отсутствие контрактов, заключенных с зарубежными организациями, или иных первичных документов на русском языке или их переводов на русский язык","26.4.2.6.",null,null,null,0]
["Расходы бюджетных средств, не подтвержденные необходимыми оправдательными документами. ","26.4.2.7.",null,null,null,0]
["Выдача авансов под отчет при наличии задолженности по ранее выданным денежным средствам","26.4.2.8.",null,null,null,0]
["Несоблюдение порядка проведения инвентаризации имущества и финансовых обязательств, незаключение договоров с материально-ответственными лицами.","26.4.2.9.",null,null,null,0]
["Непредставление гражданам и организациям предусмотренной законом информации.","26.5.1.1.",null,null,null,0]
["Неприменение мер ответственности – штрафов и пени.","26.5.1.2.",null,null,null,0]
["Неприменение мер ответственности – штрафов и пени. (за ненадлежащее исполнение администрацией муниципальными образованиями условий соглашения  на софинансирования не предъявлены и невзысканы пени). \n","26.5.1.2.1.",null,null,null,0]
["Не применены заказчиком (ГРБС, ГКУ) мер ответственности и совершения иных действий в случае нарушения поставщиком (подрядчиком, исполнителем) условий контракта -  не взысканы пени ","26.5.1.2.2",null,null,null,0]
["Не применены заказчиком (АУ, БУ) мер ответственности и совершения иных действий в случае нарушения поставщиком (подрядчиком, исполнителем) условий контракта -  не взысканы пени","26.5.1.2.3",null,null,null,0]
["Иное невыполнение, неполное выполнение государственных (муниципальных) задач и функций.","26.5.1.3.",null,null,null,0]
["Иное невыполнение, неполное выполнение государственных (муниципальных) задач и функций. Невыполнение государственных (муниципальных)  заданий.","26.5.1.3.1.",null,null,null,0]
["Непредъявление требований по возмещению ущерба государству (муниципальному образованию).","26.5.1.4.",null,null,null,0]
["Нарушения норм, требований, правил при выполнении государственных(муниципальных) задач и функций.","26.5.1.5.",null,null,null,0]
["Не соответствие принятых целевых программ законодательству, нарушение порядка изменения программ; отсутствие оценки эффективности; включение в целевые программы неэффективных мероприятий, завышение расходов программ.","26.5.1.7.",null,null,null,0]
["Другие нарушения при выполнении государственных задач и функций.","26.5.1.8.",null,null,null,0]
["Завышение сметных назначение по бюджетным учреждением  (в т.ч. неучтенная дебиторская задолженность)","26.5.1.8.1.",null,null,null,0]
["Другие нарушения. Установление сроков договоров.","26..5.1.8.2.",null,null,null,0]
["Нарушения норм, требований, правил при осуществлении хозяйственной деятельности","26.5.2.3.",null,null,null,0]
["Осуществление учета средств, полученных от предпринимательской и иной приносящей доход деятельности, не на лицевых счетах, открытых казначейством.","26.5.2.4.",null,null,null,0]
["Другие нарушения при осуществлении бюджетными учреждениями предпринимательской и иной приносящей доход деятельности.","26.5.2.9.",null,null,null,0]
["Непринятие мер по взысканию арендной платы за пользование государственным (муниципальным) имуществом. Занижение и недополучение размеров арендной платы за использование государственного (муниципального) имущества. \n(с 01.11.2014 только бюджетных и автономных учреждений. т.к. плата от арендной платы должны поступать на внебюджетный счет БУ и АУ) ","26.1.1.12.",null,null,null,0]
["Другие нарушения при осуществлении бюджетными учреждениями предпринимательской и иной приносящей доход деятельности (Уставами общеобразовательных учреждений (поступление от родителей за питание школьников) не  предусмотрен. )","26.5.2.9.",null,null,null,0]

{"sheet":"4. ФК-1","index":3,"n_rows":277,"n_cols":33,"rows_kept":277,"cut":false,"hidden":false,"merged":[[1,0,1,30],[151,0,151,2],[151,3,151,24],[151,25,151,27],[151,28,151,30],[128,0,128,2],[128,3,128,24],[128,25,128,27],[128,28,128,30],[276,0,276,2],[276,3,276,24],[276,25,276,27],[276,28,276,30],[230,25,230,27],[230,28,230,30],[230,0,230,2],[230,3,230,24],[273,0,273,2],[273,3,273,24],[273,25,273,27],[273,28,273,30],[274,0,274,2],[274,3,274,24],[274,25,274,27],[274,28,274,30],[275,0,275,2],[275,3,275,24],[275,25,275,27],[275,28,275,30],[270,0,270,2],[270,3,270,24],[270,25,270,27],[270,28,270,30],[271,0,271,2],[271,3,271,24],[271,25,271,27],[271,28,271,30],[272,0,272,2],[272,3,272,24],[272,25,272,27],[272,28,272,30],[267,0,267,2],[267,3,267,24],[267,25,267,27],[267,28,267,30],[268,0,268,2],[268,3,268,24],[268,25,268,27],[268,28,268,30],[269,0,269,2],[269,3,269,24],[269,25,269,27],[269,28,269,30],[264,0,264,2],[264,3,264,24],[264,25,264,27],[264,28,264,30],[265,0,265,2],[265,3,265,24],[265,25,265,27],[265,28,265,30],[266,0,266,2],[266,3,266,24],[266,25,266,27],[266,28,266,30],[261,0,261,2],[261,3,261,24],[261,25,261,27],[261,28,261,30],[262,0,262,2],[262,3,262,24],[262,25,262,27],[262,28,262,30],[263,0,263,2],[263,3,263,24],[263,25,263,27],[263,28,263,30],[258,0,258,2],[258,3,258,24],[258,25,258,27],[258,28,258,30],[259,0,259,2],[259,3,259,24],[259,25,259,27],[259,28,259,30],[260,0,260,2],[260,3,260,24],[260,25,260,27],[260,28,260,30],[255,0,255,2],[255,3,255,24],[255,25,255,27],[255,28,255,30],[256,0,256,2],[256,3,256,24],[256,25,256,27],[256,28,256,30],[257,0,257,2],[257,3,257,24],[257,25,257,27],[257,28,257,30],[252,0,252,2],[252,3,252,24],[252,25,252,27],[252,28,252,30],[253,0,253,2],[253,3,253,24],[253,25,253,27],[253,28,253,30],[254,0,254,2],[254,3,254,24],[254,25,254,27],[254,28,254,30],[249,0,249,2],[249,3,249,24],[249,25,249,27],[249,28,249,30],[250,0,250,2],[250,3,250,24],[250,25,250,27],[250,28,250,30],[251,0,251,2],[251,3,251,24],[251,25,251,27],[251,28,251,30],[246,0,246,2],[246,3,246,24],[246,25,246,27],[246,28,246,30],[247,0,247,2],[247,3,247,24],[247,25,247,27],[247,28,247,30],[248,0,248,2],[248,3,248,24],[248,25,248,27],[248,28,248,30],[243,0,243,2],[243,3,243,24],[243,25,243,27],[243,28,243,30],[244,0,244,2],[244,3,244,24],[244,25,244,27],[244,28,244,30],[245,0,245,2],[245,3,245,24],[245,25,245,27],[245,28,245,30],[240,0,240,2],[240,3,240,24],[240,25,240,27],[240,28,240,30],[241,0,241,2],[241,3,241,24],[241,25,241,27],[241,28,241,30],[242,0,242,2],[242,3,242,24],[242,25,242,27],[242,28,242,30],[237,0,237,2],[237,3,237,24],[237,25,237,27],[237,28,237,30],[238,0,238,2],[238,3,238,24],[238,25,238,27],[238,28,238,30],[239,0,239,2],[239,3,239,24],[239,25,239,27],[239,28,239,30],[234,0,234,2],[234,3,234,24],[234,25,234,27],[234,28,234,30],[235,0,235,2],[235,3,235,24],[235,25,235,27],[235,28,235,30],[236,0,236,2],[236,3,236,24],[236,25,236,27],[236,28,236,30],[231,0,231,2],[231,3,231,24],[231,25,231,27],[231,28,231,30],[232,0,232,2],[232,3,232,24],[232,25,232,27],[232,28,232,30],[233,0,233,2],[233,3,233,24],[233,25,233,27],[233,28,233,30],[229,0,229,2],[229,3,229,24],[229,25,229,27],[229,28,229,30],[226,0,226,2],[226,3,226,24],[226,25,226,27],[226,28,226,30],[227,0,227,2],[227,3,227,24],[227,25,227,27],[227,28,227,30],[228,0,228,2],[228,3,228,24],[228,25,228,27],[228,28,228,30],[223,0,223,2],[223,3,223,24],[223,25,223,27],[223,28,223,30],[224,0,224,2],[224,3,224,24],[224,25,224,27],[224,28,224,30],[225,0,225,2],[225,3,225,24],[225,25,225,27],[225,28,225,30],[220,0,220,2],[220,3,220,24],[220,25,220,27],[220,28,220,30],[221,0,221,2],[221,3,221,24],[221,25,221,27],[221,28,221,30],[222,0,222,2],[222,3,222,24],[222,25,222,27],[222,28,222,30],[123,3,123,24],[123,25,123,27],[123,28,123,30],[132,0,132,2],[132,3,132,24],[132,25,132,27],[132,28,132,30],[219,0,219,2],[219,3,219,24],[219,25,219,27],[219,28,219,30],[217,0,217,2],[217,3,217,24],[217,25,217,27],[217,28,217,30],[215,0,215,2],[215,3,215,24],[215,25,215,27],[215,28,215,30],[216,0,216,2],[216,3,216,24],[216,25,216,27],[216,28,216,30],[213,28,213,30],[214,0,214,2],[214,3,214,24],[214,25,214,27],[214,28,214,30],[211,0,211,2],[211,3,211,24],[211,25,211,27],[211,28,211,30],[212,0,212,2],[212,3,212,24],[212,25,212,27],[212,28,212,30],[202,0,202,2],[202,3,202,24],[202,25,202,27],[202,28,202,30],[209,0,209,2],[209,3,209,24],[209,25,209,27],[209,28,209,30],[210,0,210,2],[210,3,210,24],[210,25,210,27],[210,28,210,30],[207,3,207,24],[207,25,207,27],[207,28,207,30],[208,0,208,2],[208,3,208,24],[208,25,208,27],[208,28,208,30],[199,0,199,2],[199,3,199,24],[199,25,199,27],[199,28,199,30],[201,0,201,2],[200,3,200,24],[201,3,201,24],[200,25,200,27],[201,25,201,27],[200,28,200,30],[201,28,201,30],[200,0,200,2],[197,0,197,2],[197,3,197,24],[197,25,197,27],[197,28,197,30],[198,0,198,2],[198,3,198,24],[198,25,198,27],[198,28,198,30],[195,0,195,2],[195,3,195,24],[195,25,195,27],[195,28,195,30],[196,0,196,2],[196,3,196,24],[196,25,196,27],[196,28,196,30],[193,0,193,2],[193,3,193,24],[193,25,193,27],[193,28,193,30],[194,0,194,2],[194,3,194,24],[194,25,194,27],[194,28,194,30],[192,0,192,2],[192,3,192,24],[192,25,192,27],[192,28,192,30],[189,0,189,2],[189,3,189,24],[189,25,189,27],[189,28,189,30],[190,0,190,2],[190,3,190,24],[190,25,190,27],[190,28,190,30],[191,0,191,2],[191,3,191,24],[191,25,191,27],[191,28,191,30],[187,0,187,2],[187,3,187,24],[187,25,187,27],[187,28,187,30],[188,0,188,2],[188,3,188,24],[188,25,188,27],[188,28,188,30],[185,0,185,2],[185,3,185,24],[185,25,185,27],[185,28,185,30],[186,0,186,2],[186,3,186,24],[186,25,186,27],[186,28,186,30],[184,0,184,2],[184,3,184,24],[184,25,184,27],[184,28,184,30],[181,0,181,2],[181,3,181,24],[181,25,181,27],[181,28,181,30],[182,0,182,2],[182,3,182,24],[182,25,182,27],[182,28,182,30],[183,0,183,2],[183,3,183,24],[183,25,183,27],[183,28,183,30],[179,0,179,2],[179,3,179,24],[179,25,179,27],[179,28,179,30],[180,0,180,2],[180,3,180,24],[180,25,180,27],[180,28,180,30],[175,0,175,2],[175,3,175,24],[175,25,175,27],[175,28,175,30],[176,0,176,2],[176,3,176,24],[176,25,176,27],[176,28,176,30],[177,0,177,2],[178,0,178,2],[177,3,177,24],[178,3,178,24],[177,25,177,27],[178,25,178,27],[177,28,177,30],[178,28,178,30],[164,3,164,24],[173,0,173,2],[173,3,173,24],[173,25,173,27],[173,28,173,30],[174,0,174,2],[174,3,174,24],[174,25,174,27],[174,28,174,30],[171,0,171,2],[171,3,171,24],[171,25,171,27],[171,28,171,30],[172,25,172,27],[172,28,172,30],[169,0,169,2],[169,3,169,24],[169,25,169,27],[169,28,169,30],[170,3,170,24],[170,25,170,27],[170,28,170,30],[172,3,172,24],[167,0,167,2],[172,0,172,2],[159,3,159,24],[167,3,167,24],[167,25,167,27],[167,28,167,30],[161,0,161,2],[161,3,161,24],[157,0,157,2],[161,25,161,27],[161,28,161,30],[158,0,158,2],[168,25,168,27],[168,28,168,30],[170,0,170,2],[166,0,166,2],[166,3,166,24],[166,25,166,27],[166,28,166,30],[164,25,164,27],[164,28,164,30],[162,25,162,27],[162,28,162,30],[163,0,163,2],[163,3,163,24],[163,25,163,27],[163,28,163,30],[165,0,165,2],[165,3,165,24],[165,25,165,27],[165,28,165,30],[168,0,168,2],[164,0,164,2],[168,3,168,24],[158,3,158,24],[158,25,158,27],[158,28,158,30],[159,25,159,27],[159,28,159,30],[159,0,159,2],[162,0,162,2],[162,3,162,24],[153,0,153,2],[153,3,153,24],[153,25,153,27],[153,28,153,30],[149,0,149,2],[156,0,156,2],[156,3,156,24],[156,25,156,27],[156,28,156,30],[157,3,157,24],[157,25,157,27],[157,28,157,30],[154,0,154,2],[154,3,154,24],[154,25,154,27],[154,28,154,30],[155,25,155,27],[155,28,155,30],[155,3,155,24],[160,0,160,2],[160,3,160,24],[160,25,160,27],[160,28,160,30],[155,0,155,2],[142,3,142,24],[142,25,142,27],[142,28,142,30],[148,28,148,30],[150,3,150,24],[152,3,152,24],[145,25,145,27],[146,25,146,27],[148,25,148,27],[149,25,149,27],[150,25,150,27],[152,25,152,27],[146,3,146,24],[148,3,148,24],[149,3,149,24],[144,3,144,24],[147,0,147,2],[147,3,147,24],[147,25,147,27],[147,28,147,30],[145,0,145,2],[146,0,146,2],[148,0,148,2],[145,3,145,24],[150,0,150,2],[152,0,152,2],[149,28,149,30],[150,28,150,30],[152,28,152,30],[135,0,135,2],[135,3,135,24],[135,28,135,30],[141,28,141,30],[141,3,141,24],[141,25,141,27],[141,0,141,2],[144,0,144,2],[136,0,136,2],[136,3,136,24],[136,28,136,30],[137,28,137,30],[137,3,137,24],[137,0,137,2],[139,3,139,24],[139,25,139,27],[139,28,139,30],[139,0,139,2],[138,3,138,24],[144,25,144,27],[144,28,144,30],[143,28,143,30],[136,25,136,27],[137,25,137,27],[135,25,135,27],[143,0,143,2],[138,0,138,2],[143,3,143,24],[143,25,143,27],[138,25,138,27],[138,28,138,30],[142,0,142,2],[131,0,131,2],[131,3,131,24],[131,25,131,27],[131,28,131,30],[129,0,129,2],[129,3,129,24],[129,25,129,27],[134,25,134,27],[134,28,134,30],[133,0,133,2],[133,3,133,24],[133,25,133,27],[133,28,133,30],[113,0,113,2],[113,3,113,24],[113,25,113,27],[113,28,113,30],[125,0,125,2],[126,0,126,2],[127,0,127,2],[125,3,125,24],[129,28,129,30],[127,3,127,24],[127,25,127,27],[134,0,134,2],[134,3,134,24],[126,3,126,24],[125,25,125,27],[126,25,126,27],[125,28,125,30],[130,0,130,2],[130,3,130,24],[111,0,111,2],[111,3,111,24],[111,25,111,27],[111,28,111,30],[112,0,112,2],[112,3,112,24],[112,25,112,27],[112,28,112,30],[109,0,109,2],[109,3,109,24],[109,25,109,27],[109,28,109,30],[110,0,110,2],[110,3,110,24],[110,25,110,27],[110,28,110,30],[107,0,107,2],[107,3,107,24],[107,25,107,27],[107,28,107,30],[108,0,108,2],[108,3,108,24],[108,25,108,27],[108,28,108,30],[105,0,105,2],[105,3,105,24],[105,25,105,27],[105,28,105,30],[106,0,106,2],[106,3,106,24],[106,25,106,27],[106,28,106,30],[103,0,103,2],[103,3,103,24],[103,25,103,27],[103,28,103,30],[104,0,104,2],[104,3,104,24],[104,25,104,27],[104,28,104,30],[102,0,102,2],[102,3,102,24],[102,25,102,27],[102,28,102,30],[99,0,99,2],[99,3,99,24],[99,25,99,27],[99,28,99,30],[96,0,96,2],[96,3,96,24],[96,25,96,27],[96,28,96,30],[97,0,97,2],[97,3,97,24],[97,25,97,27],[97,28,97,30],[98,0,98,2],[98,3,98,24],[98,25,98,27],[98,28,98,30],[101,0,101,2],[101,3,101,24],[101,25,101,27],[101,28,101,30],[94,0,94,2],[94,3,94,24],[94,25,94,27],[94,28,94,30],[95,0,95,2],[95,3,95,24],[95,25,95,27],[95,28,95,30],[92,0,92,2],[92,3,92,24],[92,25,92,27],[92,28,92,30],[93,0,93,2],[93,3,93,24],[93,25,93,27],[93,28,93,30],[90,0,90,2],[90,3,90,24],[90,25,90,27],[90,28,90,30],[91,0,91,2],[91,3,91,24],[91,25,91,27],[91,28,91,30],[88,0,88,2],[88,3,88,24],[88,25,88,27],[88,28,88,30],[89,0,89,2],[89,3,89,24],[89,25,89,27],[89,28,89,30],[87,0,87,2],[87,3,87,24],[87,25,87,27],[87,28,87,30],[84,0,84,2],[84,3,84,24],[84,25,84,27],[84,28,84,30],[85,0,85,2],[85,3,85,24],[85,25,85,27],[85,28,85,30],[86,0,86,2],[86,3,86,24],[86,25,86,27],[86,28,86,30],[82,0,82,2],[82,3,82,24],[82,25,82,27],[82,28,82,30],[83,0,83,2],[83,3,83,24],[83,25,83,27],[83,28,83,30],[79,0,79,2],[79,3,79,24],[79,25,79,27],[79,28,79,30],[80,0,80,2],[80,3,80,24],[80,25,80,27],[80,28,80,30],[81,0,81,2],[81,3,81,24],[81,25,81,27],[81,28,81,30],[76,0,76,2],[76,3,76,24],[76,25,76,27],[76,28,76,30],[77,0,77,2],[77,3,77,24],[77,25,77,27],[77,28,77,30],[78,0,78,2],[78,3,78,24],[78,25,78,27],[74,0,74,2],[74,3,74,24],[74,25,74,27],[74,28,74,30],[75,0,75,2],[75,3,75,24],[75,25,75,27],[75,28,75,30],[72,0,72,2],[72,3,72,24],[72,25,72,27],[72,28,72,30],[73,0,73,2],[73,3,73,24],[73,25,73,27],[73,28,73,30],[71,0,71,2],[71,3,71,24],[71,25,71,27],[71,28,71,30],[69,0,69,2],[69,3,69,24],[69,25,69,27],[69,28,69,30],[70,0,70,2],[70,3,70,24],[70,25,70,27],[70,28,70,30],[65,0,65,2],[65,3,65,24],[65,25,65,27],[65,28,65,30],[67,0,67,2],[67,3,67,24],[67,25,67,27],[67,28,67,30],[68,0,68,2],[68,3,68,24],[68,25,68,27],[68,28,68,30],[66,0,66,2],[66,3,66,24],[66,25,66,27],[66,28,66,30],[60,0,60,2],[60,3,60,24],[60,25,60,27],[60,28,60,30],[64,0,64,2],[64,3,64,24],[64,25,64,27],[64,28,64,30],[61,0,61,2],[61,3,61,24],[61,25,61,27],[61,28,61,30],[62,0,62,2],[62,3,62,24],[62,25,62,27],[62,28,62,30],[63,0,63,2],[63,3,63,24],[63,25,63,27],[63,28,63,30],[59,0,59,2],[59,3,59,24],[59,25,59,27],[59,28,59,30],[57,0,57,2],[57,3,57,24],[57,25,57,27],[57,28,57,30],[58,0,58,2],[58,3,58,24],[58,25,58,27],[58,28,58,30],[55,0,55,2],[55,3,55,24],[55,25,55,27],[55,28,55,30],[56,0,56,2],[56,3,56,24],[56,25,56,27],[56,28,56,30],[53,0,53,2],[53,3,53,24],[53,25,53,27],[53,28,53,30],[54,0,54,2],[54,3,54,24],[54,25,54,27],[54,28,54,30],[52,0,52,2],[52,3,52,24],[52,25,52,27],[52,28,52,30],[49,0,49,2],[49,3,49,24],[49,25,49,27],[49,28,49,30],[50,0,50,2],[50,3,50,24],[50,25,50,27],[50,28,50,30],[51,0,51,2],[51,3,51,24],[51,25,51,27],[51,28,51,30],[41,0,41,2],[41,3,41,24],[41,25,41,27],[41,28,41,30],[47,0,47,2],[47,3,47,24],[47,25,47,27],[47,28,47,30],[48,0,48,2],[48,3,48,24],[48,25,48,27],[48,28,48,30],[45,0,45,2],[45,3,45,24],[45,25,45,27],[45,28,45,30],[46,0,46,2],[46,3,46,24],[46,25,46,27],[46,28,46,30],[43,0,43,2],[43,3,43,24],[43,25,43,27],[43,28,43,30],[44,0,44,2],[44,3,44,24],[44,25,44,27],[44,28,44,30],[42,0,42,2],[42,3,42,24],[42,25,42,27],[42,28,42,30],[36,0,36,2],[36,3,36,24],[36,25,36,27],[36,28,36,30],[39,0,39,2],[39,3,39,24],[39,25,39,27],[39,28,39,30],[40,0,40,2],[40,3,40,24],[40,25,40,27],[40,28,40,30],[37,0,37,2],[37,3,37,24],[37,25,37,27],[37,28,37,30],[38,0,38,2],[38,3,38,24],[38,25,38,27],[38,28,38,30],[35,0,35,2],[35,3,35,24],[35,25,35,27],[35,28,35,30],[33,0,33,2],[33,3,33,24],[33,25,33,27],[33,28,33,30],[34,0,34,2],[34,3,34,24],[34,25,34,27],[34,28,34,30],[32,0,32,2],[32,3,32,24],[32,25,32,27],[32,28,32,30],[30,0,30,2],[30,3,30,24],[30,25,30,27],[30,28,30,30],[31,0,31,2],[31,3,31,24],[31,25,31,27],[31,28,31,30],[29,0,29,2],[29,3,29,24],[29,25,29,27],[29,28,29,30],[27,0,27,2],[27,3,27,24],[27,25,27,27],[27,28,27,30],[28,0,28,2],[28,3,28,24],[28,25,28,27],[28,28,28,30],[22,0,22,2],[22,3,22,24],[22,25,22,27],[22,28,22,30],[25,0,25,2],[25,3,25,24],[25,25,25,27],[25,28,25,30],[23,0,23,2],[23,3,23,24],[23,25,23,27],[23,28,23,30],[24,0,24,2],[24,3,24,24],[24,25,24,27],[24,28,24,30],[20,28,20,30],[21,3,21,24],[21,25,21,27],[21,28,21,30],[21,0,21,2],[17,0,17,2],[17,3,17,24],[17,25,17,27],[17,28,17,30],[18,0,18,2],[18,3,18,24],[18,25,18,27],[18,28,18,30],[26,0,26,2],[26,3,26,24],[26,25,26,27],[26,28,26,30],[5,28,5,30],[6,0,6,2],[15,28,15,30],[14,25,14,27],[14,28,14,30],[11,0,11,2],[11,3,11,24],[11,25,11,27],[11,28,11,30],[12,0,12,2],[12,3,12,24],[12,25,12,27],[12,28,12,30],[19,0,19,2],[19,3,19,24],[19,25,19,27],[19,28,19,30],[3,0,3,2],[3,3,3,24],[3,25,3,27],[3,28,3,30],[5,0,5,2],[5,3,5,24],[5,25,5,27],[120,0,120,2],[124,3,124,24],[117,0,117,2],[117,3,117,24],[117,25,117,27],[117,28,117,30],[118,0,118,2],[118,3,118,24],[118,25,118,27],[0,0,0,30],[2,0,2,30],[115,0,115,2],[116,0,116,2],[115,3,115,24],[116,3,116,24],[115,25,115,27],[116,25,116,27],[115,28,115,30],[116,28,116,30],[114,0,114,2],[114,3,114,24],[114,25,114,27]],"merged_total":1099,"flags":["merged_cut"]}
["Сведения о результатах проведенных контрольных мероприятий"]
[{"$f":"CONCATENATE(\"по состоянию на \",'1. Начальные данные'!D18,\" \",'1. Начальные данные'!F18)","v":"по состоянию на 31 декабря 2017 года"}]
[{"$f":"'1. Начальные данные'!D17","v":"МР Нуримановский район РБ"}]
["№№",null,null,"Показатели",null,null,null,null,null,null,null,null,null,null,null,null,null,null,null,null,null,null,null,null,null,"Код\nстроки",null,null,"Сумма\nвсего"]
[1,null,null,2,null,null,null,null,null,null,null,null,null,null,null,null,null,null,null,null,null,null,null,null,null,3,null,null,4]
["I.",null,null,"Проведено ревизий и проверок (единиц), в том числе:",null,null,null,null,null,null,null,null,null,null,null,null,null,null,null,null,null,null,null,null,null,1,null,null,{"$f":"AC7+AC8","v":6}]
[null,null,null,"ревизий",null,null,null,null,null,null,null,null,null,null,null,null,null,null,null,null,null,null,null,null,null,"1.1",null,null,4]
[null,null,null,"проверок",null,null,null,null,null,null,null,null,null,null,null,null,null,null,null,null,null,null,null,null,null,"1.2",null,null,2]
[null,null,null,"по плану",null,null,null,null,null,null,null,null,null,null,null,null,null,null,null,null,null,null,null,null,null,2,null,null,4,null,null,{"$f":"IF(SUM(AC9:AE14)=AC6,\"\",\"строка 1 должна совпадать с суммой строк 2-7\")","v":""}]
[null,null,null,"по поручениям администрации республики",null,null,null,null,null,null,null,null,null,null,null,null,null,null,null,null,null,null,null,null,null,3]
[null,null,null,"по обращениям органов местного самоуправлении",null,null,null,null,null,null,null,null,null,null,null,null,null,null,null,null,null,null,null,null,null,4,null,null,2]
[null,null,null,"по обращениям органов прокуратуры и МВД",null,null,null,null,null,null,null,null,null,null,null,null,null,null,null,null,null,null,null,null,null,5]
[null,null,null,"по обращениям физических лиц",null,null,null,null,null,null,null,null,null,null,null,null,null,null,null,null,null,null,null,null,null,6]
[null,null,null,"по обращениям прочих юридических лиц",null,null,null,null,null,null,null,null,null,null,null,null,null,null,null,null,null,null,null,null,null,7]
[null,null,null,"Проведено встречных проверок (единиц)",null,null,null,null,null,null,null,null,null,null,null,null,null,null,null,null,null,null,null,null,null,8]
[null,null,null,"Ревизии и проверки проведены в учреждениях, (единиц):"]
[null,null,null,"состоящих на бюджете Республики Башкортостан ",null,null,null,null,null,null,null,null,null,null,null,null,null,null,null,null,null,null,null,null,null,9]
[null,null,null,"состоящих на муниципальном бюджете",null,null,null,null,null,null,null,null,null,null,null,null,null,null,null,null,null,null,null,null,null,10,null,null,5]
[null,null,null,"являющихся государственным унитарным предприятием",null,null,null,null,null,null,null,null,null,null,null,null,null,null,null,null,null,null,null,null,null,11]
[null,null,null,"являющихся муниципальным унитарным предприятием",null,null,null,null,null,null,null,null,null,null,null,null,null,null,null,null,null,null,null,null,null,12,null,null,1]
[null,null,null,"прочие организации",null,null,null,null,null,null,null,null,null,null,null,null,null,null,null,null,null,null,null,null,null,13]
[null,null,null,"Количество проведенных инвентаризаций ТМЦ, кассы (денежных средств и ценных бумаг и т.п.)",null,null,null,null,null,null,null,null,null,null,null,null,null,null,null,null,null,null,null,null,null,14,null,null,10]
["II.",null,null,"Сведения о выявленных ревизиями (проверками) финансовых нарушениях "]
[null,null,null,"Количество ревизий и проверок, которыми выявлены финансовые нарушения – всего: (единиц)",null,null,null,null,null,null,null,null,null,null,null,null,null,null,null,null,null,null,null,null,null,15,null,null,5]
[null,null,null,"в использовании средств бюджета Республики Башкортостан ",null,null,null,null,null,null,null,null,null,null,null,null,null,null,null,null,null,null,null,null,null,"15/1"]
[null,null,null,"в использовании средств бюджета муниципального образования",null,null,null,null,null,null,null,null,null,null,null,null,null,null,null,null,null,null,null,null,null,"15/2",null,null,5]
[null,null,null,"в использовании средств, полученных от оказания платных услуг и\nосуществления иной приносящей доход деятельности ",null,null,null,null,null,null,null,null,null,null,null,null,null,null,null,null,null,null,null,null,null,"15/3"]
[null,null,null,"в использовании прочих средств",null,null,null,null,null,null,null,null,null,null,null,null,null,null,null,null,null,null,null,null,null,"15/4"]
["1.",null,null,"Сумма финансовых нарушений, в том числе:",null,null,null,null,null,null,null,null,null,null,null,null,null,null,null,null,null,null,null,null,null,16,null,null,{"$f":"'3. Объяснительная'!$F$8","v":3313.2999999999997},null,null,null,{"$f":"IF(AC29>1000000,\"обратите внимание: суммы нарушений в третьей вкладке 'Объяснительная' указываются в тыс.рублей\",\"\")","v":""}]
[null,null,null,"в использовании средств бюджета Республики Башкортостан ",null,null,null,null,null,null,null,null,null,null,null,null,null,null,null,null,null,null,null,null,null,"16/1",null,null,{"$f":"'3. Объяснительная'!K8","v":0}]
[null,null,null,"в использовании средств бюджета муниципального образования ",null,null,null,null,null,null,null,null,null,null,null,null,null,null,null,null,null,null,null,null,null,"16/2",null,null,{"$f":"'3. Объяснительная'!P8","v":3313.2999999999997}]
[null,null,null,"в использовании средств, полученных от оказания платных услуг и\nосуществления иной приносящей доход деятельности ",null,null,null,null,null,null,null,null,null,null,null,null,null,null,null,null,null,null,null,null,null,"16/3",null,null,{"$f":"'3. Объяснительная'!U8","v":0}]
[null,null,null,"в использовании прочих средств",null,null,null,null,null,null,null,null,null,null,null,null,null,null,null,null,null,null,null,null,null,"16/4",null,null,{"$f":"'3. Объяснительная'!Z8","v":0}]
["1.1.",null,null,"Нецелевое использование средств, в том числе:",null,null,null,null,null,null,null,null,null,null,null,null,null,null,null,null,null,null,null,null,null,17,null,null,{"$f":"'3. Объяснительная'!F9","v":27}]
[null,null,null,"средств бюджета Республики Башкортостан ",null,null,null,null,null,null,null,null,null,null,null,null,null,null,null,null,null,null,null,null,null,"17/1",null,null,{"$f":"'3. Объяснительная'!K9","v":0}]
[null,null,null,"средств бюджета муниципального образования ",null,null,null,null,null,null,null,null,null,null,null,null,null,null,null,null,null,null,null,null,null,"17/2",null,null,{"$f":"'3. Объяснительная'!P9","v":27}]
[null,null,null,"в использовании средств, полученных от оказания платных услуг и\nосуществления иной приносящей доход деятельности ",null,null,null,null,null,null,null,null,null,null,null,null,null,null,null,null,null,null,null,null,null,"17/3",null,null,{"$f":"'3. Объяснительная'!U9","v":0}]
[null,null,null,"в использовании прочих средств",null,null,null,null,null,null,null,null,null,null,null,null,null,null,null,null,null,null,null,null,null,"17/4",null,null,{"$f":"'3. Объяснительная'!Z9","v":0}]
["1.2.",null,null,"Неэффективное использование материальных ресурсов и денежных средств, в том числе:",null,null,null,null,null,null,null,null,null,null,null,null,null,null,null,null,null,null,null,null,null,18,null,null,{"$f":"'3. Объяснительная'!F41","v":103}]
[null,null,null,"средств бюджета Республики Башкортостан ",null,null,null,null,null,null,null,null,null,null,null,null,null,null,null,null,null,null,null,null,null,"18/1",null,null,{"$f":"'3. Объяснительная'!K41","v":0}]
[null,null,null,"средств бюджета муниципального образования ",null,null,null,null,null,null,null,null,null,null,null,null,null,null,null,null,null,null,null,null,null,"18/2",null,null,{"$f":"'3. Объяснительная'!P41","v":103}]
[null,null,null,"в использовании средств, полученных от оказания платных услуг и\nосуществления иной приносящей доход деятельности ",null,null,null,null,null,null,null,null,null,null,null,null,null,null,null,null,null,null,null,null,null,"18/3",null,null,{"$f":"'3. Объяснительная'!U41","v":0}]
[null,null,null,"в использовании прочих средств",null,null,null,null,null,null,null,null,null,null,null,null,null,null,null,null,null,null,null,null,null,"18/4",null,null,{"$f":"'3. Объяснительная'!Z41","v":0}]
["1.3.",null,null,"Недостача денежных средств, в том числе:",null,null,null,null,null,null,null,null,null,null,null,null,null,null,null,null,null,null,null,null,null,19,null,null,{"$f":"'3. Объяснительная'!F124","v":0}]
[null,null,null,"средств бюджета Республики Башкортостан ",null,null,null,null,null,null,null,null,null,null,null,null,null,null,null,null,null,null,null,null,null,"19/1",null,null,{"$f":"'3. Объяснительная'!K124","v":0}]
[null,null,null,"средств бюджета муниципального образования ",null,null,null,null,null,null,null,null,null,null,null,null,null,null,null,null,null,null,null,null,null,"19/2",null,null,{"$f":"'3. Объяснительная'!P124","v":0}]
[null,null,null,"средств, полученных от оказания платных услуг и осуществления иной приносящей доход деятельности",null,null,null,null,null,null,null,null,null,null,null,null,null,null,null,null,null,null,null,null,null,"19/3",null,null,{"$f":"'3. Объяснительная'!U124","v":0}]
[null,null,null,"прочих средств",null,null,null,null,null,null,null,null,null,null,null,null,null,null,null,null,null,null,null,null,null,"19/4",null,null,{"$f":"'3. Объяснительная'!Z124","v":0}]
["1.4.",null,null,"Недостача материальных ресурсов: в том числе",null,null,null,null,null,null,null,null,null,null,null,null,null,null,null,null,null,null,null,null,null,20,null,null,{"$f":"'3. Объяснительная'!F126","v":0}]
[null,null,null,"приобретенных за счет средств бюджета Республики Башкортостан ",null,null,null,null,null,null,null,null,null,null,null,null,null,null,null,null,null,null,null,null,null,"20/1",null,null,{"$f":"'3. Объяснительная'!K126","v":0}]
[null,null,null,"приобретенных за счет средств бюджета муниципального образования ",null,null,null,null,null,null,null,null,null,null,null,null,null,null,null,null,null,null,null,null,null,"20/2",null,null,{"$f":"'3. Объяснительная'!P126","v":0}]
[null,null,null,"приобретенных за счет средств, полученных от оказания платных услуг и осуществления иной приносящей доход деятельности",null,null,null,null,null,null,null,null,null,null,null,null,null,null,null,null,null,null,null,null,null,"20/3",null,null,{"$f":"'3. Объяснительная'!U126","v":0}]
[null,null,null,"приобретенных за счет прочих средств",null,null,null,null,null,null,null,null,null,null,null,null,null,null,null,null,null,null,null,null,null,"20/4",null,null,{"$f":"'3. Объяснительная'!Z126","v":0}]
["1.5.",null,null,"Недопоступление платежей в бюджет, в том числе:",null,null,null,null,null,null,null,null,null,null,null,null,null,null,null,null,null,null,null,null,null,21,null,null,{"$f":"'3. Объяснительная'!F130","v":0}]
["1.5.1.",null,null,"Налоговые платежи, из них:",null,null,null,null,null,null,null,null,null,null,null,null,null,null,null,null,null,null,null,null,null,22,null,null,{"$f":"'3. Объяснительная'!F152","v":0}]
[null,null,null,"в бюджет Республики Башкортостан",null,null,null,null,null,null,null,null,null,null,null,null,null,null,null,null,null,null,null,null,null,"22/1",null,null,{"$f":"'3. Объяснительная'!K152","v":0}]
[null,null,null,"в бюджет муниципального образования ",null,null,null,null,null,null,null,null,null,null,null,null,null,null,null,null,null,null,null,null,null,"22/2",null,null,{"$f":"'3. Объяснительная'!P152","v":0}]
["1.5.2.",null,null,"Неналоговые платежи, из них:",null,null,null,null,null,null,null,null,null,null,null,null,null,null,null,null,null,null,null,null,null,23,null,null,{"$f":"'3. Объяснительная'!F155","v":0}]
[null,null,null,"в бюджет Республики Башкортостан",null,null,null,null,null,null,null,null,null,null,null,null,null,null,null,null,null,null,null,null,null,"23/1",null,null,{"$f":"'3. Объяснительная'!K155","v":0}]
[null,null,null,"в бюджет муниципального образования ",null,null,null,null,null,null,null,null,null,null,null,null,null,null,null,null,null,null,null,null,null,"23/2",null,null,{"$f":"'3. Объяснительная'!P155","v":0}]
["1.6.",null,null,"Излишки материальных ценностей и денежных средств, в том числе:",null,null,null,null,null,null,null,null,null,null,null,null,null,null,null,null,null,null,null,null,null,24,null,null,{"$f":"'3. Объяснительная'!F172","v":3107.1}]
[null,null,null,"средств бюджета Республики Башкортостан ",null,null,null,null,null,null,null,null,null,null,null,null,null,null,null,null,null,null,null,null,null,"24/1",null,null,{"$f":"'3. Объяснительная'!K172","v":0}]
[null,null,null,"средств бюджета муниципального образования ",null,null,null,null,null,null,null,null,null,null,null,null,null,null,null,null,null,null,null,null,null,"24/2",null,null,{"$f":"'3. Объяснительная'!P172","v":3107.1}]
[null,null,null,"средств, полученных от оказания платных услуг и осуществления иной приносящей доход деятельности",null,null,null,null,null,null,null,null,null,null,null,null,null,null,null,null,null,null,null,null,null,"24/3",null,null,{"$f":"'3. Объяснительная'!U172","v":0}]
[null,null,null,"прочих средств",null,null,null,null,null,null,null,null,null,null,null,null,null,null,null,null,null,null,null,null,null,"24/4",null,null,{"$f":"'3. Объяснительная'!Z172","v":0}]
["1.7.",null,null,"Неправомерное расходование денежных средств и материальных ресурсов, в том числе:",null,null,null,null,null,null,null,null,null,null,null,null,null,null,null,null,null,null,null,null,null,25,null,null,{"$f":"'3. Объяснительная'!F175","v":2.2000000000000002}]
[null,null,null,"средств бюджета Республики Башкортостан ",null,null,null,null,null,null,null,null,null,null,null,null,null,null,null,null,null,null,null,null,null,"25/1",null,null,{"$f":"'3. Объяснительная'!K175","v":0}]
[null,null,null,"средств бюджета муниципального образования ",null,null,null,null,null,null,null,null,null,null,null,null,null,null,null,null,null,null,null,null,null,"25/2",null,null,{"$f":"'3. Объяснительная'!P175","v":2.2000000000000002}]
[null,null,null,"средств, полученных от оказания платных услуг и осуществления иной приносящей доход деятельности ",null,null,null,null,null,null,null,null,null,null,null,null,null,null,null,null,null,null,null,null,null,"25/3",null,null,{"$f":"'3. Объяснительная'!U175","v":0}]
[null,null,null,"прочих средств",null,null,null,null,null,null,null,null,null,null,null,null,null,null,null,null,null,null,null,null,null,"25/4",null,null,{"$f":"'3. Объяснительная'!Z175","v":0}]
["1.8.",null,null,"Другие финансовые нарушения, в том числе:",null,null,null,null,null,null,null,null,null,null,null,null,null,null,null,null,null,null,null,null,null,26,null,null,{"$f":"'3. Объяснительная'!F266","v":74}]
[null,null,null,"средств бюджета Республики Башкортостан ",null,null,null,null,null,null,null,null,null,null,null,null,null,null,null,null,null,null,null,null,null,"26/1",null,null,{"$f":"'3. Объяснительная'!K266","v":0}]
[null,null,null,"средств бюджета муниципального образования ",null,null,null,null,null,null,null,null,null,null,null,null,null,null,null,null,null,null,null,null,null,"26/2",null,null,{"$f":"'3. Объяснительная'!P266","v":74}]
[null,null,null,"средств, полученных от оказания платных услуг и осуществления иной приносящей доход деятельности",null,null,null,null,null,null,null,null,null,null,null,null,null,null,null,null,null,null,null,null,null,"26/3",null,null,{"$f":"'3. Объяснительная'!U266","v":0}]
[null,null,null,"прочих средств",null,null,null,null,null,null,null,null,null,null,null,null,null,null,null,null,null,null,null,null,null,"26/4",null,null,{"$f":"'3. Объяснительная'!Z266","v":0}]
["III.",null,null,"Сведения о мерах, принятых по реализации материалов ревизий (проверок)"]
["1.",null,null,"Направлено представлений, предписаний (писем, служебных записок):",null,null,null,null,null,null,null,null,null,null,null,null,null,null,null,null,null,null,null,null,null,27,null,null,{"$f":"SUM(AC78:AE83)","v":7}]
[null,null,null,"в МФ РБ (единиц)",null,null,null,null,null,null,null,null,null,null,null,null,null,null,null,null,null,null,null,null,null,"27/1"]
[null,null,null,"в ФУ администраций муниципальных районов и городских округов (единиц)",null,null,null,null,null,null,null,null,null,null,null,null,null,null,null,null,null,null,null,null,null,"27/2"]
[null,null,null,"в администрацию города, района (единиц)",null,null,null,null,null,null,null,null,null,null,null,null,null,null,null,null,null,null,null,null,null,"27/3",null,null,1]
[null,null,null,"руководителю организации и учреждения (единиц) ",null,null,null,null,null,null,null,null,null,null,null,null,null,null,null,null,null,null,null,null,null,"27/4",null,null,6]
[null,null,null,"в вышестоящую организацию (единиц)",null,null,null,null,null,null,null,null,null,null,null,null,null,null,null,null,null,null,null,null,null,"27/5"]
[null,null,null,"прочим учреждениям и организациям (единиц) ",null,null,null,null,null,null,null,null,null,null,null,null,null,null,null,null,null,null,null,null,null,"27/6"]
[null,null,null,"На сумму выявленных финансовых нарушений в использовании средств ",null,null,null,null,null,null,null,null,null,null,null,null,null,null,null,null,null,null,null,null,null,28,null,null,{"$f":"SUM(AC85:AE88)","v":3236.9}]
[null,null,null,"бюджета Республики Башкортостан",null,null,null,null,null,null,null,null,null,null,null,null,null,null,null,null,null,null,null,null,null,"28/1"]
[null,null,null,"бюджета муниципального образования ",null,null,null,null,null,null,null,null,null,null,null,null,null,null,null,null,null,null,null,null,null,"28/2",null,null,3236.9]
[null,null,null,"полученных от оказания платных услуг и осуществления иной приносящей доход деятельности",null,null,null,null,null,null,null,null,null,null,null,null,null,null,null,null,null,null,null,null,null,"28/3"]
[null,null,null,"прочих",null,null,null,null,null,null,null,null,null,null,null,null,null,null,null,null,null,null,null,null,null,"28/4"]
["2.",null,null,"Приняты меры по представлениям (предписаниям) ",null,null,null,null,null,null,null,null,null,null,null,null,null,null,null,null,null,null,null,null,null,29,null,null,{"$f":"SUM(AC90:AE95)","v":4}]
[null,null,null,"МФ РБ (единиц)",null,null,null,null,null,null,null,null,null,null,null,null,null,null,null,null,null,null,null,null,null,"29/1"]
[null,null,null,"ФУ администраций муниципальных районов и городских округов (единиц) ",null,null,null,null,null,null,null,null,null,null,null,null,null,null,null,null,null,null,null,null,null,"29/2"]
[null,null,null,"администрацией города, района (единиц)",null,null,null,null,null,null,null,null,null,null,null,null,null,null,null,null,null,null,null,null,null,"29/3"]
[null,null,null,"руководителем организации и учреждения (единиц) ",null,null,null,null,null,null,null,null,null,null,null,null,null,null,null,null,null,null,null,null,null,"29/4",null,null,4]
[null,null,null,"вышестоящей организацией (единиц)",null,null,null,null,null,null,null,null,null,null,null,null,null,null,null,null,null,null,null,null,null,"29/5"]
[null,null,null,"прочими учреждениями и организациями (единиц) ",null,null,null,null,null,null,null,null,null,null,null,null,null,null,null,null,null,null,null,null,null,"29/6"]
["2.1.",null,null,"На сумму выявленных финансовых нарушений в использовании средств ",null,null,null,null,null,null,null,null,null,null,null,null,null,null,null,null,null,null,null,null,null,30,null,null,{"$f":"SUM(AC97:AE100)","v":3181.1}]
[null,null,null,"бюджета Республики Башкортостан",null,null,null,null,null,null,null,null,null,null,null,null,null,null,null,null,null,null,null,null,null,"30/1"]
[null,null,null,"бюджета муниципального образования ",null,null,null,null,null,null,null,null,null,null,null,null,null,null,null,null,null,null,null,null,null,"30/2",null,null,3181.1]
[null,null,null,"полученных от оказания платных услуг и осуществления иной приносящей доход деятельности",null,null,null,null,null,null,null,null,null,null,null,null,null,null,null,null,null,null,null,null,null,"30/3"]
[null,null,null,"прочих",null,null,null,null,null,null,null,null,null,null,null,null,null,null,null,null,null,null,null,null,null,"30/4"]
["3.",null,null,"Передано органам прокуратуры и правоохранительным органам материалов ревизий (проверок) – всего: (единиц)",null,null,null,null,null,null,null,null,null,null,null,null,null,null,null,null,null,null,null,null,null,31]
["3.1.",null,null,"На сумму выявленных финансовых нарушений, в том числе:",null,null,null,null,null,null,null,null,null,null,null,null,null,null,null,null,null,null,null,null,null,34,null,null,{"$f":"SUM(AC103:AE106)","v":0}]
[null,null,null,"в использовании средств бюджета Республики Башкортостан",null,null,null,null,null,null,null,null,null,null,null,null,null,null,null,null,null,null,null,null,null,"34/1"]
[null,null,null,"в использовании средств муниципального образования",null,null,null,null,null,null,null,null,null,null,null,null,null,null,null,null,null,null,null,null,null,"34/2"]
[null,null,null,"в использовании средств, полученных от оказания платных услуг и осуществления иной приносящей доход деятельности",null,null,null,null,null,null,null,null,null,null,null,null,null,null,null,null,null,null,null,null,null,"34/3"]
[null,null,null,"в использовании прочих средств",null,null,null,null,null,null,null,null,null,null,null,null,null,null,null,null,null,null,null,null,null,"34/4"]
["4.",null,null,"Количество возбужденных уголовных дел – всего (единиц), в том числе:",null,null,null,null,null,null,null,null,null,null,null,null,null,null,null,null,null,null,null,null,null,35,null,null,{"$f":"SUM(AC108:AE109)","v":0}]
[null,null,null,"по материалам ревизий и проверок, проведенных по обращению органов прокуратуры и правоохранительных органов",null,null,null,null,null,null,null,null,null,null,null,null,null,null,null,null,null,null,null,null,null,"35/1"]
[null,null,null,"по материалам ревизий и проверок, переданных по инициативе органов, осуществляющих финансовый контроль",null,null,null,null,null,null,null,null,null,null,null,null,null,null,null,null,null,null,null,null,null,"35/2"]
["4.1",null,null,"На сумму выявленных финансовых нарушений, в том числе:",null,null,null,null,null,null,null,null,null,null,null,null,null,null,null,null,null,null,null,null,null,36,null,null,{"$f":"SUM(AC111:AE114)","v":0}]
[null,null,null,"в использовании средств бюджета Республики Башкортостан",null,null,null,null,null,null,null,null,null,null,null,null,null,null,null,null,null,null,null,null,null,"36/1"]
[null,null,null,"в использовании средств муниципального образования",null,null,null,null,null,null,null,null,null,null,null,null,null,null,null,null,null,null,null,null,null,"36/2"]
[null,null,null,"в использовании средств, полученных от оказания платных услуг и осуществления иной приносящей доход деятельности",null,null,null,null,null,null,null,null,null,null,null,null,null,null,null,null,null,null,null,null,null,"36/3"]
[null,null,null,"в использовании прочих средств",null,null,null,null,null,null,null,null,null,null,null,null,null,null,null,null,null,null,null,null,null,"36/4"]
["5.",null,null,"Количество отказов в возбуждении уголовных дел органами прокуратуры и правоохранительными органами – всего (единиц), в том числе:",null,null,null,null,null,null,null,null,null,null,null,null,null,null,null,null,null,null,null,null,null,37,null,null,{"$f":"SUM(AC116:AE117)","v":0}]
[null,null,null,"по материалам ревизий и проверок, проведенных по обращению органов прокуратуры и правоохранительных органов ",null,null,null,null,null,null,null,null,null,null,null,null,null,null,null,null,null,null,null,null,null,"37/1"]
[null,null,null,"по материалам ревизий и проверок, переданных по инициативе органов, осуществляющих финансовый контроль ",null,null,null,null,null,null,null,null,null,null,null,null,null,null,null,null,null,null,null,null,null,"37/2"]
["5.1",null,null,"На сумму финансовых нарушений, в том числе:",null,null,null,null,null,null,null,null,null,null,null,null,null,null,null,null,null,null,null,null,null,38,null,null,{"$f":"SUM(AC119:AE122)","v":0}]
[null,null,null,"в использовании средств бюджета Республики Башкортостан",null,null,null,null,null,null,null,null,null,null,null,null,null,null,null,null,null,null,null,null,null,"38/1"]
[null,null,null,"в использовании средств муниципального образования",null,null,null,null,null,null,null,null,null,null,null,null,null,null,null,null,null,null,null,null,null,"38/2"]
[null,null,null,"в использовании средств, полученных от оказания платных услуг и осуществления иной приносящей доход деятельности",null,null,null,null,null,null,null,null,null,null,null,null,null,null,null,null,null,null,null,null,null,"38/3"]
[null,null,null,"в использовании прочих средств",null,null,null,null,null,null,null,null,null,null,null,null,null,null,null,null,null,null,null,null,null,"38/4"]
["IV.",null,null,"Сведения по протоколам об административных правонарушениях"]
["1.",null,null,"Количество протоколов об административных правонарушениях, составленных должностными лицами органов, осуществляющих финансовый контроль (единиц), в том числе:",null,null,null,null,null,null,null,null,null,null,null,null,null,null,null,null,null,null,null,null,null,39,null,null,{"$f":"SUM(AC125:AE129)","v":0}]
[null,null,null,"за нецелевое использование средств бюджета Республики Башкортостан (единиц)",null,null,null,null,null,null,null,null,null,null,null,null,null,null,null,null,null,null,null,null,null,"39/1"]
[null,null,null,"за нецелевое использование средств бюджета муниципального образования (единиц)",null,null,null,null,null,null,null,null,null,null,null,null,null,null,null,null,null,null,null,null,null,"39/2"]
[null,null,null,"за нарушение сроков возврата средств бюджета РБ и сроков перечисления платы за пользование средствами бюджета РБ (единиц)",null,null,null,null,null,null,null,null,null,null,null,null,null,null,null,null,null,null,null,null,null,"39/3"]
[null,null,null,"за нарушение сроков возврата средств бюджета муниципального образования и сроков перечисления платы за пользование средствами бюджета муниципального образования (единиц)",null,null,null,null,null,null,null,null,null,null,null,null,null,null,null,null,null,null,null,null,null,"39/4"]
[null,null,null,"за прочие финансовые нарушения (единиц)",null,null,null,null,null,null,null,null,null,null,null,null,null,null,null,null,null,null,null,null,null,"39/5"]
["1.1",null,null,"На сумму нецелевого использования бюджетных средств, в том числе:",null,null,null,null,null,null,null,null,null,null,null,null,null,null,null,null,null,null,null,null,null,40,null,null,{"$f":"SUM(AC131:AE132)","v":0}]
[null,null,null,"средств бюджета Республики Башкортостан",null,null,null,null,null,null,null,null,null,null,null,null,null,null,null,null,null,null,null,null,null,"40/1"]
[null,null,null,"средств бюджета муниципального образования ",null,null,null,null,null,null,null,null,null,null,null,null,null,null,null,null,null,null,null,null,null,"40/2"]
["1.2",null,null,"На сумму бюджетных средств, невозвращенных в срок и сумму платы за пользование бюджетными средствами, не перечисленной в срок, в том числе:",null,null,null,null,null,null,null,null,null,null,null,null,null,null,null,null,null,null,null,null,null,41,null,null,{"$f":"SUM(AC134:AE135)","v":0}]
[null,null,null,"средств бюджета Республики Башкортостан ",null,null,null,null,null,null,null,null,null,null,null,null,null,null,null,null,null,null,null,null,null,"41/1"]
[null,null,null,"средств бюджета муниципального образования",null,null,null,null,null,null,null,null,null,null,null,null,null,null,null,null,null,null,null,null,null,"41/2"]
["2.",null,null,"Количество протоколов об административных правонарушениях, по результатам рассмотрения которых наложен административный штраф (единиц), в том числе:",null,null,null,null,null,null,null,null,null,null,null,null,null,null,null,null,null,null,null,null,null,42,null,null,{"$f":"SUM(AC137:AE141)","v":0}]
[null,null,null,"за нецелевое использование средств бюджета РБ (единиц) ",null,null,null,null,null,null,null,null,null,null,null,null,null,null,null,null,null,null,null,null,null,"42/1"]
[null,null,null,"за нецелевое использование средств бюджета муниципального образования (единиц)",null,null,null,null,null,null,null,null,null,null,null,null,null,null,null,null,null,null,null,null,null,"42/2"]
[null,null,null,"за нарушение сроков возврата средств бюджета РБ и сроков перечисления платы за пользование средствами бюджета РБ (единиц) ",null,null,null,null,null,null,null,null,null,null,null,null,null,null,null,null,null,null,null,null,null,"42/3"]
[null,null,null,"за нарушение сроков возврата средств бюджета муниципального образования и сроков перечисления платы за пользование средствами бюджета муниципального образования (единиц)",null,null,null,null,null,null,null,null,null,null,null,null,null,null,null,null,null,null,null,null,null,"42/4"]
[null,null,null,"за прочие нарушения (единиц)",null,null,null,null,null,null,null,null,null,null,null,null,null,null,null,null,null,null,null,null,null,"42/5"]
["3.",null,null,"Количество протоколов об административных правонарушениях, по которым дела об административных правонарушениях прекращены (единиц), в том числе:",null,null,null,null,null,null,null,null,null,null,null,null,null,null,null,null,null,null,null,null,null,43,null,null,{"$f":"SUM(AC143:AE146)","v":0}]
[null,null,null,"за нецелевое использование средств бюджета РБ (единиц)",null,null,null,null,null,null,null,null,null,null,null,null,null,null,null,null,null,null,null,null,null,"43/1"]
[null,null,null,"за нецелевое использование средств бюджета муниципального образования (единиц)",null,null,null,null,null,null,null,null,null,null,null,null,null,null,null,null,null,null,null,null,null,"43/2"]
[null,null,null,"за нарушение сроков возврата средств бюджета РБ и сроков перечисления платы за пользование средствами бюджета РБ (единиц)",null,null,null,null,null,null,null,null,null,null,null,null,null,null,null,null,null,null,null,null,null,"43/3"]
[null,null,null,"за нарушение сроков возврата средств бюджета муниципального образования и сроков перечисления платы за пользование средствами бюджета муниципального образования (единиц)",null,null,null,null,null,null,null,null,null,null,null,null,null,null,null,null,null,null,null,null,null,"43/4"]
["4.",null,null,"Количество взысканных штрафных санкций за нарушение бюджетного законодательства (единиц), в том числе:",null,null,null,null,null,null,null,null,null,null,null,null,null,null,null,null,null,null,null,null,null,44,null,null,{"$f":"SUM(AC148:AE152)","v":0}]
[null,null,null,"за нецелевое использование средств бюджета РБ (единиц) ",null,null,null,null,null,null,null,null,null,null,null,null,null,null,null,null,null,null,null,null,null,"44/1"]
[null,null,null,"за нецелевое использование средств бюджета муниципального образования (единиц)",null,null,null,null,null,null,null,null,null,null,null,null,null,null,null,null,null,null,null,null,null,"44/2"]
[null,null,null,"за нарушение сроков возврата средств бюджета РБ и сроков перечисления платы за пользование средствами бюджета Республики Башкортостан (единиц)",null,null,null,null,null,null,null,null,null,null,null,null,null,null,null,null,null,null,null,null,null,"44/3"]
[null,null,null,"за нарушение сроков возврата средств бюджета муниципального образования и сроков перечисления платы за пользование средствами бюджета муниципального образования (единиц)",null,null,null,null,null,null,null,null,null,null,null,null,null,null,null,null,null,null,null,null,null,"44/4"]
[null,null,null,"за нарушение условий предоставления субсидий",null,null,null,null,null,null,null,null,null,null,null,null,null,null,null,null,null,null,null,null,null,"44/5"]
["5.",null,null,"Взыскано штрафов за нарушение бюджетного законодательства (в тыс.рублей), в том числе:",null,null,null,null,null,null,null,null,null,null,null,null,null,null,null,null,null,null,null,null,null,45,null,null,{"$f":"SUM(AC154:AE155)","v":0}]
[null,null,null,"в бюджет Республики Башкортостан",null,null,null,null,null,null,null,null,null,null,null,null,null,null,null,null,null,null,null,null,null,"45/1"]
[null,null,null,"в бюджет муниципального образования",null,null,null,null,null,null,null,null,null,null,null,null,null,null,null,null,null,null,null,null,null,"45/2"]
["6.",null,null,"Количество материалов ревизий, направленных в другие органы для наложения административного взыскания – всего (единиц), в том числе:",null,null,null,null,null,null,null,null,null,null,null,null,null,null,null,null,null,null,null,null,null,46,null,null,{"$f":"SUM(AC157:AE159)","v":0}]
[null,null,null,"судебные органы",null,null,null,null,null,null,null,null,null,null,null,null,null,null,null,null,null,null,null,null,null,"46/1"]
[null,null,null,"налоговые органы",null,null,null,null,null,null,null,null,null,null,null,null,null,null,null,null,null,null,null,null,null,"46/2"]
[null,null,null,"прочие органы",null,null,null,null,null,null,null,null,null,null,null,null,null,null,null,null,null,null,null,null,null,"46/3"]
["7.",null,null,"Количество наложенных административных взысканий – всего (единиц), в том числе:",null,null,null,null,null,null,null,null,null,null,null,null,null,null,null,null,null,null,null,null,null,47,null,null,{"$f":"SUM(AC161:AE163)","v":0}]
[null,null,null,"судебными органами",null,null,null,null,null,null,null,null,null,null,null,null,null,null,null,null,null,null,null,null,null,"47/1"]
[null,null,null,"налоговыми органами",null,null,null,null,null,null,null,null,null,null,null,null,null,null,null,null,null,null,null,null,null,"47/2"]
[null,null,null,"прочими органами",null,null,null,null,null,null,null,null,null,null,null,null,null,null,null,null,null,null,null,null,null,"47/3"]
["8.",null,null,"Принято постановлений, решений или приказов органами государственной власти, местного самоуправления и проверяемыми учреждениями (единиц):",null,null,null,null,null,null,null,null,null,null,null,null,null,null,null,null,null,null,null,null,null,48,null,null,5]
["9.",null,null,"Число лиц, привлеченных к дисциплинарной ответственности – всего (чел.), в том числе:",null,null,null,null,null,null,null,null,null,null,null,null,null,null,null,null,null,null,null,null,null,49,null,null,1]
[null,null,null,"освобождено от занимаемой должности (человек)",null,null,null,null,null,null,null,null,null,null,null,null,null,null,null,null,null,null,null,null,null,"49/1"]
[null,null,null,"объявлены выговоры, замечания, предупреждения (человек)",null,null,null,null,null,null,null,null,null,null,null,null,null,null,null,null,null,null,null,null,null,"49/2",null,null,1]
["10.",null,null,"Число лиц, привлеченных к материальной ответственности (чел)",null,null,null,null,null,null,null,null,null,null,null,null,null,null,null,null,null,null,null,null,null,50]
["V.",null,null,"Возмещено средств, использованных с нарушением законодательства, дополнительно поступило платежей и предотвращено потерь по результатам проведенных ревизий и проверок"]
["1.",null,null,"Сумма возмещенных финансовых нарушений, в том числе:",null,null,null,null,null,null,null,null,null,null,null,null,null,null,null,null,null,null,null,null,null,51,null,null,{"$f":"SUM(AC171:AE174)","v":3107.1}]
[null,null,null,"средств бюджета Республики Башкортостан ",null,null,null,null,null,null,null,null,null,null,null,null,null,null,null,null,null,null,null,null,null,"51/1",null,null,{"$f":"AC176+AC203","v":0}]
[null,null,null,"средств бюджета муниципального образования ",null,null,null,null,null,null,null,null,null,null,null,null,null,null,null,null,null,null,null,null,null,"51/2",null,null,{"$f":"AC185+AC204","v":3107.1}]
[null,null,null,"средств, полученных от оказания платных услуг и осуществления иной приносящей доход деятельности",null,null,null,null,null,null,null,null,null,null,null,null,null,null,null,null,null,null,null,null,null,"51/3",null,null,{"$f":"AC192","v":0}]
[null,null,null,"прочих средств",null,null,null,null,null,null,null,null,null,null,null,null,null,null,null,null,null,null,null,null,null,"51/4",null,null,{"$f":"AC197","v":0}]
["1.1.",null,null,"Восстановлено в добровольном порядке, в том числе:",null,null,null,null,null,null,null,null,null,null,null,null,null,null,null,null,null,null,null,null,null,52,null,null,{"$f":"SUM(AC176,AC185,AC192,AC197)","v":3107.1}]
["1.1.1",null,null,"средств бюджета Республики Башкортостан ",null,null,null,null,null,null,null,null,null,null,null,null,null,null,null,null,null,null,null,null,null,"52/1",null,null,{"$f":"AC177+AC180","v":0}]
[null,null,null,"в доход бюджета Республики Башкортостан",null,null,null,null,null,null,null,null,null,null,null,null,null,null,null,null,null,null,null,null,null,"52/1/1",null,null,{"$f":"SUM(AC178:AE179)","v":0}]
[null,null,null,"на код ГАД - Минфин РБ",null,null,null,null,null,null,null,null,null,null,null,null,null,null,null,null,null,null,null,null,null,"52/1/1/1"]
[null,null,null,"на код ГАД - ГРБС",null,null,null,null,null,null,null,null,null,null,null,null,null,null,null,null,null,null,null,null,null,"52/1/1/2"]
[null,null,null,"на счета и в кассу учреждения",null,null,null,null,null,null,null,null,null,null,null,null,null,null,null,null,null,null,null,null,null,"52/1/2",null,null,{"$f":"SUM(AC181:AE184)","v":0}]
[null,null,null,"на лицевые счета учреждения",null,null,null,null,null,null,null,null,null,null,null,null,null,null,null,null,null,null,null,null,null,"52/1/2/1"]
[null,null,null,"в кассу учреждения ",null,null,null,null,null,null,null,null,null,null,null,null,null,null,null,null,null,null,null,null,null,"52/1/2/2"]
[null,null,null,"в регистрах бухгалтерского учета учреждения",null,null,null,null,null,null,null,null,null,null,null,null,null,null,null,null,null,null,null,null,null,"52/1/2/3"]
[null,null,null,"оприходованы излишки и неучтенные ценности, денежные средства",null,null,null,null,null,null,null,null,null,null,null,null,null,null,null,null,null,null,null,null,null,"52/1/2/4"]
["1.1.2",null,null,"средств бюджета муниципального образования ",null,null,null,null,null,null,null,null,null,null,null,null,null,null,null,null,null,null,null,null,null,"52/2",null,null,{"$f":"SUM(AC186:AE187)","v":3107.1}]
[null,null,null,"в доход бюджета муниципального образования",null,null,null,null,null,null,null,null,null,null,null,null,null,null,null,null,null,null,null,null,null,"52/2/1"]
[null,null,null,"на счета и в кассу учреждения",null,null,null,null,null,null,null,null,null,null,null,null,null,null,null,null,null,null,null,null,null,"52/2/2",null,null,{"$f":"SUM(AC188:AE191)","v":3107.1}]
[null,null,null,"на лицевые счета учреждения ",null,null,null,null,null,null,null,null,null,null,null,null,null,null,null,null,null,null,null,null,null,"52/2/2/1"]
[null,null,null,"в кассу учреждения ",null,null,null,null,null,null,null,null,null,null,null,null,null,null,null,null,null,null,null,null,null,"52/2/2/2"]
[null,null,null,"в регистрах бухгалтерского учета учреждения ",null,null,null,null,null,null,null,null,null,null,null,null,null,null,null,null,null,null,null,null,null,"52/2/2/3"]
[null,null,null,"оприходованы излишки и неучтенные ценности, денежные средства ",null,null,null,null,null,null,null,null,null,null,null,null,null,null,null,null,null,null,null,null,null,"52/2/2/4",null,null,3107.1]
["1.1.3",null,null,"средств, полученных бюджетными учреждениями от оказания платных услуг и осуществления иной приносящей доход деятельности ",null,null,null,null,null,null,null,null,null,null,null,null,null,null,null,null,null,null,null,null,null,"52/3",null,null,{"$f":"SUM(AC193:AE196)","v":0}]
[null,null,null,"на лицевые счета учреждения",null,null,null,null,null,null,null,null,null,null,null,null,null,null,null,null,null,null,null,null,null,"52/3/1"]
[null,null,null,"в кассу учреждения ",null,null,null,null,null,null,null,null,null,null,null,null,null,null,null,null,null,null,null,null,null,"52/3/2"]
[null,null,null,"в регистрах бухгалтерского учета учреждения",null,null,null,null,null,null,null,null,null,null,null,null,null,null,null,null,null,null,null,null,null,"52/3/3"]
[null,null,null,"оприходованы излишки и неучтенные ценности, денежные средства",null,null,null,null,null,null,null,null,null,null,null,null,null,null,null,null,null,null,null,null,null,"52/3/4"]
["1.1.4",null,null,"прочих средств",null,null,null,null,null,null,null,null,null,null,null,null,null,null,null,null,null,null,null,null,null,"52/4",null,null,{"$f":"SUM(AC198:AE201)","v":0}]
[null,null,null,"на банковские счета учреждения",null,null,null,null,null,null,null,null,null,null,null,null,null,null,null,null,null,null,null,null,null,"52/4/1"]
[null,null,null,"в кассу учреждения",null,null,null,null,null,null,null,null,null,null,null,null,null,null,null,null,null,null,null,null,null,"52/4/2"]
[null,null,null,"в регистрах бухгалтерского учета учреждения",null,null,null,null,null,null,null,null,null,null,null,null,null,null,null,null,null,null,null,null,null,"52/4/3"]
[null,null,null,"оприходованы излишки и неучтенные ценности, денежные средства",null,null,null,null,null,null,null,null,null,null,null,null,null,null,null,null,null,null,null,null,null,"52/4/4"]
["1.2.",null,null,"Уменьшено (сокращено) финансирование по постановлениям органов власти:",null,null,null,null,null,null,null,null,null,null,null,null,null,null,null,null,null,null,null,null,null,53,null,null,{"$f":"SUM(AC203:AE204)","v":0}]
[null,null,null,"средств бюджета Республики Башкортостан",null,null,null,null,null,null,null,null,null,null,null,null,null,null,null,null,null,null,null,null,null,"53/1"]
[null,null,null,"средств бюджета муниципального образования (по уведомлениям)",null,null,null,null,null,null,null,null,null,null,null,null,null,null,null,null,null,null,null,null,null,"53/2"]
["1.3.",null,null,"Дополнительно поступило платежей в бюджет, в том числе:",null,null,null,null,null,null,null,null,null,null,null,null,null,null,null,null,null,null,null,null,null,54]
["1.3.1.",null,null,"Налоговые платежи, из них:",null,null,null,null,null,null,null,null,null,null,null,null,null,null,null,null,null,null,null,null,null,55,null,null,{"$f":"SUM(AC207:AE208)","v":0}]
[null,null,null,"в бюджет Республики Башкортостан",null,null,null,null,null,null,null,null,null,null,null,null,null,null,null,null,null,null,null,null,null,"55/1"]
[null,null,null,"в бюджет муниципального образования",null,null,null,null,null,null,null,null,null,null,null,null,null,null,null,null,null,null,null,null,null,"55/2"]
["1.3.2",null,null,"Неналоговые платежи, из них:",null,null,null,null,null,null,null,null,null,null,null,null,null,null,null,null,null,null,null,null,null,56,null,null,{"$f":"SUM(AC210,AC213)","v":0}]
[null,null,null,"в бюджет Республики Башкортостан",null,null,null,null,null,null,null,null,null,null,null,null,null,null,null,null,null,null,null,null,null,"56/1",null,null,{"$f":"SUM(AC211:AE212)","v":0}]
[null,null,null,"по средствам бюджета Республики Башкортостан",null,null,null,null,null,null,null,null,null,null,null,null,null,null,null,null,null,null,null,null,null,"56/1/1"]
[null,null,null,"по имуществу Республики Башкортостан",null,null,null,null,null,null,null,null,null,null,null,null,null,null,null,null,null,null,null,null,null,"56/1/2"]
[null,null,null,"в бюджет муниципального образования",null,null,null,null,null,null,null,null,null,null,null,null,null,null,null,null,null,null,null,null,null,"56/2",null,null,{"$f":"SUM(AC214:AE215)","v":0}]
[null,null,null,"по средствам бюджета муниципального образования",null,null,null,null,null,null,null,null,null,null,null,null,null,null,null,null,null,null,null,null,null,"56/2/1"]
[null,null,null,"по имуществу муниципального образования",null,null,null,null,null,null,null,null,null,null,null,null,null,null,null,null,null,null,null,null,null,"56/2/2"]
["1.4.",null,null,"Предотвращены потери, в том числе:",null,null,null,null,null,null,null,null,null,null,null,null,null,null,null,null,null,null,null,null,null,57,null,null,{"$f":"SUM(AC217:AE220)","v":0}]
[null,null,null,"средств бюджета Республики Башкортостан",null,null,null,null,null,null,null,null,null,null,null,null,null,null,null,null,null,null,null,null,null,"57/1"]
[null,null,null,"средств бюджета муниципального образования",null,null,null,null,null,null,null,null,null,null,null,null,null,null,null,null,null,null,null,null,null,"57/2"]
[null,null,null,"средств, полученных от оказания платных услуг и осуществления иной приносящей доход деятельности",null,null,null,null,null,null,null,null,null,null,null,null,null,null,null,null,null,null,null,null,null,"57/3"]
[null,null,null,"прочих средств",null,null,null,null,null,null,null,null,null,null,null,null,null,null,null,null,null,null,null,null,null,"57/4"]
["VI",null,null,"Сумма подлежащая возмещению, в том числе",null,null,null,null,null,null,null,null,null,null,null,null,null,null,null,null,null,null,null,null,null,58,null,null,{"$f":"SUM(AC222:AE225)","v":3136.2999999999997}]
[null,null,null,"средств бюджета Республики Башкортостан",null,null,null,null,null,null,null,null,null,null,null,null,null,null,null,null,null,null,null,null,null,"58/1",null,null,{"$f":"AC35+AC67+AC45+AC50+AC62","v":0}]
[null,null,null,"средств бюджета муниципального образования",null,null,null,null,null,null,null,null,null,null,null,null,null,null,null,null,null,null,null,null,null,"58/2",null,null,{"$f":"AC36+AC68+AC46+AC51+AC63","v":3136.2999999999997}]
[null,null,null,"средств, полученных от оказания платных услуг и осуществления иной приносящей доход деятельности",null,null,null,null,null,null,null,null,null,null,null,null,null,null,null,null,null,null,null,null,null,"58/3",null,null,{"$f":"AC37+AC69+AC47+AC52+AC64","v":0}]
[null,null,null,"прочих средств",null,null,null,null,null,null,null,null,null,null,null,null,null,null,null,null,null,null,null,null,null,"58/4",null,null,{"$f":"AC38+AC70+AC48+AC53+AC65","v":0}]
["VII",null,null,"Остаток  невозмещенных сумм, в том числе (СПРАВОЧНО):",null,null,null,null,null,null,null,null,null,null,null,null,null,null,null,null,null,null,null,null,null,59,null,null,{"$f":"SUM(AC227:AE230)","v":29.199999999999818}]
[null,null,null,"средств бюджета Республики Башкортостан",null,null,null,null,null,null,null,null,null,null,null,null,null,null,null,null,null,null,null,null,null,"59/1",null,null,{"$f":"AC222-AC176-AC203","v":0}]
[null,null,null,"средств бюджета муниципального образования",null,null,null,null,null,null,null,null,null,null,null,null,null,null,null,null,null,null,null,null,null,"59/2",null,null,{"$f":"AC223-AC185-AC204","v":29.199999999999818}]
[null,null,null,"средств, полученных от оказания платных услуг и осуществления иной приносящей доход деятельности",null,null,null,null,null,null,null,null,null,null,null,null,null,null,null,null,null,null,null,null,null,"59/3",null,null,{"$f":"AC224-AC192","v":0}]
[null,null,null,"прочих средств",null,null,null,null,null,null,null,null,null,null,null,null,null,null,null,null,null,null,null,null,null,"59/4",null,null,{"$f":"AC225-AC197","v":0}]
["VIII",null,null,"Реализация КМ прошлых лет в текущем году:"]
["1.1.",null,null,"Восстановлено в добровольном порядке, в том числе:",null,null,null,null,null,null,null,null,null,null,null,null,null,null,null,null,null,null,null,null,null,"52п",null,null,{"$f":"SUM(AC233,AC242,AC249,AC254)","v":0}]
["1.1.1",null,null,"средств бюджета Республики Башкортостан",null,null,null,null,null,null,null,null,null,null,null,null,null,null,null,null,null,null,null,null,null,"52/1п",null,null,{"$f":"AC234+AC237","v":0}]
[null,null,null,"в доход бюджета Республики Башкортостан",null,null,null,null,null,null,null,null,null,null,null,null,null,null,null,null,null,null,null,null,null,"52/1/1п",null,null,{"$f":"SUM(AC235:AE236)","v":0}]
[null,null,null,"на код ГАД - Минфин РБ",null,null,null,null,null,null,null,null,null,null,null,null,null,null,null,null,null,null,null,null,null,"52/1/1/1п"]
[null,null,null,"на код ГАД - ГРБС",null,null,null,null,null,null,null,null,null,null,null,null,null,null,null,null,null,null,null,null,null,"52/1/1/2п"]
[null,null,null,"на счета и в кассу учреждения ",null,null,null,null,null,null,null,null,null,null,null,null,null,null,null,null,null,null,null,null,null,"52/1/2п",null,null,{"$f":"SUM(AC238:AE241)","v":0}]
[null,null,null,"на лицевые счета учреждения ",null,null,null,null,null,null,null,null,null,null,null,null,null,null,null,null,null,null,null,null,null,"52/1/2/1п"]
[null,null,null,"в кассу учреждения ",null,null,null,null,null,null,null,null,null,null,null,null,null,null,null,null,null,null,null,null,null,"52/1/2/2п"]
[null,null,null,"В регистрах бухгалтерского учета учреждения ",null,null,null,null,null,null,null,null,null,null,null,null,null,null,null,null,null,null,null,null,null,"52/1/2/3п"]
[null,null,null,"оприходованы излишки и неучтенные ценности, денежные средства ",null,null,null,null,null,null,null,null,null,null,null,null,null,null,null,null,null,null,null,null,null,"52/1/2/4п"]
["1.1.2",null,null,"средств бюджета муниципального образования ",null,null,null,null,null,null,null,null,null,null,null,null,null,null,null,null,null,null,null,null,null,"52/2п",null,null,{"$f":"SUM(AC243:AE244)","v":0}]
[null,null,null,"в доход бюджета муниципального образования ",null,null,null,null,null,null,null,null,null,null,null,null,null,null,null,null,null,null,null,null,null,"52/2/1п"]
[null,null,null,"на счета и в кассу учреждения ",null,null,null,null,null,null,null,null,null,null,null,null,null,null,null,null,null,null,null,null,null,"52/2/2п",null,null,{"$f":"SUM(AC245:AE248)","v":0}]
[null,null,null,"на лицевые счета учреждения ",null,null,null,null,null,null,null,null,null,null,null,null,null,null,null,null,null,null,null,null,null,"52/2/2/1п"]
[null,null,null,"в кассу учреждения ",null,null,null,null,null,null,null,null,null,null,null,null,null,null,null,null,null,null,null,null,null,"52/2/2/2п"]
[null,null,null,"в регистрах бухгалтерского учета учреждения ",null,null,null,null,null,null,null,null,null,null,null,null,null,null,null,null,null,null,null,null,null,"52/2/2/3п"]
[null,null,null,"оприходованы излишки и неучтенные ценности, денежные средства ",null,null,null,null,null,null,null,null,null,null,null,null,null,null,null,null,null,null,null,null,null,"52/2/2/4п"]
["1.1.3",null,null,"средств, полученных бюджетными учреждениями от оказания платных услуг и осуществления иной приносящей доход деятельности",null,null,null,null,null,null,null,null,null,null,null,null,null,null,null,null,null,null,null,null,null,"52/3п",null,null,{"$f":"SUM(AC250:AE253)","v":0}]
[null,null,null,"на лицевые счета учреждения ",null,null,null,null,null,null,null,null,null,null,null,null,null,null,null,null,null,null,null,null,null,"52/3/1п"]
[null,null,null,"в кассу учреждения ",null,null,null,null,null,null,null,null,null,null,null,null,null,null,null,null,null,null,null,null,null,"52/3/2п"]
[null,null,null,"в регистрах бухгалтерского учета учреждения ",null,null,null,null,null,null,null,null,null,null,null,null,null,null,null,null,null,null,null,null,null,"52/3/3п"]
[null,null,null,"оприходованы излишки и неучтенные ценности, денежные средства ",null,null,null,null,null,null,null,null,null,null,null,null,null,null,null,null,null,null,null,null,null,"52/3/4п"]
["1.1.4",null,null,"прочих средств ",null,null,null,null,null,null,null,null,null,null,null,null,null,null,null,null,null,null,null,null,null,"52/4п",null,null,{"$f":"SUM(AC255:AE258)","v":0}]
[null,null,null,"на банковские счета учреждения ",null,null,null,null,null,null,null,null,null,null,null,null,null,null,null,null,null,null,null,null,null,"52/4/1п"]
[null,null,null,"в кассу учреждения ",null,null,null,null,null,null,null,null,null,null,null,null,null,null,null,null,null,null,null,null,null,"52/4/2п"]
[null,null,null,"в регистрах бухгалтерского учета учреждения ",null,null,null,null,null,null,null,null,null,null,null,null,null,null,null,null,null,null,null,null,null,"52/4/3п"]
[null,null,null,"оприходованы излишки и неучтенные ценности, денежные средства ",null,null,null,null,null,null,null,null,null,null,null,null,null,null,null,null,null,null,null,null,null,"52/4/4п"]
["1.2.",null,null,"Уменьшено (сокращено) финансирование по постановлениям органов власти:",null,null,null,null,null,null,null,null,null,null,null,null,null,null,null,null,null,null,null,null,null,"53п",null,null,{"$f":"SUM(AC260:AE261)","v":0}]
[null,null,null,"средств бюджета Республики Башкортостан",null,null,null,null,null,null,null,null,null,null,null,null,null,null,null,null,null,null,null,null,null,"53/1п"]
[null,null,null,"средств бюджета муниципального образования (по уведомлениям)",null,null,null,null,null,null,null,null,null,null,null,null,null,null,null,null,null,null,null,null,null,"53/2п"]
["1.3.",null,null,"Дополнительно поступило платежей в бюджет, в том числе:",null,null,null,null,null,null,null,null,null,null,null,null,null,null,null,null,null,null,null,null,null,"54п"]
["1.3.1.",null,null,"Налоговые платежи, из них:",null,null,null,null,null,null,null,null,null,null,null,null,null,null,null,null,null,null,null,null,null,"55п",null,null,{"$f":"SUM(AC264:AE265)","v":0}]
[null,null,null,"в бюджет Республики Башкортостан ",null,null,null,null,null,null,null,null,null,null,null,null,null,null,null,null,null,null,null,null,null,"55/1п"]
[null,null,null,"в бюджет муниципального образования ",null,null,null,null,null,null,null,null,null,null,null,null,null,null,null,null,null,null,null,null,null,"55/2п"]
["1.3.2",null,null,"Неналоговые платежи, из них:",null,null,null,null,null,null,null,null,null,null,null,null,null,null,null,null,null,null,null,null,null,"56п",null,null,{"$f":"SUM(AC267,AC270)","v":0}]
[null,null,null,"в бюджет Республики Башкортостан ",null,null,null,null,null,null,null,null,null,null,null,null,null,null,null,null,null,null,null,null,null,"56/1п",null,null,{"$f":"SUM(AC268:AE269)","v":0}]
[null,null,null,"по средствам бюджета Республики Башкортостан ",null,null,null,null,null,null,null,null,null,null,null,null,null,null,null,null,null,null,null,null,null,"56/1/1п"]
[null,null,null,"по имуществу Республики Башкортостан ",null,null,null,null,null,null,null,null,null,null,null,null,null,null,null,null,null,null,null,null,null,"56/1/2п"]
[null,null,null,"в бюджет муниципального образования ",null,null,null,null,null,null,null,null,null,null,null,null,null,null,null,null,null,null,null,null,null,"56/2п",null,null,{"$f":"SUM(AC271:AE272)","v":0}]
[null,null,null,"по средствам бюджета муниципального образования",null,null,null,null,null,null,null,null,null,null,null,null,null,null,null,null,null,null,null,null,null,"56/2/1п"]
[null,null,null,"по имуществу муниципального образования ",null,null,null,null,null,null,null,null,null,null,null,null,null,null,null,null,null,null,null,null,null,"56/2/2п"]
["1.4.",null,null,"Предотвращены потери, в том числе:",null,null,null,null,null,null,null,null,null,null,null,null,null,null,null,null,null,null,null,null,null,"57п",null,null,{"$f":"SUM(AC274:AE277)","v":0}]
[null,null,null,"средств бюджета Республики Башкортостан",null,null,null,null,null,null,null,null,null,null,null,null,null,null,null,null,null,null,null,null,null,"57/1п"]
[null,null,null,"средств бюджета муниципального образования",null,null,null,null,null,null,null,null,null,null,null,null,null,null,null,null,null,null,null,null,null,"57/2п"]
[null,null,null,"средств, полученных от оказания платных услуг и осуществления иной приносящей доход деятельности",null,null,null,null,null,null,null,null,null,null,null,null,null,null,null,null,null,null,null,null,null,"57/3п"]
[null,null,null,"прочих средств",null,null,null,null,null,null,null,null,null,null,null,null,null,null,null,null,null,null,null,null,null,"57/4п"]

{"sheet":"5. Объекты КМ","index":4,"n_rows":405,"n_cols":5,"rows_kept":405,"cut":false,"hidden":false,"merged":[[0,0,0,4],[1,0,1,4],[2,0,2,4]]}
["Сведения об объектах контроля"]
[{"$f":"CONCATENATE('1. Начальные данные'!D18,\" \",'1. Начальные данные'!F18)","v":"31 декабря 2017 года"}]
[{"$f":"'1. Начальные данные'!D17","v":"МР Нуримановский район РБ"}]
[]
["№","Объект контроля"," Тема КМ","Проверяемый период (дд.мм.год-дд.мм.год)","Сроки \nпроведения КМ \n(дд.мм.год-дд.мм.год)"]
[1,"МБОУ СОШ с.Старокулево","проверка соблюдения трудового законодательства и иных нормативных правовых актов, содержащих нормы трудового права","01.01.2016-31.12.2016","30.01.2017г-01.03.2017"]
[2,"Нуримановское МУП ЖКХ","внеплановая документальная проверка ФХД с проведением полной инвентаризации муниципального имущества, находящегося в хозяйственном ведении Нуримановское МУП ЖКХ","01.08.2014-20.03.2017","22.03.2017 - 21.04.2017 "]
[3,"МАОУ СОШ с.Красный Ключ","плановая камеральная ревизия плана ФХД","01.04.2013-31.03.2017","28.03.2017 г -28.04.2017"]
[4,"СП Старобедеевский сельсовет МР","плановая камеральная ревизия бюджета сельского поселения","01.06.2014-31.10.2017","22.11.2017-11.12.2017"]
[5,"СП Первомайский сельсовет МР","плановая камеральная ревизия бюджета сельского поселения","01.08.2014-30.11.2017","27.11.2017 -27.12.2017"]
[6,"СП Староисаеский сельсовет МР","плановая камеральная ревизия бюджета сельского поселения","01.11.2014-30.11.2017","27.11.2017 -27.12.2017"]
[7]
[8]
[9]
[10]
[11]
[12]
[13]
[14]
[15]
[16]
[17]
[18]
[19]
[20]
[21]
[22]
[23]
[24]
[25]
[26]
[27]
[28]
[29]
[30]
[31]
[32]
[33]
[34]
[35]
[36]
[37]
[38]
[39]
[40]
[41]
[42]
[43]
[44]
[45]
[46]
[47]
[48]
[49]
[50]
[51]
[52]
[53]
[54]
[55]
[56]
[57]
[58]
[59]
[60]
[61]
[62]
[63]
[64]
[65]
[66]
[67]
[68]
[69]
[70]
[71]
[72]
[73]
[74]
[75]
[76]
[77]
[78]
[79]
[80]
[81]
[82]
[83]
[84]
[85]
[86]
[87]
[88]
[89]
[90]
[91]
[92]
[93]
[94]
[95]
[96]
[97]
[98]
[99]
[100]
[101]
[102]
[103]
[104]
[105]
[106]
[107]
[108]
[109]
[110]
[111]
[112]
[113]
[114]
[115]
[116]
[117]
[118]
[119]
[120]
[121]
[122]
[123]
[124]
[125]
[126]
[127]
[128]
[129]
[130]
[131]
[132]
[133]
[134]
[135]
[136]
[137]
[138]
[139]
[140]
[141]
[142]
[143]
[144]
[145]
[146]
[147]
[148]
[149]
[150]
[151]
[152]
[153]
[154]
[155]
[156]
[157]
[158]
[159]
[160]
[161]
[162]
[163]
[164]
[165]
[166]
[167]
[168]
[169]
[170]
[171]
[172]
[173]
[174]
[175]
[176]
[177]
[178]
[179]
[180]
[181]
[182]
[183]
[184]
[185]
[186]
[187]
[188]
[189]
[190]
[191]
[192]
[193]
[194]
[195]
[196]
[197]
[198]
[199]
[200]
[201]
[202]
[203]
[204]
[205]
[206]
[207]
[208]
[209]
[210]
[211]
[212]
[213]
[214]
[215]
[216]
[217]
[218]
[219]
[220]
[221]
[222]
[223]
[224]
[225]
[226]
[227]
[228]
[229]
[230]
[231]
[232]
[233]
[234]
[235]
[236]
[237]
[238]
[239]
[240]
[241]
[242]
[243]
[244]
[245]
[246]
[247]
[248]
[249]
[250]
[251]
[252]
[253]
[254]
[255]
[256]
[257]
[258]
[259]
[260]
[261]
[262]
[263]
[264]
[265]
[266]
[267]
[268]
[269]
[270]
[271]
[272]
[273]
[274]
[275]
[276]
[277]
[278]
[279]
[280]
[281]
[282]
[283]
[284]
[285]
[286]
[287]
[288]
[289]
[290]
[291]
[292]
[293]
[294]
[295]
[296]
[297]
[298]
[299]
[300]
[301]
[302]
[303]
[304]
[305]
[306]
[307]
[308]
[309]
[310]
[311]
[312]
[313]
[314]
[315]
[316]
[317]
[318]
[319]
[320]
[321]
[322]
[323]
[324]
[325]
[326]
[327]
[328]
[329]
[330]
[331]
[332]
[333]
[334]
[335]
[336]
[337]
[338]
[339]
[340]
[341]
[342]
[343]
[344]
[345]
[346]
[347]
[348]
[349]
[350]
[351]
[352]
[353]
[354]
[355]
[356]
[357]
[358]
[359]
[360]
[361]
[362]
[363]
[364]
[365]
[366]
[367]
[368]
[369]
[370]
[371]
[372]
[373]
[374]
[375]
[376]
[377]
[378]
[379]
[380]
[381]
[382]
[383]
[384]
[385]
[386]
[387]
[388]
[389]
[390]
[391]
[392]
[393]
[394]
[395]
[396]
[397]
[398]
[399]
[400]

{"sheet":"6. Реал.полном.","index":5,"n_rows":21,"n_cols":4,"rows_kept":21,"cut":false,"hidden":true,"merged":[[9,2,9,3],[11,2,11,3],[12,2,12,3],[14,2,14,3],[15,2,15,3],[16,2,16,3],[17,2,17,3],[18,2,18,3],[10,0,10,3],[13,2,13,3],[8,2,8,3],[1,0,1,3],[4,2,4,3],[5,2,5,3],[6,0,6,3],[7,2,7,3],[2,0,2,3]]}
[null,null,null,"Приложение"]
["Информация о реализации контрольных полномочий в соответствии с частью 8 статьи 99 Федерального закона \n«О контрактной системе в сфере закупок товаров, работ, услуг для обеспечения государственных и муниципальных нужд» "]
[{"$f":"CONCATENATE(\"по состоянию на \",'1. Начальные данные'!D18,\" \",'1. Начальные данные'!F18)","v":"по состоянию на 31 декабря 2017 года"}]
[]
["Наименование показателя","Ед.измерения","Количество (сведения)"]
["Наименование муниципального образования","-",{"$f":"'1. Начальные данные'!D17","v":"МР Нуримановский район РБ"}]
["1. Количество проведенных проверок"]
["1.1. Количество проведенных проверок органами внутреннего муниципального финансового контроля:","шт.",{"$f":"C9+C10","v":0}]
["плановые","шт."]
["внеплановые","шт."]
["2. Результаты деятельности  органов муниципального финансового контроля"]
["2.1. Основные виды нарушений, выявленных в ходе проведения плановых и внеплановых проверок*","пункт, часть, статья"]
["2.2. Общее количество выданных предписаний, в том числе:","шт."]
["обжаловано предписаний в судах, из них:","шт."]
["обосновано","шт."]
["не обосновано","шт."]
["2.3. Количество обжалований в досудебном (внесудебном) порядке действий (бездействия) должностных лиц, из них: ","шт."]
["обосновано","шт."]
["не обосновано","шт."]
[]
["* Указать пункт, часть, статью Федерального закона от 5 апреля 2013 г. № 44-ФЗ"]

{"sheet":"6. Оценка кач-ва","index":6,"n_rows":100,"n_cols":6,"rows_kept":100,"cut":false,"hidden":false,"merged":[[80,0,80,1],[77,3,79,4],[80,3,80,4],[77,2,79,2],[1,0,1,4],[4,0,4,4],[13,0,13,4],[57,0,57,4],[66,0,66,4],[77,0,79,1]]}
[]
["Сведения о контрольной деятельности органа внутреннего муниципального финансового контроля"]
[null,null,null,null,{"$f":"'1. Начальные данные'!D17","v":"МР Нуримановский район РБ"}]
["№ п/п","Показатели","Единица измерения","Значение показателя","Примечание"]
["1.       Общие сведения об количестве объектов контроля муниципального образования"]
["1.1","Количество главных администраторов бюджетных средств (главные распорядители и администраторы доходов и источников)","ед.",14]
["1.2","Количество получателей бюджетных средств (казенные и органы местного самоуправления)","ед.",18]
["1.2.2","в том числе органы местного самоуправления","ед.",15]
["1.3","Количество бюджетных учреждений","ед.",13]
["1.4","Количество автономных учреждений","ед.",3]
["1.5","Количество муниципальных унитарных предприятий","ед.",2]
["1.6","Количество хозяйственных товариществ и обществ с участием муниципального образования в их уставных капиталах","ед.",0]
["1.7","Количество юридических лиц, определенных ст.266.1 БК РФ, индивидуальных предпринимателей и физических лиц","ед.",0]
["2.       Информация об органе внутреннего муниципального финансового контроля (ст. 269.2 БК РФ)"]
["2.1","Полномочия по осуществлению ВМФК возложены на финансовый орган администрации муниципального образования","да/нет","Да"]
["2.1.1","Штатная численность финансового органа (всего)","ед.",13]
["2.1.1.1","Штатная численность должностных лиц (подразделения) финансового органа, осуществляющих ВМФК ","ед.",1,"Сектор исполнения бюджета",{"$f":"IF(D17>D16,\"Проверьте соотношение с вышестоящей ячейкой\",\"\")","v":""}]
["2.1.1.2","Фактическая численность должностных лиц (подразделения) финансового органа, осуществляющих ВМФК","ед.",1,null,{"$f":"IF(D18>D17,\"Проверьте соотношение с вышестоящей ячейкой\",\"\")","v":""}]
["2.2","Полномочия по осуществлению ВМФК возложены на иных должностных лиц (подразделение) администрации муниципального образования","да/нет","Нет"]
["2.2.1","Штатная численность администрации муниципального образования","ед.",45.75,"в том числе 3,75 Респ.Башкортостан"]
["2.2.1.1","Штатная численность должностных лиц (подразделения) администрации, осуществляющих ВМФК ","ед.",0,null,{"$f":"IF(D21>D20,\"Проверьте соотношение с вышестоящей ячейкой\",\"\")","v":""}]
["2.2.1.2","Фактическая численность должностных лиц (подразделения) администрации, осуществляющих ВМФК","ед.",0,null,{"$f":"IF(D22>D21,\"Проверьте соотношение с вышестоящей ячейкой\",\"\")","v":""}]
["2.3","Количество должностных лиц, осуществляющих ВМФК, обладающих дипломами высшего профобразования в области финансов, бухгалтерского учета, анализа и аудита, по экономическим специальностям","ед.",1,null,{"$f":"IF((D18+D22)>=(SUM(D24:D26)),\"\",\"Количество должностных имеющих дипломы, свидетельства превышает число фактическую численность\")","v":""}]
["2.4","Количество должностных лиц, осуществляющих ВМФК, обладающих дипломами среднего профобразования в области финансов, бухгалтерского учета, анализа и аудита, по экономическим специальностям","ед.",0]
["2.5","Количество должностных лиц, осуществляющих ВМФК, обладающих свидетельствами (сертификатами) о прохождении повышения квалификации по направлению деятельности в течение последних трех лет","ед.",0]
["2.6","Количество должностных лиц, осуществляющих ВМФК, имеющих отдельный рабочий стол","ед.",1]
["2.7","Количество должностных лиц, осуществляющих ВМФК имеющих закрепленную компьютерную технику","ед.",1]
["2.8","Количество должностных лиц, осуществляющих ВМФК имеющие на рабочем месте доступ к справочно-правовым системам (Консультант, Гарант и др.)","ед.",1]
["2.9","Количество должностных лиц, осуществляющих ВМФК имеющих на рабочем месте доступ к интернету","ед.",1]
["2.10","Количество должностных лиц, осуществляющих ВМФК, выполняющие другие функции кроме контрольной","ед.",1]
["2.11","Количество обоснованных жалоб по контрольной деятельности на должностных лиц, осуществляющих ВМФК","ед.",0]
["2.12","Наличие плана контрольных мероприятий на отчетный период","да\\нет","Да"]
["2.13","Количество запланированных контрольных мероприятий на отчетную дату","ед."]
["2.13.1","Количество проведенных (завершенных) контрольных мероприятий за отчетный период","ед.",{"$f":"IFERROR('4. ФК-1'!AC6,\"введите количество в примечании\")","v":6}]
["2.14","Общее количество объектов контроля в отчетном периоде","ед.",6]
["2.14.1","Количество проверенных объектов контроля в отчетном периоде","ед.",6]
["2.15","Количество контрольных мероприятий проведенных в отчетном периоде, по которым выявлены финансовые и нефинансовые нарушения","ед.",6]
["2.16","Количество контрольных мероприятий, по которым объекту контроля направлены представления, предписания, заключения, уведомления, письма, служебные записки","ед.",5]
["2.17","Количество контрольных мероприятий, по которым приняты меры по предъявленным представлениям, предписаниям, заключениям, уведомлениям, письмам, служебным запискам","ед.",5]
["2.18","Объемы денежных средств, которые были проверены в отчетном периоде","тыс. руб",{"$f":"SUM('2. Пров.суммы'!B10:E10)","v":92791.299999999988}]
["2.19","Выявлено финансовых нарушений на сумму","тыс. руб",{"$f":"'4. ФК-1'!AC29","v":3313.2999999999997}]
["2.19.1","Объем денежных средств, подлежащих взысканию","тыс. руб",{"$f":"'4. ФК-1'!AC221","v":3136.2999999999997}]
["2.19.2","Взыскано (восстановлено) средств в доход бюджета","тыс. руб",{"$f":"'4. ФК-1'!AC177+'4. ФК-1'!AC186","v":0}]
["2.20","Количество предписаний и представлений, направленных объекту контроля ","ед.",{"$f":"'4. ФК-1'!AC77","v":7}]
["2.20.1","Количество признанных судами незаконными предписаний и представлений","ед.",0]
["2.21","Количество составленных протоколов об административном правонарушении в отчетном периоде","ед.",{"$f":"'4. ФК-1'!AC124","v":0}]
["2.21.1","Количество вынесенных постановлений о назначении административного штрафа по указанным протоколам","ед.",{"$f":"'4. ФК-1'!AC136","v":0}]
["2.21.2","Сумма вынесенных постановлений о назначении административного штрафа по указанным протоколам","тыс. руб",0]
["2.21.2.1","Сумма административных штрафов, взысканная в бюджет","тыс. руб",{"$f":"'4. ФК-1'!AC153","v":0}]
["2.22","Количество отмененных судами постановлений о привлечении к административной ответственности правонарушителей по причинам отсутствия события (состава) правонарушения, пропуска срока давности привлечения к ответственности, а также вследствие допущенных процессуальных нарушений","ед.",0]
["2.23","Количество направленных в финансовый орган уведомлений о применении мер принуждения","ед.",0]
["2.23.1","Количество возвращенных уведомлений о применении мер принуждения по причине неправильной квалификации фактов нарушений и нарушения срока направления уведомлений, установленного БК РФ","ед.",0]
["2.24","Количество материалов, переданных в правоохранительные органы","ед.",0]
["2.25","Количество проверок, проведенных совместно с правоохранительными органами","ед.",0]
["2.26","Количество проверок, проведенных совместно с органами внешнего МФК","ед.",0]
["2.27","Количество соглашений, подписанных с другими ведомствами (в том числе с правоохранительными органами и поселениями) по вопросам контрольной деятельности","ед.",12]
["2.27.1","из них, количество соглашений, подписанных с поселениями, входящими в состав муниципального района, по вопросам контрольной деятельности","ед.",12]
["3.       Муниципальные правовые акты регулирующие деятельность органа внутреннего муниципального финансового контроля"]
["3.1","Документ (постановление), подтверждающий возложение полномочий по осуществлению ВМФК на орган ВМФК (ст.265, 269.2 БК РФ)","да\\нет","Да","Постановление Администрации муниципального района Нуримановский район Республики Башкортостан от 25.04.14 года № 1432 \"Об утверждении Порядка осуществления органом внутреннего муниципального финансового контроля полномочий по контролю в финансово-бюджетной сфере в муниципальном районе Нуримановский район Республики Башкортостан\""]
["3.2","Документ (Положение), подтверждающий закрепление функции (обязанности) по осуществлению бюджетных полномочий по осуществлению ВМФК за органом ВМФК (ст.6, 152 БК РФ) ","да\\нет","Да","ПОЛОЖЕНИЕ о Финансовом управлении Администрации муниципального района Нуримановский район Республики Башкортостан Утверждено решением  Совета муниципального района                         Нуримановский район  Республики Башкортостан от «13» октября 2011 года №_600 с изменениями от \n\n"]
["3.3","Документ (постановление), регламентирующий деятельность по осуществлению ВМФК (ст.269.2 БК РФ)","да\\нет","Да","Административный регламент исполнения Финансовым управлением администрации муниципального района Нуримановский район Республики Башкортостан муниципальной функции по осуществлению внутреннего муниципального  финансового контроля в сфере бюджетных правоотношений, внутреннего муниципального финансового контроля в отношении закупок товаров, работ, услуг для обеспечения муниципальных нужд муниципального района Нуримановский район Республики Башкортостан, утвержден постановлением Администрации МР Нуримановский район РБ от 30 июня 2017 г. №1053"]
["3.4","Документ (распоряжение, приказ), необходимый для реализации полномочия по осуществлению ВМФК (п.3 ППРБ от 20.02.2014 № 66, требования МПА)","да\\нет","Да","Порядок осуществления органом внутреннего муниципального финансового контроля полномочий по контролю в финансово-бюджетной сфере в муниципальном районе Нуримановский районе Нуримановский район Республики Башкортостан, утвержден Постановлением Администрации МР Нуримановский район  от 30.06.2017 г. №1053"]
["3.5","Документ (документы), определяющий (ие) стандарты осуществления ВМФК (п.3 ст.269.2 БК РФ)","да\\нет","Да","Порядок осуществления органом внутреннего муниципального финансового контроля полномочий по контролю в финансово-бюджетной сфере в муниципальном районе Нуримановский районе Нуримановский район Республики Башкортостан, утвержден Постановлением Администрации МР Нуримановский район  от 30.06.2017 г. №1053"]
["3.6","Документ, регламентирующий осуществление контроля за полнотой и достоверностью отчетности о реализации муниципальных программ, об исполнении муниципальных заданий (п.1 ст.269.2 БК РФ)","да\\нет","Да","Порядок формирования и финансового обеспечения выполнения муниципального задания на оказание муниципальных услуг (выполнение работ) утверждено постановлением Администрации МР Нуримановский район РБ от 29.12.2016г. №2057 "]
["3.7","Документ (постановление), определяющий порядок осуществления ВФК и ВФА главными администраторами средств местного бюджета (п.5 ст.160.2-1 БК РФ)","да\\нет","Да","Порядок осуществления внутреннего финансового контроля и внутреннего финансового аудита в администрации муниципального района Нуримановский район Республики Башкортостан , утвержден постановлением Администрации МР Нуримановский район РБ от 31.12.2015г. №2617 "]
["3.8","Документ (распоряжение, приказ), определяющий порядок проведения анализа осуществления главными администраторами средств местного бюджета ВФК и ВФА (п.4 ст.157 БК РФ)","да\\нет","Да","Порядок проведения анализа осуществления главными распорядителями (распорядителями) средств бюджета МР Нуримановский район РБ, главными администраторами (администраторами) доходов бюджета МР Нуримановский район РБ, главными администраторами (администраторами) источников финансирования дефицита бюджета МР Нуримановский район РБ внутреннего финансового контроля и внутреннего финансового аудита, утвержден постановлением Администрации МР Нуримановский район РБ 28.08. 2015 №1714 "]
["4.       Открытость и доступность информации о результатах контрольных мероприятий, проведение мероприятий по предупреждению нарушений бюджетного законодательства"]
["4.1","Размещение информации на официальном сайте органа ВМФК","х","х"]
["4.1.1","Информации о реквизитах контрольного органа","да\\нет","Да"]
["4.1.2","Сведений о руководстве органа ВМФК","да\\нет","Да"]
["4.1.3","Опубликованных отчетов о результатах контроля","да\\нет","Да"]
["4.1.4","МПА, регламентирующих контрольную деятельность","да\\нет","Да"]
["4.1.5","Информации о типовых нарушениях и иных разъяснений по вопросам контроля","да\\нет","Да"]
["4.2","Проведение органами ВМФК мониторинга выявленных нарушений бюджетного законодательства в отчетном периоде","да\\нет","Да"]
["4.3","Проведение информационной работы по предупреждению нарушений бюджетного законодательства (письма, совещания, аналитические записки и др.)","да\\нет","Да"]
["4.4","Оказание методической помощи по вопросам контрольной деятельности органам ВМФК поселений, входящих в муниципальный район, главным распорядителям и администраторам средств бюджета МО","да\\нет","Да"]
[]
["Заместитель главы администрации - начальник финансового управления",null,null,"А.Г. Ардаширова"]
[]
[]
["Должность органа руководителя ВМФК",null,null,"ФИО руководителя ВМФК"]
[]
[]
[]
[]
[]
[]
[]
[]
[]
[]
[]
[]
[]
[]
[]
[]
[]
[]
[null,null,null,{"$f":"'Показатели качества'!G126","v":107}]

{"sheet":"Показатели качества","index":7,"n_rows":126,"n_cols":8,"rows_kept":126,"cut":false,"hidden":true,"merged":[[1,0,1,5],[3,0,3,5],[20,0,20,5],[48,0,48,5],[107,0,107,5]]}
[]
["Показатели качества деятельности органов муниципального финансового контроля Республики Башкортостан"]
["№ п/п","Показатель","Расчет показателя","Единица измерения","Баллы","Примечание"]
["1. Качество нормативно-правового обеспечения осуществления внутреннего муниципального финансового контроля"]
["1.1","Документ (постановление), подтверждающий возложение полномочий по осуществлению ВМФК на орган ВМФК (ст. 269.2 БК РФ)","Наличие МПА","баллы",5,"показатель применяется для оценки правового обеспечения деятельности органа ВМФК",{"$f":"IF('6. Оценка кач-ва'!D59=\"Да\",5,0)","v":5}]
[null,null,"Отсутствие МПА","баллы",0]
["1.2","Документ (Положение), подтверждающий закрепление функции (обязанности) по осуществлению бюджетных полномочий по осуществлению ВМФК за органом ВМФК (ст.6, 152 БК РФ) ","Наличие МПА","баллы",5,"показатель применяется для оценки правового обеспечения деятельности органа ВМФК",{"$f":"IF('6. Оценка кач-ва'!D60=\"Да\",5,0)","v":5}]
[null," ","Отсутствие МПА","баллы",0]
["1.3","Документ (постановление), регламентирующий деятельность по осуществлению ВМФК (п.3 ст. 269.2 БК РФ)","Наличие МПА","баллы",5,"показатель применяется для оценки правового обеспечения деятельности органа ВМФК",{"$f":"IF('6. Оценка кач-ва'!D61=\"Да\",5,0)","v":5}]
[null,null,"Отсутствие МПА","баллы",0]
["1.4","Документ (распоряжение, приказ), необходимый для реализации полномочия по осуществлению ВМФК (п.3 ППРБ от 20.02.2014 № 66, требования МПА)","Наличие МПА","баллы",5,"показатель применяется для оценки правового обеспечения деятельности органа ВМФК",{"$f":"IF('6. Оценка кач-ва'!D62=\"Да\",5,0)","v":5}]
[null,null,"Отсутствие МПА","баллы",0]
["1.5","Документ, регламентирующий осуществление контроля за полнотой и достоверностью отчетности о реализации муниципальных программ, об исполнении муниципальных заданий (п.1 ст.269.2 БК РФ)","Наличие МПА","баллы",5,"показатель применяется для оценки правового обеспечения деятельности органа ВМФК",{"$f":"IF('6. Оценка кач-ва'!D64=\"Да\",5,0)","v":5}]
[null,null,"Отсутствие МПА","баллы",0]
["1.6","Документ (документы), определяющий (ие) стандарты осуществления ВМФК (п.3 ст.269.2 БК РФ)","Наличие МПА","баллы",5,"показатель применяется для оценки правового обеспечения деятельности органа ВМФК",{"$f":"IF('6. Оценка кач-ва'!D63=\"Да\",5,0)","v":5}]
[null,null,"Отсутствие МПА","баллы",0]
["1.7","Документ (постановление), определяющий порядок осуществления ВФК и ВФА главными администраторами средств местного бюджета (п.5 ст.160.2-1 БК РФ)","Наличие МПА","баллы",5,"показатель применяется для оценки правового обеспечения деятельности органа ВМФК",{"$f":"IF('6. Оценка кач-ва'!D65=\"Да\",5,0)","v":5}]
[null,null,"Отсутствие МПА","баллы",0]
["1.8","Документ (распоряжение, приказ), определяющий порядок проведения анализа осуществления главными администраторами средств местного бюджета ВФК и ВФА (п.4 ст.157 БК РФ)","Наличие МПА","баллы",5,"показатель применяется для оценки правового обеспечения деятельности органа ВМФК",{"$f":"IF('6. Оценка кач-ва'!D66=\"Да\",5,0)","v":5}]
[null,null,"Отсутствие МПА","баллы",0]
["2. Квалификация и уровень профессиональной подготовки должностных лиц органа внутреннего муниципального финансового контроля"]
["2.1","Образование по экономическим специальностям в области финансов и бухгалтерского учета","P = 100*(BCp)/Ч, \nВСр – количество должностных лиц, осуществляющих ВМФК, обладающих дипломами высшего и среднего профобразования в области финансов, бухгалтерского учета, анализа и аудита, по экономическим специальностям; \nЧ – общее количество должностных лиц, осуществляющих ВМФК по состоянию на 1 число месяца, следующим за отчетным периодом","%",null,null,{"$f":"VLOOKUP(H22,Контроль!A95:E195,2,FALSE)","v":5},{"$f":"IFERROR(ROUND((('6. Оценка кач-ва'!D23+'6. Оценка кач-ва'!D24)/('6. Оценка кач-ва'!D18+'6. Оценка кач-ва'!D22)*100),0),0)","v":100}]
[null,null,"Р = 100%","баллы",5]
[null,null,"Р = 75% до <100%","баллы",4]
[null,null,"Р = 50% до <75%","баллы",3]
[null,null,"Р = 40% до <50%","баллы",2]
[null,null,"Р = 25% до <40%","баллы",1]
[null,null,"Р < 25%","баллы",0]
["2.2","Повышение квалификации по направлению деятельности","Р = 100*Чп/Ч, где, \nЧп – количество должностных лиц, осуществляющих ВМФК, обладающих свидетельствами (сертификатами) о прохождении повышения квалификации по направлению деятельности в течение последних трех лет; \nЧ – общее количество должностных лиц, осуществляющих ВМФК по состоянию на 1 число месяца, следующим за отчетным периодом ","%",null,null,{"$f":"VLOOKUP(H29,Контроль!A95:E195,3,FALSE)","v":0},{"$f":"IFERROR(ROUND('6. Оценка кач-ва'!D25/('6. Оценка кач-ва'!D18+'6. Оценка кач-ва'!D22)*100,0),0)","v":0}]
[null,null,"Р = 100%","баллы",5]
[null,null,"Р = 75% до <100%","баллы",4]
[null,null,"Р = 60% до <75%","баллы",3]
[null,null,"Р = 45% до <60%","баллы",2]
[null,null,"Р = 30% до <45%","баллы",1]
[null,null,"Р < 30%","баллы",0]
["2.3","Оснащенность рабочего места ","Р = 100*((С+К+П+И)/4)/Ч, \nС – количество должностных лиц, осуществляющих ВМФК, имеющих отдельный рабочий стол; \nК – количество должностных лиц, осуществляющих ВМФК имеющих закрепленную компьютерную технику; \nП – количество должностных лиц, осуществляющих ВМФК имеющие на рабочем месте доступ к программным продуктам (Консультант, Гарант и др.); \nИ – количество должностных лиц, осуществляющих ВМФК имеющих на рабочем месте доступ к интернету ","%",null,null,{"$f":"VLOOKUP(H36,Контроль!A95:E195,3,FALSE)","v":5},{"$f":"IFERROR(ROUND(('6. Оценка кач-ва'!D26+'6. Оценка кач-ва'!D27+'6. Оценка кач-ва'!D28+'6. Оценка кач-ва'!D29)*25/('6. Оценка кач-ва'!D18+'6. Оценка кач-ва'!D22),0),0)","v":100}]
[null,null,"Р = 100%","баллы",5]
[null,null,"Р = 75% до <100%","баллы",4]
[null,null,"Р = 60% до <75%","баллы",3]
[null,null,"Р = 45% до <60%","баллы",2]
[null,null,"Р = 30% до <45%","баллы",1]
[null,null,"Р < 30%","баллы",0]
["2.4","Возложение на должностное лицо, осуществляющее ВМФК других функций, кроме контрольной","Р = 100*Чф/Ч, где, \nЧф – количество должностных лиц, осуществляющих ВМФК, выполняющие другие функции кроме контрольной; \nЧ – общее количество должностных лиц, осуществляющих ВМФК по состоянию на 1 число месяца, следующим за отчетным периодом","%",null,"контроль в сфере закупок (ч.8 ст.99 ФЗ № 44-ФЗ) относится к контрольной функции",{"$f":"VLOOKUP(H43,Контроль!A95:E195,4,FALSE)","v":0},{"$f":"IFERROR(ROUND('6. Оценка кач-ва'!D30/('6. Оценка кач-ва'!D18+'6. Оценка кач-ва'!D22)*100,0),0)","v":100}]
[null,null,"Р < 40%","баллы",5]
[null,null,"Р = 40% до <75%","баллы",3]
[null,null,"Р = 75% до 100%","баллы",0]
["2.5","Соблюдение профессиональных стандартов и этики служебного поведения","Отсутствие жалоб по контрольной деятельности на должностных лиц, осуществляющих ВМФК","баллы",5,null,{"$f":"IF('6. Оценка кач-ва'!D31=0,5,0)","v":5}]
[null,null,"Наличие жалоб по контрольной деятельности на должностных лиц, осуществляющих ВМФК","баллы",0]
["3. Интенсивность и результативность контрольных мероприятий органа внутреннего  муниципального финансового контроля"]
["3.1","Планирование контрольной деятельности органа ВМФК","Наличие плана контрольных мероприятий на отчетный период","баллы",5,null,{"$f":"IF('6. Оценка кач-ва'!D32=\"Да\",5,0)","v":5}]
[null,null,"Отсутствие плана контрольных мероприятий на отчетный период","баллы",0]
["3.2","Выполнение плана по осуществлению ВМФК","Р = 100*Кз/Кп, \nКз – количество проведенных (завершенных) плановых контрольных мероприятий в отчетном периоде; \nКп – количество контрольных мероприятий по утвержденному плану","%",null,null,{"$f":"VLOOKUP(H52,Контроль!A95:E195,3,FALSE)","v":0},{"$f":"IFERROR(ROUND('6. Оценка кач-ва'!D33/'6. Оценка кач-ва'!D34*100,0),0)","v":0}]
[null,null,"Р = 100%","баллы",5]
[null,null,"Р = 75% до <100%","баллы",4]
[null,null,"Р = 60% до <75%","баллы",3]
[null,null,"Р = 45% до <60%","баллы",2]
[null,null,"Р = 30% до <45%","баллы",1]
[null,null,"Р < 30%","баллы",0]
["3.3","Количество контрольных мероприятий по ВМФК, проведенных в муниципальном образовании в отчетном периоде на одно должностное лицо, осуществляющее ВМФК","Р = Кф/Ч, \nКф – количество проведенных (завершенных) плановых и внеплановых контрольных мероприятий в отчетном периоде, \nЧ – общее количество должностных лиц, осуществляющих ВМФК по состоянию на 1 число месяца, следующим за отчетным периодом","ед.",null,null,{"$f":"IF(H59>=9.3,5,IF(H59>=7.7,4,IF(H59>=5.5,3,IF(H59>=3.3,2,IF(H59>=1.6,1,0)))))","v":3},{"$f":"IFERROR('6. Оценка кач-ва'!D34/('6. Оценка кач-ва'!D18+'6. Оценка кач-ва'!D22),0)","v":6}]
[null,null,"Р = ≥Кср. + (70*Кср/100), \nКср - среднее количество контрольных мероприятий на одно должностное лицо, осуществляющее ВМФК, в целом по всем муниципальным образованиям, сложившееся по результатам контрольных мероприятий в предшествующем отчетному периоде","баллы",5,"Кср в 2016 г. = 5,5; 5,5+(70*5,5/100) = 9,3 Кср указывается в запросе Рабочей группы"]
[null,null,"Р = от ≥Кср + (40*Кср/100) до <Кср + (70*Кср/100)","баллы",4,"Кср в 2016 г. = 5,5; 5,5+(40*5,5/100) = 7,7"]
[null,null,"Р = от Кср до <Кср + (40*Кср/100)","баллы",3,"Кср в 2016 г. = 5,5"]
[null,null,"Р = от ≥Кср ‑ (40*Кср/100) до <Кср ","баллы",2,"Кср в 2016 г. = 5,5; 5,5-(40*5,5/100) = 3,3"]
[null,null,"Р = от ≥Кср ‑ (70*Кср/100) до <Кср","баллы",1,"Кср в 2016 г. = 5,5; 5,5-(70*5,5/100) = 1,6"]
[null,null,"Р= 0 до <Кср ‑ (70*Кср/100) ","баллы",0,"Кср в 2016 г. = 5,5"]
["3.4","Результативность контрольных мероприятий","Р = 100*Кр/К, \nКр – количество результативных контрольных мероприятий проведенных в отчетном периоде, \nК – общее количество контрольных мероприятий проведенных в отчетном периоде","%",null,"результативное мероприятие – мероприятие, в котором выявлены финансовые и нефинансовые нарушения",{"$f":"VLOOKUP(H66,Контроль!A95:E195,3,FALSE)","v":5},{"$f":"IFERROR(ROUND(100*'6. Оценка кач-ва'!D37/'6. Оценка кач-ва'!D34,0),0)","v":100}]
[null,null,"Р = 100%","баллы",5]
[null,null,"Р = 75% до <100%","баллы",4]
[null,null,"Р = 60% до <75%","баллы",3]
[null,null,"Р = 45% до <60%","баллы",2]
[null,null,"Р = 30% до <45%","баллы",1]
[null,null,"Р = <30%","баллы",0]
["3.5","Эффективность контрольных мероприятий","Р = 100*Км/К, \nКм – количество контрольных мероприятий, по которым объекту контроля направлены представления, предписания, заключения, уведомления, письма, служебные записки, \nК – общее количество контрольных мероприятий проведенных в отчетном периоде",null,null,null,{"$f":"VLOOKUP(H73,Контроль!A95:E195,3,FALSE)","v":4},{"$f":"IFERROR(ROUND('6. Оценка кач-ва'!D38/'6. Оценка кач-ва'!D34*100,0),0)","v":83}]
[null,null,"Р = 100%","баллы",5]
[null,null,"Р = 75% до <100%","баллы",4]
[null,null,"Р = 60% до <75%","баллы",3]
[null,null,"Р = 45% до <60%","баллы",2]
[null,null,"Р = 30% до <45%","баллы",1]
[null,null,"Р = <30%","баллы",0]
["3.6","Исполнительность мер, предъявленных по результатам контрольных мероприятий","Р = 100*Км/К, \nКм – количество контрольных мероприятий, по которым приняты меры по предъявленным представлениям, предписаниям, заключениям, уведомлениям, письмам, служебным запискам, \nК – общее количество контрольных мероприятий, по которым объекту контроля направлены представления, предписания, заключения, уведомления, письма, служебные записки",null,null,"показатель рассчитывается с учетом пояснений органа ВМФК",{"$f":"VLOOKUP(H80,Контроль!A95:E195,5,FALSE)","v":5},{"$f":"IFERROR(ROUND('6. Оценка кач-ва'!D39/'6. Оценка кач-ва'!D38*100,0),0)","v":100}]
[null,null,"Р = 80% до 100%","баллы",5]
[null,null,"Р = 40% до <80%","баллы",3]
[null,null,"Р = 20% до <40%","баллы",1]
[null,null,"Р = <20%","баллы",0]
["3.7","Эффективность мер, предъявленных по результатам контрольных мероприятий","Р = 100*Св/Сн, \nСв – объемы денежных средств, взысканные (восстановленные) в доход бюджета муниципального образования, \nСн – объемы денежных средств, подлежащие взысканию (восстановлению) в доход бюджета муниципального образования","%",null,null,{"$f":"VLOOKUP(H85,Контроль!A95:E195,3,FALSE)","v":0},{"$f":"IFERROR(ROUND('6. Оценка кач-ва'!D43/'6. Оценка кач-ва'!D42*100,0),0)","v":0}]
[null,null,"Р = 100%","баллы",5]
[null,null,"Р = 75% до <100%","баллы",4]
[null,null,"Р = 60% до <75%","баллы",3]
[null,null,"Р = 45% до <60%","баллы",2]
[null,null,"Р = 30% до <45%","баллы",1]
[null,null,"Р = <30%","баллы",0]
["3.8","Эффективность реализации материалов","Р = 100*Пн/Поб, \nПн - количество признанных судами незаконными предписаний и представлений, \nПоб - общее количество предписаний и представлений","%",null,null,{"$f":"5-VLOOKUP(H92,Контроль!A95:E195,3,FALSE)","v":5},{"$f":"IFERROR(ROUND('6. Оценка кач-ва'!D45/'6. Оценка кач-ва'!D44*100,0),0)","v":0}]
[null,null,"Р = 100%","баллы",0]
[null,null,"Р = 75% до <100%","баллы",1]
[null,null,"Р = 60% до <75%","баллы",2]
[null,null,"Р = 45% до <60%","баллы",3]
[null,null,"Р = 30% до <45%","баллы",4]
[null,null,"Р = 0% до <30%","баллы",5]
["3.9","Эффективность административного производства по делам об АП","Наличие составленных протоколов об административном правонарушении","баллы",5,null,{"$f":"IF('6. Оценка кач-ва'!D46>0,5,0)","v":0}]
[null,null,"Отсутствие составленных протоколов об административном правонарушении","баллы",0]
["3.10","Эффективность работы по направлению уведомлений по бюджетным мерам принуждения ","Р = 100*Ув/У, \nУв - возвращенные уведомления по причине неправильной квалификации фактов нарушений и нарушения сроков направления уведомлений, установленных БК РФ, \nУ - общее количество направленных уведомлений","%",null,null,{"$f":"5-VLOOKUP(H101,Контроль!A95:E195,3,FALSE)","v":5},{"$f":"IFERROR(ROUND('6. Оценка кач-ва'!D52/'6. Оценка кач-ва'!D51*100,0),0)","v":0}]
[null,null,"Р = 100%","баллы",0]
[null,null,"Р = 75% до <100%","баллы",1]
[null,null,"Р = 60% до <75%","баллы",2]
[null,null,"Р = 45% до <60%","баллы",3]
[null,null,"Р = 30% до <45%","баллы",4]
[null,null,"Р = 0% до <30%","баллы",5]
["4. Открытость, доступность и креативность контрольной деятельности"]
["4.1*","Размещение информации на официальном сайте органа ВМФК","Общий балл","баллы",null,"общий балл определяется путем суммирования баллов по п.4.1.1-4.1.5",{"$f":"SUM(G110:G124)","v":20}]
["4.1.1",null,"Наличие информации о реквизитах контрольного органа","баллы",1,null,{"$f":"IF('6. Оценка кач-ва'!D69=\"Да\",1,0)","v":1}]
[null,null,"Отсутствие информации о реквизитах контрольного органа","баллы",0]
["4.1.2",null,"Наличие сведений о руководстве органа ВМФК","баллы",1,null,{"$f":"IF('6. Оценка кач-ва'!D70=\"Да\",1,0)","v":1}]
[null,null,"Отсутствие сведений о руководстве органа ВМФК","баллы",0]
["4.1.3",null,"Наличие опубликованных отчетов о результатах контрольной деятельности","баллы",1,null,{"$f":"IF('6. Оценка кач-ва'!D71=\"Да\",1,0)","v":1}]
[null,null,"Отсутствие опубликованных отчетов о результатах контрольной деятельности","баллы",0]
["4.1.4",null,"Наличие МПА, регламентирующих контрольную деятельность","баллы",1,null,{"$f":"IF('6. Оценка кач-ва'!D72=\"Да\",1,0)","v":1}]
[null,null,"Отсутствие МПА, регламентирующих контрольную деятельность","баллы",0]
["4.1.5",null,"Наличие информации о типовых нарушениях и иных разъяснений по вопросам контроля","баллы",1,null,{"$f":"IF('6. Оценка кач-ва'!D73=\"Да\",1,0)","v":1}]
[null,null,"Отсутствие информации о типовых нарушениях и иных разъяснений по вопросам контроля","баллы",0]
["4.2","Проведение органами ВМФК мониторинга выявленных нарушений бюджетного законодательства в отчетном периоде","Наличие результатов мониторинга","баллы",5,null,{"$f":"IF('6. Оценка кач-ва'!D74=\"Да\",5,0)","v":5}]
[null,null,"Отсутствие результатов мониторинга","баллы",0]
["4.3","Проведение информационной работы по предупреждению нарушений бюджетного законодательства (письма, совещания, аналитические записки, др.)","Наличие информационной работы по предупреждению нарушений","баллы",5,null,{"$f":"IF('6. Оценка кач-ва'!D75=\"Да\",5,0)","v":5}]
[null,null,"Отсутствие информационной работы по предупреждению нарушений","баллы",0]
["4.4","Оказание методической помощи по вопросам контрольной деятельности органам ВМФК поселений, входящих в муниципальный район, главным распорядителям и администраторам средств бюджета МО","Наличие методической помощи органам ВМФК поселений","баллы",5,null,{"$f":"IF('6. Оценка кач-ва'!D76=\"Да\",5,0)","v":5}]
[null,null,"Отсутствие методической помощи органам ВМФК поселений","баллы",0]
[null,null,null,null,null,null,{"$f":"SUM(G5:G109)","v":107}]

{"sheet":"Контроль","index":8,"n_rows":195,"n_cols":5,"rows_kept":195,"cut":false,"hidden":true,"merged":[]}
["Уровень",null,"Платформа для отчетности"]
["Государственный",null,"БашФин"]
["Муниципальный",null,"Excel"]
[]
["Дата"]
["1 апреля "]
["1 июля "]
["1 октября "]
["1 января "]
[]
["Год"]
["2017 года"]
["2018 года"]
["2019 года"]
["2020 года"]
["2021 года"]
["2022 года"]
["2023 года"]
["2024 года"]
[null,null,"Не используется"]
["МО",null,"ГРБС"]
["ГО г. Агидель РБ",null,"Агентство по печати РБ"]
["ГО г. Кумертау РБ",null,"Госкомитет РБ по делам юстиции"]
["ГО г. Нефтекамск РБ",null,"Госкомитет РБ по информатизации и вопросам функционирования системы «Открытая Республика»"]
["ГО г. Октябрьский РБ",null,"Госкомитет РБ по строительству и архитектуре"]
["ГО г. Салават РБ",null,"Госкомитет РБ по торговле и защите прав потребителей"]
["ГО г. Сибай РБ",null,"Госкомитет РБ по транспорту и дорожному хозяйству"]
["ГО г. Стерлитамак РБ",null,"Госкомитет РБ по чрезвычайным ситуациям"]
["ГО г. Уфа РБ",null,"Государственное бюджетное научное учреждение \"Академия наук РБ\""]
["ЗАТО г. Межгорье РБ",null,"Министерство жилищно-коммунального хозяйства РБ"]
["МР Абзелиловский район РБ",null,"Министерство здравоохранения РБ"]
["МР Альшеевский район РБ",null,"Министерство земельных и имущественных отношений РБ"]
["МР Архангельский район РБ",null,"Министерство культуры РБ"]
["МР Аскинский район РБ",null,"Министерство лесного хозяйства РБ"]
["МР Аургазинский район РБ",null,"Министерство молодежной политики и спорта РБ"]
["МР Баймакский район РБ",null,"Министерство образования РБ"]
["МР Бакалинский район РБ",null,"Министерство природопользования и экологии РБ"]
["МР Балтачевский район РБ",null,"Министерство промышленности и инновационной политики РБ"]
["МР Белебеевский район РБ",null,"Министерство сельского хозяйства РБ"]
["МР Белокатайский район РБ",null,"Министерство труда и социальной защиты населения РБ"]
["МР Белорецкий район РБ",null,"Министерство экономического развития РБ"]
["МР Бижбулякский район РБ",null,"Управление ветеринарии РБ"]
["МР Бирский район РБ",null,"Управление делами Главы РБ"]
["МР Благоварский район РБ",null,"Управление по государственной охране объектов культурного наследия Республики Башкортостан"]
["МР Благовещенский район РБ",null,"Управление по делам архивов РБ"]
["МР Буздякский район РБ"]
["МР Бураевский район РБ"]
["МР Бурзянский район РБ"]
["МР Гафурийский район РБ"]
["МР Давлекановский район РБ"]
["МР Дуванский район РБ"]
["МР Дюртюлинский район РБ"]
["МР Ермекеевский район РБ"]
["МР Зианчуринский район РБ"]
["МР Зилаирский район РБ"]
["МР Иглинский район РБ"]
["МР Илишевский район РБ"]
["МР Ишимбайский район РБ"]
["МР Калтасинский район РБ"]
["МР Караидельский район РБ"]
["МР Кармаскалинский район РБ"]
["МР Кигинский район РБ"]
["МР Краснокамский район РБ"]
["МР Кугарчинский район РБ"]
["МР Кушнаренковский район РБ"]
["МР Куюргазинский район РБ"]
["МР Мелеузовский район РБ"]
["МР Мечетлинский район РБ"]
["МР Мишкинский район РБ"]
["МР Миякинский район РБ"]
["МР Нуримановский район РБ"]
["МР Салаватский район РБ"]
["МР Стерлибашевский район РБ"]
["МР Стерлитамакский район РБ"]
["МР Татышлинский район РБ"]
["МР Туймазинский район РБ"]
["МР Уфимский район РБ"]
["МР Учалинский район РБ"]
["МР Федоровский район РБ"]
["МР Хайбуллинский район РБ"]
["МР Чекмагушевский район РБ"]
["МР Чишминский район РБ"]
["МР Шаранский район РБ"]
["МР Янаульский район РБ"]
[]
[]
[]
[]
["Для показателей качества"]
["Да"]
["Нет"]
[]
[null,"Пункты: 2.1","Пункты: 2.2, 2.3, 3.2, 3.4, 3.5, 3.7, 3.8, 3.10","Пункты: 2.4","Пункты: 3.6"]
["ВПР-%","ВПР-Баллы","ВПР-Баллы","ВПР-Баллы","ВПР-Баллы"]
[0,0,0,5,0]
[1,0,0,5,0]
[2,0,0,5,0]
[3,0,0,5,0]
[4,0,0,5,0]
[5,0,0,5,0]
[6,0,0,5,0]
[7,0,0,5,0]
[8,0,0,5,0]
[9,0,0,5,0]
[10,0,0,5,0]
[11,0,0,5,0]
[12,0,0,5,0]
[13,0,0,5,0]
[14,0,0,5,0]
[15,0,0,5,0]
[16,0,0,5,0]
[17,0,0,5,0]
[18,0,0,5,0]
[19,0,0,5,0]
[20,0,0,5,1]
[21,0,0,5,1]
[22,0,0,5,1]
[23,0,0,5,1]
[24,0,0,5,1]
[25,1,0,5,1]
[26,1,0,5,1]
[27,1,0,5,1]
[28,1,0,5,1]
[29,1,0,5,1]
[30,1,1,5,1]
[31,1,1,5,1]
[32,1,1,5,1]
[33,1,1,5,1]
[34,1,1,5,1]
[35,1,1,5,1]
[36,1,1,5,1]
[37,1,1,5,1]
[38,1,1,5,1]
[39,1,1,5,1]
[40,2,1,3,3]
[41,2,1,3,3]
[42,2,1,3,3]
[43,2,1,3,3]
[44,2,1,3,3]
[45,2,2,3,3]
[46,2,2,3,3]
[47,2,2,3,3]
[48,2,2,3,3]
[49,2,2,3,3]
[50,3,2,3,3]
[51,3,2,3,3]
[52,3,2,3,3]
[53,3,2,3,3]
[54,3,2,3,3]
[55,3,2,3,3]
[56,3,2,3,3]
[57,3,2,3,3]
[58,3,2,3,3]
[59,3,2,3,3]
[60,3,3,3,3]
[61,3,3,3,3]
[62,3,3,3,3]
[63,3,3,3,3]
[64,3,3,3,3]
[65,3,3,3,3]
[66,3,3,3,3]
[67,3,3,3,3]
[68,3,3,3,3]
[69,3,3,3,3]
[70,3,3,3,3]
[71,3,3,3,3]
[72,3,3,3,3]
[73,3,3,3,3]
[74,3,3,3,3]
[75,4,4,0,3]
[76,4,4,0,3]
[77,4,4,0,3]
[78,4,4,0,3]
[79,4,4,0,3]
[80,4,4,0,5]
[81,4,4,0,5]
[82,4,4,0,5]
[83,4,4,0,5]
[84,4,4,0,5]
[85,4,4,0,5]
[86,4,4,0,5]
[87,4,4,0,5]
[88,4,4,0,5]
[89,4,4,0,5]
[90,4,4,0,5]
[91,4,4,0,5]
[92,4,4,0,5]
[93,4,4,0,5]
[94,4,4,0,5]
[95,4,4,0,5]
[96,4,4,0,5]
[97,4,4,0,5]
[98,4,4,0,5]
[99,4,4,0,5]
[100,5,5,0,5]